Workbook

Sheet LEEG RINGO VROEG (hidden)
A1: PLANNING KPO/GPO -AFDELING 53481 | AB1: 09:52:49
A2: 2017
A3: WEEK | B3: 40
A4: TOTAAL PLANUREN | D4: =G4+I4 -> 0 | F4: Uren Mech | G4: =SUM(F37:I37)+SUM(K37:N37)+SUM(P37:S37)+SUM(U37:X37)+SUM(Z37:AC37)+SUM(F61:I61)+SUM(K61:N61)+SUM(P61:S61)+SUM(U61:X61)+SUM(Z61:AC61) -> 0 | H4: Uren Elec | I4: =SUM(F49:I49)+SUM(K49:N49)+SUM(P49:S49)+SUM(U49:X49)+SUM(Z49:AC49)+SUM(F72:I72)+SUM(K72:N72)+SUM(P72:S72)+SUM(U72:X72)+SUM(Z72:AC72) -> 0
D5: =AVERAGE(AD13,AD22) -> 0.4604166667
A7: MECHANISCH | F7: =AD13 -> 0.5333333333
C8: MAX bezetting | F8: =(COUNTIF($B$38:$C$48,"><""")+COUNTIF($B$62:$C$71,"><"""))*1.75 -> 36.75 | G8: =(COUNTIF($B$38:$C$48,"><""")+COUNTIF($B$62:$C$71,"><"""))*1.75 -> 36.75 | H8: 36.75 | I8: 36.75 | K8: 36.75 | L8: 36.75 | M8: 36.75 | N8: 36.75 | P8: 36.75 | Q8: 36.75 | R8: 36.75 | S8: 36.75 | U8: 36.75 | V8: 36.75 | W8: 36.75 | X8: 36.75 | Z8: 36.75 | AA8: 36.75 | AB8: 36.75 | AC8: 36.75 | AD8: =SUM(F8:AC8) -> 735
C9: Uren ter beschikking | F9: =COUNTBLANK(F38:F48)*1.75+COUNTBLANK(F62:F71)*1.75 -> 33.25 | G9: =COUNTBLANK(G38:G48)*1.75+COUNTBLANK(G62:G71)*1.75 -> 33.25 | H9: 33.25 | I9: 33.25 | K9: 33.25 | L9: 33.25 | M9: 33.25 | N9: 33.25 | P9: 33.25 | Q9: 33.25 | R9: 33.25 | S9: 33.25 | U9: 33.25 | V9: 33.25 | W9: 33.25 | X9: 33.25 | Z9: 35 | AA9: 35 | AB9: 35 | AC9: 35
C10: Percentage Geheel | F10: =F9/F8 -> 0.9047619048 | G10: =G9/G8 -> 0.9047619048 | H10: =H9/H8 -> 0.9047619048 | I10: 0.9047619048 | K10: =K9/K8 -> 0.9047619048 | L10: 0.9047619048 | M10: 0.9047619048 | N10: 0.9047619048 | P10: =P9/P8 -> 0.9047619048 | Q10: 0.9047619048 | R10: 0.9047619048 | S10: 0.9047619048 | U10: =U9/U8 -> 0.9047619048 | V10: 0.9047619048 | W10: 0.9047619048 | X10: 0.9047619048 | Z10: =Z9/Z8 -> 0.9523809524 | AA10: 0.9523809524 | AB10: 0.9523809524 | AC10: 0.9523809524
C11: Verlof | F11: =COUNTIF(F38:F48,"NACHT")+COUNTIF(F38:F48,"WD")+COUNTIF(F38:F48,"WN")+COUNTIF(F38:F48,"EV")+COUNTIF(F38:F48,"EVU")+COUNTIF(F38:F48,"EVVJ")+COUNTIF(F38:F48,"EVUV")+COUNTIF(F38:F48,"WV") +COUNTIF(F38:F48,"TK")+COUNTIF(F38:F48,"EDUC")+COUNTIF(F38:F48,"ROW")+COUNTIF(F38:F48,"ZIEM")+COUNTIF(F38:F48,"EXTERN")+ COUNTIF(F62:F71,"NACHT")+COUNTIF(F62:F71,"WD")+COUNTIF(F62:F71,"WN")+COUNTIF(F62:F71,"EV")+COUNTIF(F62:F71,"EVU")+COUNTIF(F62:F71,"EVVJ")+COUNTIF(F62:F71,"EVUV")+COUNTIF(F62:F71,"WV") +COUNTIF(F62:F71,"TK")+COUNTIF(F62:F71,"EDUC")+COUNTIF(F62:F71,"ROW")+COUNTIF(F62:F71,"ZIEM")+COUNTIF(F62:F71,"EXTERN") -> 0 | G11: =COUNTIF(G38:G48,"NACHT")+COUNTIF(G38:G48,"WD")+COUNTIF(G38:G48,"WN")+COUNTIF(G38:G48,"EV")+COUNTIF(G38:G48,"EVU")+COUNTIF(G38:G48,"EVVJ")+COUNTIF(G38:G48,"EVUV")+COUNTIF(G38:G48,"WV") +COUNTIF(G38:G48,"TK")+COUNTIF(G38:G48,"EDUC")+COUNTIF(G38:G48,"ROW")+COUNTIF(G38:G48,"ZIEM")+COUNTIF(G38:G48,"EXTERN")+ COUNTIF(G62:G71,"NACHT")+COUNTIF(G62:G71,"WD")+COUNTIF(G62:G71,"WN")+COUNTIF(G62:G71,"EV")+COUNTIF(G62:G71,"EVU")+COUNTIF(G62:G71,"EVVJ")+COUNTIF(G62:G71,"EVUV")+COUNTIF(G62:G71,"WV") +COUNTIF(G62:G71,"TK")+COUNTIF(G62:G71,"EDUC")+COUNTIF(G62:G71,"ROW")+COUNTIF(G62:G71,"ZIEM")+COUNTIF(G62:G71,"EXTERN") -> 0 | H11: =COUNTIF(H38:H48,"NACHT")+COUNTIF(H38:H48,"WD")+COUNTIF(H38:H48,"WN")+COUNTIF(H38:H48,"EV")+COUNTIF(H38:H48,"EVU")+COUNTIF(H38:H48,"EVVJ")+COUNTIF(H38:H48,"EVUV")+COUNTIF(H38:H48,"WV") +COUNTIF(H38:H48,"TK")+COUNTIF(H38:H48,"EDUC")+COUNTIF(H38:H48,"ROW")+COUNTIF(H38:H48,"ZIEM")+COUNTIF(H38:H48,"EXTERN")+ COUNTIF(H62:H71,"NACHT")+COUNTIF(H62:H71,"WD")+COUNTIF(H62:H71,"WN")+COUNTIF(H62:H71,"EV")+COUNTIF(H62:H71,"EVU")+COUNTIF(H62:H71,"EVVJ")+COUNTIF(H62:H71,"EVUV")+COUNTIF(H62:H71,"WV") +COUNTIF(H62:H71,"TK")+COUNTIF(H62:H71,"EDUC")+COUNTIF(H62:H71,"ROW")+COUNTIF(H62:H71,"ZIEM")+COUNTIF(H62:H71,"EXTERN") -> 0 | I11: =COUNTIF(I38:I48,"NACHT")+COUNTIF(I38:I48,"WD")+COUNTIF(I38:I48,"WN")+COUNTIF(I38:I48,"EV")+COUNTIF(I38:I48,"EVU")+COUNTIF(I38:I48,"EVVJ")+COUNTIF(I38:I48,"EVUV")+COUNTIF(I38:I48,"WV") +COUNTIF(I38:I48,"TK")+COUNTIF(I38:I48,"EDUC")+COUNTIF(I38:I48,"ROW")+COUNTIF(I38:I48,"ZIEM")+COUNTIF(I38:I48,"EXTERN")+ COUNTIF(I62:I71,"NACHT")+COUNTIF(I62:I71,"WD")+COUNTIF(I62:I71,"WN")+COUNTIF(I62:I71,"EV")+COUNTIF(I62:I71,"EVU")+COUNTIF(I62:I71,"EVVJ")+COUNTIF(I62:I71,"EVUV")+COUNTIF(I62:I71,"WV") +COUNTIF(I62:I71,"TK")+COUNTIF(I62:I71,"EDUC")+COUNTIF(I62:I71,"ROW")+COUNTIF(I62:I71,"ZIEM")+COUNTIF(I62:I71,"EXTERN") -> 0 | K11: =COUNTIF(K38:K48,"NACHT")+COUNTIF(K38:K48,"WD")+COUNTIF(K38:K48,"WN")+COUNTIF(K38:K48,"EV")+COUNTIF(K38:K48,"EVU")+COUNTIF(K38:K48,"EVVJ")+COUNTIF(K38:K48,"EVUV")+COUNTIF(K38:K48,"WV") +COUNTIF(K38:K48,"TK")+COUNTIF(K38:K48,"EDUC")+COUNTIF(K38:K48,"ROW")+COUNTIF(K38:K48,"ZIEM")+COUNTIF(K38:K48,"EXTERN")+ COUNTIF(K62:K71,"NACHT")+COUNTIF(K62:K71,"WD")+COUNTIF(K62:K71,"WN")+COUNTIF(K62:K71,"EV")+COUNTIF(K62:K71,"EVU")+COUNTIF(K62:K71,"EVVJ")+COUNTIF(K62:K71,"EVUV")+COUNTIF(K62:K71,"WV") +COUNTIF(K62:K71,"TK")+COUNTIF(K62:K71,"EDUC")+COUNTIF(K62:K71,"ROW")+COUNTIF(K62:K71,"ZIEM")+COUNTIF(K62:K71,"EXTERN") -> 0 | L11: =COUNTIF(L38:L48,"NACHT")+COUNTIF(L38:L48,"WD")+COUNTIF(L38:L48,"WN")+COUNTIF(L38:L48,"EV")+COUNTIF(L38:L48,"EVU")+COUNTIF(L38:L48,"EVVJ")+COUNTIF(L38:L48,"EVUV")+COUNTIF(L38:L48,"WV") +COUNTIF(L38:L48,"TK")+COUNTIF(L38:L48,"EDUC")+COUNTIF(L38:L48,"ROW")+COUNTIF(L38:L48,"ZIEM")+COUNTIF(L38:L48,"EXTERN")+ COUNTIF(L62:L71,"NACHT")+COUNTIF(L62:L71,"WD")+COUNTIF(L62:L71,"WN")+COUNTIF(L62:L71,"EV")+COUNTIF(L62:L71,"EVU")+COUNTIF(L62:L71,"EVVJ")+COUNTIF(L62:L71,"EVUV")+COUNTIF(L62:L71,"WV") +COUNTIF(L62:L71,"TK")+COUNTIF(L62:L71,"EDUC")+COUNTIF(L62:L71,"ROW")+COUNTIF(L62:L71,"ZIEM")+COUNTIF(L62:L71,"EXTERN") -> 0 | M11: =COUNTIF(M38:M48,"NACHT")+COUNTIF(M38:M48,"WD")+COUNTIF(M38:M48,"WN")+COUNTIF(M38:M48,"EV")+COUNTIF(M38:M48,"EVU")+COUNTIF(M38:M48,"EVVJ")+COUNTIF(M38:M48,"EVUV")+COUNTIF(M38:M48,"WV") +COUNTIF(M38:M48,"TK")+COUNTIF(M38:M48,"EDUC")+COUNTIF(M38:M48,"ROW")+COUNTIF(M38:M48,"ZIEM")+COUNTIF(M38:M48,"EXTERN")+ COUNTIF(M62:M71,"NACHT")+COUNTIF(M62:M71,"WD")+COUNTIF(M62:M71,"WN")+COUNTIF(M62:M71,"EV")+COUNTIF(M62:M71,"EVU")+COUNTIF(M62:M71,"EVVJ")+COUNTIF(M62:M71,"EVUV")+COUNTIF(M62:M71,"WV") +COUNTIF(M62:M71,"TK")+COUNTIF(M62:M71,"EDUC")+COUNTIF(M62:M71,"ROW")+COUNTIF(M62:M71,"ZIEM")+COUNTIF(M62:M71,"EXTERN") -> 0 | N11: =COUNTIF(N38:N48,"NACHT")+COUNTIF(N38:N48,"WD")+COUNTIF(N38:N48,"WN")+COUNTIF(N38:N48,"EV")+COUNTIF(N38:N48,"EVU")+COUNTIF(N38:N48,"EVVJ")+COUNTIF(N38:N48,"EVUV")+COUNTIF(N38:N48,"WV") +COUNTIF(N38:N48,"TK")+COUNTIF(N38:N48,"EDUC")+COUNTIF(N38:N48,"ROW")+COUNTIF(N38:N48,"ZIEM")+COUNTIF(N38:N48,"EXTERN")+ COUNTIF(N62:N71,"NACHT")+COUNTIF(N62:N71,"WD")+COUNTIF(N62:N71,"WN")+COUNTIF(N62:N71,"EV")+COUNTIF(N62:N71,"EVU")+COUNTIF(N62:N71,"EVVJ")+COUNTIF(N62:N71,"EVUV")+COUNTIF(N62:N71,"WV") +COUNTIF(N62:N71,"TK")+COUNTIF(N62:N71,"EDUC")+COUNTIF(N62:N71,"ROW")+COUNTIF(N62:N71,"ZIEM")+COUNTIF(N62:N71,"EXTERN") -> 0 | P11: =COUNTIF(P38:P48,"NACHT")+COUNTIF(P38:P48,"WD")+COUNTIF(P38:P48,"WN")+COUNTIF(P38:P48,"EV")+COUNTIF(P38:P48,"EVU")+COUNTIF(P38:P48,"EVVJ")+COUNTIF(P38:P48,"EVUV")+COUNTIF(P38:P48,"WV") +COUNTIF(P38:P48,"TK")+COUNTIF(P38:P48,"EDUC")+COUNTIF(P38:P48,"ROW")+COUNTIF(P38:P48,"ZIEM")+COUNTIF(P38:P48,"EXTERN")+ COUNTIF(P62:P71,"NACHT")+COUNTIF(P62:P71,"WD")+COUNTIF(P62:P71,"WN")+COUNTIF(P62:P71,"EV")+COUNTIF(P62:P71,"EVU")+COUNTIF(P62:P71,"EVVJ")+COUNTIF(P62:P71,"EVUV")+COUNTIF(P62:P71,"WV") +COUNTIF(P62:P71,"TK")+COUNTIF(P62:P71,"EDUC")+COUNTIF(P62:P71,"ROW")+COUNTIF(P62:P71,"ZIEM")+COUNTIF(P62:P71,"EXTERN") -> 0 | Q11: =COUNTIF(Q38:Q48,"NACHT")+COUNTIF(Q38:Q48,"WD")+COUNTIF(Q38:Q48,"WN")+COUNTIF(Q38:Q48,"EV")+COUNTIF(Q38:Q48,"EVU")+COUNTIF(Q38:Q48,"EVVJ")+COUNTIF(Q38:Q48,"EVUV")+COUNTIF(Q38:Q48,"WV") +COUNTIF(Q38:Q48,"TK")+COUNTIF(Q38:Q48,"EDUC")+COUNTIF(Q38:Q48,"ROW")+COUNTIF(Q38:Q48,"ZIEM")+COUNTIF(Q38:Q48,"EXTERN")+ COUNTIF(Q62:Q71,"NACHT")+COUNTIF(Q62:Q71,"WD")+COUNTIF(Q62:Q71,"WN")+COUNTIF(Q62:Q71,"EV")+COUNTIF(Q62:Q71,"EVU")+COUNTIF(Q62:Q71,"EVVJ")+COUNTIF(Q62:Q71,"EVUV")+COUNTIF(Q62:Q71,"WV") +COUNTIF(Q62:Q71,"TK")+COUNTIF(Q62:Q71,"EDUC")+COUNTIF(Q62:Q71,"ROW")+COUNTIF(Q62:Q71,"ZIEM")+COUNTIF(Q62:Q71,"EXTERN") -> 0 | R11: =COUNTIF(R38:R48,"NACHT")+COUNTIF(R38:R48,"WD")+COUNTIF(R38:R48,"WN")+COUNTIF(R38:R48,"EV")+COUNTIF(R38:R48,"EVU")+COUNTIF(R38:R48,"EVVJ")+COUNTIF(R38:R48,"EVUV")+COUNTIF(R38:R48,"WV") +COUNTIF(R38:R48,"TK")+COUNTIF(R38:R48,"EDUC")+COUNTIF(R38:R48,"ROW")+COUNTIF(R38:R48,"ZIEM")+COUNTIF(R38:R48,"EXTERN")+ COUNTIF(R62:R71,"NACHT")+COUNTIF(R62:R71,"WD")+COUNTIF(R62:R71,"WN")+COUNTIF(R62:R71,"EV")+COUNTIF(R62:R71,"EVU")+COUNTIF(R62:R71,"EVVJ")+COUNTIF(R62:R71,"EVUV")+COUNTIF(R62:R71,"WV") +COUNTIF(R62:R71,"TK")+COUNTIF(R62:R71,"EDUC")+COUNTIF(R62:R71,"ROW")+COUNTIF(R62:R71,"ZIEM")+COUNTIF(R62:R71,"EXTERN") -> 0 | S11: =COUNTIF(S38:S48,"NACHT")+COUNTIF(S38:S48,"WD")+COUNTIF(S38:S48,"WN")+COUNTIF(S38:S48,"EV")+COUNTIF(S38:S48,"EVU")+COUNTIF(S38:S48,"EVVJ")+COUNTIF(S38:S48,"EVUV")+COUNTIF(S38:S48,"WV") +COUNTIF(S38:S48,"TK")+COUNTIF(S38:S48,"EDUC")+COUNTIF(S38:S48,"ROW")+COUNTIF(S38:S48,"ZIEM")+COUNTIF(S38:S48,"EXTERN")+ COUNTIF(S62:S71,"NACHT")+COUNTIF(S62:S71,"WD")+COUNTIF(S62:S71,"WN")+COUNTIF(S62:S71,"EV")+COUNTIF(S62:S71,"EVU")+COUNTIF(S62:S71,"EVVJ")+COUNTIF(S62:S71,"EVUV")+COUNTIF(S62:S71,"WV") +COUNTIF(S62:S71,"TK")+COUNTIF(S62:S71,"EDUC")+COUNTIF(S62:S71,"ROW")+COUNTIF(S62:S71,"ZIEM")+COUNTIF(S62:S71,"EXTERN") -> 0 | U11: =COUNTIF(U38:U48,"NACHT")+COUNTIF(U38:U48,"WD")+COUNTIF(U38:U48,"WN")+COUNTIF(U38:U48,"EV")+COUNTIF(U38:U48,"EVU")+COUNTIF(U38:U48,"EVVJ")+COUNTIF(U38:U48,"EVUV")+COUNTIF(U38:U48,"WV") +COUNTIF(U38:U48,"TK")+COUNTIF(U38:U48,"EDUC")+COUNTIF(U38:U48,"ROW")+COUNTIF(U38:U48,"ZIEM")+COUNTIF(U38:U48,"EXTERN")+ COUNTIF(U62:U71,"NACHT")+COUNTIF(U62:U71,"WD")+COUNTIF(U62:U71,"WN")+COUNTIF(U62:U71,"EV")+COUNTIF(U62:U71,"EVU")+COUNTIF(U62:U71,"EVVJ")+COUNTIF(U62:U71,"EVUV")+COUNTIF(U62:U71,"WV") +COUNTIF(U62:U71,"TK")+COUNTIF(U62:U71,"EDUC")+COUNTIF(U62:U71,"ROW")+COUNTIF(U62:U71,"ZIEM")+COUNTIF(U62:U71,"EXTERN") -> 0 | V11: =COUNTIF(V38:V48,"NACHT")+COUNTIF(V38:V48,"WD")+COUNTIF(V38:V48,"WN")+COUNTIF(V38:V48,"EV")+COUNTIF(V38:V48,"EVU")+COUNTIF(V38:V48,"EVVJ")+COUNTIF(V38:V48,"EVUV")+COUNTIF(V38:V48,"WV") +COUNTIF(V38:V48,"TK")+COUNTIF(V38:V48,"EDUC")+COUNTIF(V38:V48,"ROW")+COUNTIF(V38:V48,"ZIEM")+COUNTIF(V38:V48,"EXTERN")+ COUNTIF(V62:V71,"NACHT")+COUNTIF(V62:V71,"WD")+COUNTIF(V62:V71,"WN")+COUNTIF(V62:V71,"EV")+COUNTIF(V62:V71,"EVU")+COUNTIF(V62:V71,"EVVJ")+COUNTIF(V62:V71,"EVUV")+COUNTIF(V62:V71,"WV") +COUNTIF(V62:V71,"TK")+COUNTIF(V62:V71,"EDUC")+COUNTIF(V62:V71,"ROW")+COUNTIF(V62:V71,"ZIEM")+COUNTIF(V62:V71,"EXTERN") -> 0 | W11: =COUNTIF(W38:W48,"NACHT")+COUNTIF(W38:W48,"WD")+COUNTIF(W38:W48,"WN")+COUNTIF(W38:W48,"EV")+COUNTIF(W38:W48,"EVU")+COUNTIF(W38:W48,"EVVJ")+COUNTIF(W38:W48,"EVUV")+COUNTIF(W38:W48,"WV") +COUNTIF(W38:W48,"TK")+COUNTIF(W38:W48,"EDUC")+COUNTIF(W38:W48,"ROW")+COUNTIF(W38:W48,"ZIEM")+COUNTIF(W38:W48,"EXTERN")+ COUNTIF(W62:W71,"NACHT")+COUNTIF(W62:W71,"WD")+COUNTIF(W62:W71,"WN")+COUNTIF(W62:W71,"EV")+COUNTIF(W62:W71,"EVU")+COUNTIF(W62:W71,"EVVJ")+COUNTIF(W62:W71,"EVUV")+COUNTIF(W62:W71,"WV") +COUNTIF(W62:W71,"TK")+COUNTIF(W62:W71,"EDUC")+COUNTIF(W62:W71,"ROW")+COUNTIF(W62:W71,"ZIEM")+COUNTIF(W62:W71,"EXTERN") -> 0 | X11: =COUNTIF(X38:X48,"NACHT")+COUNTIF(X38:X48,"WD")+COUNTIF(X38:X48,"WN")+COUNTIF(X38:X48,"EV")+COUNTIF(X38:X48,"EVU")+COUNTIF(X38:X48,"EVVJ")+COUNTIF(X38:X48,"EVUV")+COUNTIF(X38:X48,"WV") +COUNTIF(X38:X48,"TK")+COUNTIF(X38:X48,"EDUC")+COUNTIF(X38:X48,"ROW")+COUNTIF(X38:X48,"ZIEM")+COUNTIF(X38:X48,"EXTERN")+ COUNTIF(X62:X71,"NACHT")+COUNTIF(X62:X71,"WD")+COUNTIF(X62:X71,"WN")+COUNTIF(X62:X71,"EV")+COUNTIF(X62:X71,"EVU")+COUNTIF(X62:X71,"EVVJ")+COUNTIF(X62:X71,"EVUV")+COUNTIF(X62:X71,"WV") +COUNTIF(X62:X71,"TK")+COUNTIF(X62:X71,"EDUC")+COUNTIF(X62:X71,"ROW")+COUNTIF(X62:X71,"ZIEM")+COUNTIF(X62:X71,"EXTERN") -> 0 | Z11: =COUNTIF(Z38:Z48,"NACHT")+COUNTIF(Z38:Z48,"WD")+COUNTIF(Z38:Z48,"WN")+COUNTIF(Z38:Z48,"EV")+COUNTIF(Z38:Z48,"EVU")+COUNTIF(Z38:Z48,"EVVJ")+COUNTIF(Z38:Z48,"EVUV")+COUNTIF(Z38:Z48,"WV") +COUNTIF(Z38:Z48,"TK")+COUNTIF(Z38:Z48,"EDUC")+COUNTIF(Z38:Z48,"ROW")+COUNTIF(Z38:Z48,"ZIEM")+COUNTIF(Z38:Z48,"EXTERN")+ COUNTIF(Z62:Z71,"NACHT")+COUNTIF(Z62:Z71,"WD")+COUNTIF(Z62:Z71,"WN")+COUNTIF(Z62:Z71,"EV")+COUNTIF(Z62:Z71,"EVU")+COUNTIF(Z62:Z71,"EVVJ")+COUNTIF(Z62:Z71,"EVUV")+COUNTIF(Z62:Z71,"WV") +COUNTIF(Z62:Z71,"TK")+COUNTIF(Z62:Z71,"EDUC")+COUNTIF(Z62:Z71,"ROW")+COUNTIF(Z62:Z71,"ZIEM")+COUNTIF(Z62:Z71,"EXTERN") -> 0 | AA11: =COUNTIF(AA38:AA48,"NACHT")+COUNTIF(AA38:AA48,"WD")+COUNTIF(AA38:AA48,"WN")+COUNTIF(AA38:AA48,"EV")+COUNTIF(AA38:AA48,"EVU")+COUNTIF(AA38:AA48,"EVVJ")+COUNTIF(AA38:AA48,"EVUV")+COUNTIF(AA38:AA48,"WV") +COUNTIF(AA38:AA48,"TK")+COUNTIF(AA38:AA48,"EDUC")+COUNTIF(AA38:AA48,"ROW")+COUNTIF(AA38:AA48,"ZIEM")+COUNTIF(AA38:AA48,"EXTERN")+ COUNTIF(AA62:AA71,"NACHT")+COUNTIF(AA62:AA71,"WD")+COUNTIF(AA62:AA71,"WN")+COUNTIF(AA62:AA71,"EV")+COUNTIF(AA62:AA71,"EVU")+COUNTIF(AA62:AA71,"EVVJ")+COUNTIF(AA62:AA71,"EVUV")+COUNTIF(AA62:AA71,"WV") +COUNTIF(AA62:AA71,"TK")+COUNTIF(AA62:AA71,"EDUC")+COUNTIF(AA62:AA71,"ROW")+COUNTIF(AA62:AA71,"ZIEM")+COUNTIF(AA62:AA71,"EXTERN") -> 0 | AB11: =COUNTIF(AB38:AB48,"NACHT")+COUNTIF(AB38:AB48,"WD")+COUNTIF(AB38:AB48,"WN")+COUNTIF(AB38:AB48,"EV")+COUNTIF(AB38:AB48,"EVU")+COUNTIF(AB38:AB48,"EVVJ")+COUNTIF(AB38:AB48,"EVUV")+COUNTIF(AB38:AB48,"WV") +COUNTIF(AB38:AB48,"TK")+COUNTIF(AB38:AB48,"EDUC")+COUNTIF(AB38:AB48,"ROW")+COUNTIF(AB38:AB48,"ZIEM")+COUNTIF(AB38:AB48,"EXTERN")+ COUNTIF(AB62:AB71,"NACHT")+COUNTIF(AB62:AB71,"WD")+COUNTIF(AB62:AB71,"WN")+COUNTIF(AB62:AB71,"EV")+COUNTIF(AB62:AB71,"EVU")+COUNTIF(AB62:AB71,"EVVJ")+COUNTIF(AB62:AB71,"EVUV")+COUNTIF(AB62:AB71,"WV") +COUNTIF(AB62:AB71,"TK")+COUNTIF(AB62:AB71,"EDUC")+COUNTIF(AB62:AB71,"ROW")+COUNTIF(AB62:AB71,"ZIEM")+COUNTIF(AB62:AB71,"EXTERN") -> 0 | AC11: =COUNTIF(AC38:AC48,"NACHT")+COUNTIF(AC38:AC48,"WD")+COUNTIF(AC38:AC48,"WN")+COUNTIF(AC38:AC48,"EV")+COUNTIF(AC38:AC48,"EVU")+COUNTIF(AC38:AC48,"EVVJ")+COUNTIF(AC38:AC48,"EVUV")+COUNTIF(AC38:AC48,"WV") +COUNTIF(AC38:AC48,"TK")+COUNTIF(AC38:AC48,"EDUC")+COUNTIF(AC38:AC48,"ROW")+COUNTIF(AC38:AC48,"ZIEM")+COUNTIF(AC38:AC48,"EXTERN")+ COUNTIF(AC62:AC71,"NACHT")+COUNTIF(AC62:AC71,"WD")+COUNTIF(AC62:AC71,"WN")+COUNTIF(AC62:AC71,"EV")+COUNTIF(AC62:AC71,"EVU")+COUNTIF(AC62:AC71,"EVVJ")+COUNTIF(AC62:AC71,"EVUV")+COUNTIF(AC62:AC71,"WV") +COUNTIF(AC62:AC71,"TK")+COUNTIF(AC62:AC71,"EDUC")+COUNTIF(AC62:AC71,"ROW")+COUNTIF(AC62:AC71,"ZIEM")+COUNTIF(AC62:AC71,"EXTERN") -> 0 | AD11: =SUM(F11:AC11) -> 0
C12: Aanwezig | F12: =COUNTIF(F38:F48,"XTRA KPO")+COUNTIF(F38:F48,"M2")+COUNTIF(F38:F48,"M4")+COUNTIF(F38:F48,"M5")+COUNTIF(F38:F48,"KNOP")+IF(COUNTIF(F38:F48,"")>3,4,COUNTIF(F38:F48,""))+ COUNTIF(F62:F71,"XTRA KPO")+COUNTIF(F62:F71,"M2")+COUNTIF(F62:F71,"M4")+COUNTIF(F62:F71,"M5")+COUNTIF(F62:F71,"KNOP")+IF(COUNTIF(F62:F71,"")>3,4,COUNTIF(F62:F71,"")) -> 10 | G12: =COUNTIF(G38:G48,"XTRA KPO")+COUNTIF(G38:G48,"M2")+COUNTIF(G38:G48,"M4")+COUNTIF(G38:G48,"M5")+COUNTIF(G38:G48,"KNOP")+IF(COUNTIF(G38:G48,"")>3,4,COUNTIF(G38:G48,""))+ COUNTIF(G62:G71,"XTRA KPO")+COUNTIF(G62:G71,"M2")+COUNTIF(G62:G71,"M4")+COUNTIF(G62:G71,"M5")+COUNTIF(G62:G71,"KNOP")+IF(COUNTIF(G62:G71,"")>3,4,COUNTIF(G62:G71,"")) -> 10 | H12: =COUNTIF(H38:H48,"XTRA KPO")+COUNTIF(H38:H48,"M2")+COUNTIF(H38:H48,"M4")+COUNTIF(H38:H48,"M5")+COUNTIF(H38:H48,"KNOP")+IF(COUNTIF(H38:H48,"")>3,4,COUNTIF(H38:H48,""))+ COUNTIF(H62:H71,"XTRA KPO")+COUNTIF(H62:H71,"M2")+COUNTIF(H62:H71,"M4")+COUNTIF(H62:H71,"M5")+COUNTIF(H62:H71,"KNOP")+IF(COUNTIF(H62:H71,"")>3,4,COUNTIF(H62:H71,"")) -> 10 | I12: =COUNTIF(I38:I48,"XTRA KPO")+COUNTIF(I38:I48,"M2")+COUNTIF(I38:I48,"M4")+COUNTIF(I38:I48,"M5")+COUNTIF(I38:I48,"KNOP")+IF(COUNTIF(I38:I48,"")>3,4,COUNTIF(I38:I48,""))+ COUNTIF(I62:I71,"XTRA KPO")+COUNTIF(I62:I71,"M2")+COUNTIF(I62:I71,"M4")+COUNTIF(I62:I71,"M5")+COUNTIF(I62:I71,"KNOP")+IF(COUNTIF(I62:I71,"")>3,4,COUNTIF(I62:I71,"")) -> 10 | K12: =COUNTIF(K38:K48,"XTRA KPO")+COUNTIF(K38:K48,"M2")+COUNTIF(K38:K48,"M4")+COUNTIF(K38:K48,"M5")+COUNTIF(K38:K48,"KNOP")+IF(COUNTIF(K38:K48,"")>3,4,COUNTIF(K38:K48,""))+ COUNTIF(K62:K71,"XTRA KPO")+COUNTIF(K62:K71,"M2")+COUNTIF(K62:K71,"M4")+COUNTIF(K62:K71,"M5")+COUNTIF(K62:K71,"KNOP")+IF(COUNTIF(K62:K71,"")>3,4,COUNTIF(K62:K71,"")) -> 10 | L12: =COUNTIF(L38:L48,"XTRA KPO")+COUNTIF(L38:L48,"M2")+COUNTIF(L38:L48,"M4")+COUNTIF(L38:L48,"M5")+COUNTIF(L38:L48,"KNOP")+IF(COUNTIF(L38:L48,"")>3,4,COUNTIF(L38:L48,""))+ COUNTIF(L62:L71,"XTRA KPO")+COUNTIF(L62:L71,"M2")+COUNTIF(L62:L71,"M4")+COUNTIF(L62:L71,"M5")+COUNTIF(L62:L71,"KNOP")+IF(COUNTIF(L62:L71,"")>3,4,COUNTIF(L62:L71,"")) -> 10 | M12: =COUNTIF(M38:M48,"XTRA KPO")+COUNTIF(M38:M48,"M2")+COUNTIF(M38:M48,"M4")+COUNTIF(M38:M48,"M5")+COUNTIF(M38:M48,"KNOP")+IF(COUNTIF(M38:M48,"")>3,4,COUNTIF(M38:M48,""))+ COUNTIF(M62:M71,"XTRA KPO")+COUNTIF(M62:M71,"M2")+COUNTIF(M62:M71,"M4")+COUNTIF(M62:M71,"M5")+COUNTIF(M62:M71,"KNOP")+IF(COUNTIF(M62:M71,"")>3,4,COUNTIF(M62:M71,"")) -> 10 | N12: =COUNTIF(N38:N48,"XTRA KPO")+COUNTIF(N38:N48,"M2")+COUNTIF(N38:N48,"M4")+COUNTIF(N38:N48,"M5")+COUNTIF(N38:N48,"KNOP")+IF(COUNTIF(N38:N48,"")>3,4,COUNTIF(N38:N48,""))+ COUNTIF(N62:N71,"XTRA KPO")+COUNTIF(N62:N71,"M2")+COUNTIF(N62:N71,"M4")+COUNTIF(N62:N71,"M5")+COUNTIF(N62:N71,"KNOP")+IF(COUNTIF(N62:N71,"")>3,4,COUNTIF(N62:N71,"")) -> 10 | P12: =COUNTIF(P38:P48,"XTRA KPO")+COUNTIF(P38:P48,"M2")+COUNTIF(P38:P48,"M4")+COUNTIF(P38:P48,"M5")+COUNTIF(P38:P48,"KNOP")+IF(COUNTIF(P38:P48,"")>3,4,COUNTIF(P38:P48,""))+ COUNTIF(P62:P71,"XTRA KPO")+COUNTIF(P62:P71,"M2")+COUNTIF(P62:P71,"M4")+COUNTIF(P62:P71,"M5")+COUNTIF(P62:P71,"KNOP")+IF(COUNTIF(P62:P71,"")>3,4,COUNTIF(P62:P71,"")) -> 10 | Q12: =COUNTIF(Q38:Q48,"XTRA KPO")+COUNTIF(Q38:Q48,"M2")+COUNTIF(Q38:Q48,"M4")+COUNTIF(Q38:Q48,"M5")+COUNTIF(Q38:Q48,"KNOP")+IF(COUNTIF(Q38:Q48,"")>3,4,COUNTIF(Q38:Q48,""))+ COUNTIF(Q62:Q71,"XTRA KPO")+COUNTIF(Q62:Q71,"M2")+COUNTIF(Q62:Q71,"M4")+COUNTIF(Q62:Q71,"M5")+COUNTIF(Q62:Q71,"KNOP")+IF(COUNTIF(Q62:Q71,"")>3,4,COUNTIF(Q62:Q71,"")) -> 10 | R12: =COUNTIF(R38:R48,"XTRA KPO")+COUNTIF(R38:R48,"M2")+COUNTIF(R38:R48,"M4")+COUNTIF(R38:R48,"M5")+COUNTIF(R38:R48,"KNOP")+IF(COUNTIF(R38:R48,"")>3,4,COUNTIF(R38:R48,""))+ COUNTIF(R62:R71,"XTRA KPO")+COUNTIF(R62:R71,"M2")+COUNTIF(R62:R71,"M4")+COUNTIF(R62:R71,"M5")+COUNTIF(R62:R71,"KNOP")+IF(COUNTIF(R62:R71,"")>3,4,COUNTIF(R62:R71,"")) -> 10 | S12: =COUNTIF(S38:S48,"XTRA KPO")+COUNTIF(S38:S48,"M2")+COUNTIF(S38:S48,"M4")+COUNTIF(S38:S48,"M5")+COUNTIF(S38:S48,"KNOP")+IF(COUNTIF(S38:S48,"")>3,4,COUNTIF(S38:S48,""))+ COUNTIF(S62:S71,"XTRA KPO")+COUNTIF(S62:S71,"M2")+COUNTIF(S62:S71,"M4")+COUNTIF(S62:S71,"M5")+COUNTIF(S62:S71,"KNOP")+IF(COUNTIF(S62:S71,"")>3,4,COUNTIF(S62:S71,"")) -> 10 | U12: =COUNTIF(U38:U48,"XTRA KPO")+COUNTIF(U38:U48,"M2")+COUNTIF(U38:U48,"M4")+COUNTIF(U38:U48,"M5")+COUNTIF(U38:U48,"KNOP")+IF(COUNTIF(U38:U48,"")>3,4,COUNTIF(U38:U48,""))+ COUNTIF(U62:U71,"XTRA KPO")+COUNTIF(U62:U71,"M2")+COUNTIF(U62:U71,"M4")+COUNTIF(U62:U71,"M5")+COUNTIF(U62:U71,"KNOP")+IF(COUNTIF(U62:U71,"")>3,4,COUNTIF(U62:U71,"")) -> 10 | V12: =COUNTIF(V38:V48,"XTRA KPO")+COUNTIF(V38:V48,"M2")+COUNTIF(V38:V48,"M4")+COUNTIF(V38:V48,"M5")+COUNTIF(V38:V48,"KNOP")+IF(COUNTIF(V38:V48,"")>3,4,COUNTIF(V38:V48,""))+ COUNTIF(V62:V71,"XTRA KPO")+COUNTIF(V62:V71,"M2")+COUNTIF(V62:V71,"M4")+COUNTIF(V62:V71,"M5")+COUNTIF(V62:V71,"KNOP")+IF(COUNTIF(V62:V71,"")>3,4,COUNTIF(V62:V71,"")) -> 10 | W12: =COUNTIF(W38:W48,"XTRA KPO")+COUNTIF(W38:W48,"M2")+COUNTIF(W38:W48,"M4")+COUNTIF(W38:W48,"M5")+COUNTIF(W38:W48,"KNOP")+IF(COUNTIF(W38:W48,"")>3,4,COUNTIF(W38:W48,""))+ COUNTIF(W62:W71,"XTRA KPO")+COUNTIF(W62:W71,"M2")+COUNTIF(W62:W71,"M4")+COUNTIF(W62:W71,"M5")+COUNTIF(W62:W71,"KNOP")+IF(COUNTIF(W62:W71,"")>3,4,COUNTIF(W62:W71,"")) -> 10 | X12: =COUNTIF(X38:X48,"XTRA KPO")+COUNTIF(X38:X48,"M2")+COUNTIF(X38:X48,"M4")+COUNTIF(X38:X48,"M5")+COUNTIF(X38:X48,"KNOP")+IF(COUNTIF(X38:X48,"")>3,4,COUNTIF(X38:X48,""))+ COUNTIF(X62:X71,"XTRA KPO")+COUNTIF(X62:X71,"M2")+COUNTIF(X62:X71,"M4")+COUNTIF(X62:X71,"M5")+COUNTIF(X62:X71,"KNOP")+IF(COUNTIF(X62:X71,"")>3,4,COUNTIF(X62:X71,"")) -> 10 | Z12: =COUNTIF(Z38:Z48,"XTRA KPO")+COUNTIF(Z38:Z48,"M2")+COUNTIF(Z38:Z48,"M4")+COUNTIF(Z38:Z48,"M5")+COUNTIF(Z38:Z48,"KNOP")+IF(COUNTIF(Z38:Z48,"")>3,4,COUNTIF(Z38:Z48,""))+ COUNTIF(Z62:Z71,"XTRA KPO")+COUNTIF(Z62:Z71,"M2")+COUNTIF(Z62:Z71,"M4")+COUNTIF(Z62:Z71,"M5")+COUNTIF(Z62:Z71,"KNOP")+IF(COUNTIF(Z62:Z71,"")>3,4,COUNTIF(Z62:Z71,"")) -> 9 | AA12: =COUNTIF(AA38:AA48,"XTRA KPO")+COUNTIF(AA38:AA48,"M2")+COUNTIF(AA38:AA48,"M4")+COUNTIF(AA38:AA48,"M5")+COUNTIF(AA38:AA48,"KNOP")+IF(COUNTIF(AA38:AA48,"")>3,4,COUNTIF(AA38:AA48,""))+ COUNTIF(AA62:AA71,"XTRA KPO")+COUNTIF(AA62:AA71,"M2")+COUNTIF(AA62:AA71,"M4")+COUNTIF(AA62:AA71,"M5")+COUNTIF(AA62:AA71,"KNOP")+IF(COUNTIF(AA62:AA71,"")>3,4,COUNTIF(AA62:AA71,"")) -> 9 | AB12: =COUNTIF(AB38:AB48,"XTRA KPO")+COUNTIF(AB38:AB48,"M2")+COUNTIF(AB38:AB48,"M4")+COUNTIF(AB38:AB48,"M5")+COUNTIF(AB38:AB48,"KNOP")+IF(COUNTIF(AB38:AB48,"")>3,4,COUNTIF(AB38:AB48,""))+ COUNTIF(AB62:AB71,"XTRA KPO")+COUNTIF(AB62:AB71,"M2")+COUNTIF(AB62:AB71,"M4")+COUNTIF(AB62:AB71,"M5")+COUNTIF(AB62:AB71,"KNOP")+IF(COUNTIF(AB62:AB71,"")>3,4,COUNTIF(AB62:AB71,"")) -> 9 | AC12: =COUNTIF(AC38:AC48,"XTRA KPO")+COUNTIF(AC38:AC48,"M2")+COUNTIF(AC38:AC48,"M4")+COUNTIF(AC38:AC48,"M5")+COUNTIF(AC38:AC48,"KNOP")+IF(COUNTIF(AC38:AC48,"")>3,4,COUNTIF(AC38:AC48,""))+ COUNTIF(AC62:AC71,"XTRA KPO")+COUNTIF(AC62:AC71,"M2")+COUNTIF(AC62:AC71,"M4")+COUNTIF(AC62:AC71,"M5")+COUNTIF(AC62:AC71,"KNOP")+IF(COUNTIF(AC62:AC71,"")>3,4,COUNTIF(AC62:AC71,"")) -> 9 | AD12: =SUM(F12:AC12) -> 196
C13: WERKELIJKE planuren percent | F13: =(F8-(1.75*F11)-(1.75*F12))/((F8-(1.75*F11))) -> 0.5238095238 | G13: =(G8-(1.75*G11)-(1.75*G12))/((G8-(1.75*G11))) -> 0.5238095238 | H13: 0.5238095238 | I13: 0.5238095238 | K13: 0.5238095238 | L13: 0.5238095238 | M13: 0.5238095238 | N13: 0.5238095238 | P13: 0.5238095238 | Q13: 0.5238095238 | R13: 0.5238095238 | S13: 0.5238095238 | U13: 0.5238095238 | V13: 0.5238095238 | W13: 0.5238095238 | X13: 0.5238095238 | Z13: 0.5714285714 | AA13: 0.5714285714 | AB13: 0.5714285714 | AC13: 0.5714285714 | AD13: =(AD8-(1.75*AD11)-(1.75*AD12))/((AD8-(1.75*AD11))) -> 0.5333333333
A16: ELEKTRISCH | F16: =AD22 -> 0.3875
C17: MAX bezetting | F17: =(COUNTIF($B$50:$C$57,"><""")+COUNTIF($B$73:$C$80,"><"""))*1.75 -> 28 | G17: =(COUNTIF($B$50:$C$57,"><""")+COUNTIF($B$73:$C$80,"><"""))*1.75 -> 28 | H17: =(COUNTIF($B$50:$C$57,"><""")+COUNTIF($B$73:$C$80,"><"""))*1.75 -> 28 | I17: =(COUNTIF($B$50:$C$57,"><""")+COUNTIF($B$73:$C$80,"><"""))*1.75 -> 28 | K17: =(COUNTIF($B$50:$C$57,"><""")+COUNTIF($B$73:$C$80,"><"""))*1.75 -> 28 | L17: =(COUNTIF($B$50:$C$57,"><""")+COUNTIF($B$73:$C$80,"><"""))*1.75 -> 28 | M17: =(COUNTIF($B$50:$C$57,"><""")+COUNTIF($B$73:$C$80,"><"""))*1.75 -> 28 | N17: =(COUNTIF($B$50:$C$57,"><""")+COUNTIF($B$73:$C$80,"><"""))*1.75 -> 28 | P17: =(COUNTIF($B$50:$C$57,"><""")+COUNTIF($B$73:$C$80,"><"""))*1.75 -> 28 | Q17: =(COUNTIF($B$50:$C$57,"><""")+COUNTIF($B$73:$C$80,"><"""))*1.75 -> 28 | R17: =(COUNTIF($B$50:$C$57,"><""")+COUNTIF($B$73:$C$80,"><"""))*1.75 -> 28 | S17: =(COUNTIF($B$50:$C$57,"><""")+COUNTIF($B$73:$C$80,"><"""))*1.75 -> 28 | U17: =(COUNTIF($B$50:$C$57,"><""")+COUNTIF($B$73:$C$80,"><"""))*1.75 -> 28 | V17: =(COUNTIF($B$50:$C$57,"><""")+COUNTIF($B$73:$C$80,"><"""))*1.75 -> 28 | W17: =(COUNTIF($B$50:$C$57,"><""")+COUNTIF($B$73:$C$80,"><"""))*1.75 -> 28 | X17: =(COUNTIF($B$50:$C$57,"><""")+COUNTIF($B$73:$C$80,"><"""))*1.75 -> 28 | Z17: =(COUNTIF($B$50:$C$57,"><""")+COUNTIF($B$73:$C$80,"><"""))*1.75 -> 28 | AA17: =(COUNTIF($B$50:$C$57,"><""")+COUNTIF($B$73:$C$80,"><"""))*1.75 -> 28 | AB17: =(COUNTIF($B$50:$C$57,"><""")+COUNTIF($B$73:$C$80,"><"""))*1.75 -> 28 | AC17: =(COUNTIF($B$50:$C$57,"><""")+COUNTIF($B$73:$C$80,"><"""))*1.75 -> 28 | AD17: =SUM(F17:AC17) -> 560
C18: Uren ter beschikking | F18: =COUNTBLANK(F50:F57)*1.75+COUNTBLANK(F73:F80)*1.75 -> 24.5 | G18: =COUNTBLANK(G50:G57)*1.75+COUNTBLANK(G73:G80)*1.75 -> 24.5 | H18: =COUNTBLANK(H50:H57)*1.75+COUNTBLANK(H73:H80)*1.75 -> 24.5 | I18: =COUNTBLANK(I50:I57)*1.75+COUNTBLANK(I73:I80)*1.75 -> 24.5 | K18: =COUNTBLANK(K50:K57)*1.75+COUNTBLANK(K73:K80)*1.75 -> 24.5 | L18: =COUNTBLANK(L50:L57)*1.75+COUNTBLANK(L73:L80)*1.75 -> 24.5 | M18: =COUNTBLANK(M50:M57)*1.75+COUNTBLANK(M73:M80)*1.75 -> 24.5 | N18: =COUNTBLANK(N50:N57)*1.75+COUNTBLANK(N73:N80)*1.75 -> 24.5 | P18: =COUNTBLANK(P50:P57)*1.75+COUNTBLANK(P73:P80)*1.75 -> 24.5 | Q18: =COUNTBLANK(Q50:Q57)*1.75+COUNTBLANK(Q73:Q80)*1.75 -> 24.5 | R18: =COUNTBLANK(R50:R57)*1.75+COUNTBLANK(R73:R80)*1.75 -> 24.5 | S18: =COUNTBLANK(S50:S57)*1.75+COUNTBLANK(S73:S80)*1.75 -> 24.5 | U18: =COUNTBLANK(U50:U57)*1.75+COUNTBLANK(U73:U80)*1.75 -> 24.5 | V18: =COUNTBLANK(V50:V57)*1.75+COUNTBLANK(V73:V80)*1.75 -> 24.5 | W18: =COUNTBLANK(W50:W57)*1.75+COUNTBLANK(W73:W80)*1.75 -> 24.5 | X18: =COUNTBLANK(X50:X57)*1.75+COUNTBLANK(X73:X80)*1.75 -> 24.5 | Z18: =COUNTBLANK(Z50:Z57)*1.75+COUNTBLANK(Z73:Z80)*1.75 -> 26.25 | AA18: =COUNTBLANK(AA50:AA57)*1.75+COUNTBLANK(AA73:AA80)*1.75 -> 26.25 | AB18: =COUNTBLANK(AB50:AB57)*1.75+COUNTBLANK(AB73:AB80)*1.75 -> 26.25 | AC18: =COUNTBLANK(AC50:AC57)*1.75+COUNTBLANK(AC73:AC80)*1.75 -> 26.25
C19: Percentage Geheel | F19: =+F18/F17 -> 0.875 | G19: =+G18/G17 -> 0.875 | H19: 0.875 | I19: 0.875 | K19: 0.875 | L19: 0.875 | M19: 0.875 | N19: 0.875 | P19: 0.875 | Q19: 0.875 | R19: 0.875 | S19: 0.875 | U19: 0.875 | V19: 0.875 | W19: 0.875 | X19: 0.875 | Z19: 0.9375 | AA19: 0.9375 | AB19: 0.9375 | AC19: 0.9375
C20: Verlof | F20: =COUNTIF(F50:F57,"NACHT")+COUNTIF(F50:F57,"WD")+COUNTIF(F50:F57,"WN")+COUNTIF(F50:F57,"EV")+COUNTIF(F50:F57,"EVU")+COUNTIF(F50:F57,"EVVJ")+COUNTIF(F50:F57,"EVUV")+COUNTIF(F50:F57,"WV") +COUNTIF(F50:F57,"TK")+COUNTIF(F50:F57,"EDUC")+COUNTIF(F50:F57,"ROW")+COUNTIF(F50:F57,"ZIEM")+COUNTIF(F50:F57,"EXTERN")+ COUNTIF(F73:F80,"NACHT")+COUNTIF(F73:F80,"WD")+COUNTIF(F73:F80,"WN")+COUNTIF(F73:F80,"EV")+COUNTIF(F73:F80,"EVU")+COUNTIF(F73:F80,"EVVJ")+COUNTIF(F73:F80,"EVUV")+COUNTIF(F73:F80,"WV") +COUNTIF(F73:F80,"TK")+COUNTIF(F73:F80,"EDUC")+COUNTIF(F73:F80,"ROW")+COUNTIF(F73:F80,"ZIEM")+COUNTIF(F73:F80,"EXTERN") -> 0 | G20: =COUNTIF(G50:G57,"NACHT")+COUNTIF(G50:G57,"WD")+COUNTIF(G50:G57,"WN")+COUNTIF(G50:G57,"EV")+COUNTIF(G50:G57,"EVU")+COUNTIF(G50:G57,"EVVJ")+COUNTIF(G50:G57,"EVUV")+COUNTIF(G50:G57,"WV") +COUNTIF(G50:G57,"TK")+COUNTIF(G50:G57,"EDUC")+COUNTIF(G50:G57,"ROW")+COUNTIF(G50:G57,"ZIEM")+COUNTIF(G50:G57,"EXTERN")+ COUNTIF(G73:G80,"NACHT")+COUNTIF(G73:G80,"WD")+COUNTIF(G73:G80,"WN")+COUNTIF(G73:G80,"EV")+COUNTIF(G73:G80,"EVU")+COUNTIF(G73:G80,"EVVJ")+COUNTIF(G73:G80,"EVUV")+COUNTIF(G73:G80,"WV") +COUNTIF(G73:G80,"TK")+COUNTIF(G73:G80,"EDUC")+COUNTIF(G73:G80,"ROW")+COUNTIF(G73:G80,"ZIEM")+COUNTIF(G73:G80,"EXTERN") -> 0 | H20: =COUNTIF(H50:H57,"NACHT")+COUNTIF(H50:H57,"WD")+COUNTIF(H50:H57,"WN")+COUNTIF(H50:H57,"EV")+COUNTIF(H50:H57,"EVU")+COUNTIF(H50:H57,"EVVJ")+COUNTIF(H50:H57,"EVUV")+COUNTIF(H50:H57,"WV") +COUNTIF(H50:H57,"TK")+COUNTIF(H50:H57,"EDUC")+COUNTIF(H50:H57,"ROW")+COUNTIF(H50:H57,"ZIEM")+COUNTIF(H50:H57,"EXTERN")+ COUNTIF(H73:H80,"NACHT")+COUNTIF(H73:H80,"WD")+COUNTIF(H73:H80,"WN")+COUNTIF(H73:H80,"EV")+COUNTIF(H73:H80,"EVU")+COUNTIF(H73:H80,"EVVJ")+COUNTIF(H73:H80,"EVUV")+COUNTIF(H73:H80,"WV") +COUNTIF(H73:H80,"TK")+COUNTIF(H73:H80,"EDUC")+COUNTIF(H73:H80,"ROW")+COUNTIF(H73:H80,"ZIEM")+COUNTIF(H73:H80,"EXTERN") -> 0 | I20: =COUNTIF(I50:I57,"NACHT")+COUNTIF(I50:I57,"WD")+COUNTIF(I50:I57,"WN")+COUNTIF(I50:I57,"EV")+COUNTIF(I50:I57,"EVU")+COUNTIF(I50:I57,"EVVJ")+COUNTIF(I50:I57,"EVUV")+COUNTIF(I50:I57,"WV") +COUNTIF(I50:I57,"TK")+COUNTIF(I50:I57,"EDUC")+COUNTIF(I50:I57,"ROW")+COUNTIF(I50:I57,"ZIEM")+COUNTIF(I50:I57,"EXTERN")+ COUNTIF(I73:I80,"NACHT")+COUNTIF(I73:I80,"WD")+COUNTIF(I73:I80,"WN")+COUNTIF(I73:I80,"EV")+COUNTIF(I73:I80,"EVU")+COUNTIF(I73:I80,"EVVJ")+COUNTIF(I73:I80,"EVUV")+COUNTIF(I73:I80,"WV") +COUNTIF(I73:I80,"TK")+COUNTIF(I73:I80,"EDUC")+COUNTIF(I73:I80,"ROW")+COUNTIF(I73:I80,"ZIEM")+COUNTIF(I73:I80,"EXTERN") -> 0 | K20: =COUNTIF(K50:K57,"NACHT")+COUNTIF(K50:K57,"WD")+COUNTIF(K50:K57,"WN")+COUNTIF(K50:K57,"EV")+COUNTIF(K50:K57,"EVU")+COUNTIF(K50:K57,"EVVJ")+COUNTIF(K50:K57,"EVUV")+COUNTIF(K50:K57,"WV") +COUNTIF(K50:K57,"TK")+COUNTIF(K50:K57,"EDUC")+COUNTIF(K50:K57,"ROW")+COUNTIF(K50:K57,"ZIEM")+COUNTIF(K50:K57,"EXTERN")+ COUNTIF(K73:K80,"NACHT")+COUNTIF(K73:K80,"WD")+COUNTIF(K73:K80,"WN")+COUNTIF(K73:K80,"EV")+COUNTIF(K73:K80,"EVU")+COUNTIF(K73:K80,"EVVJ")+COUNTIF(K73:K80,"EVUV")+COUNTIF(K73:K80,"WV") +COUNTIF(K73:K80,"TK")+COUNTIF(K73:K80,"EDUC")+COUNTIF(K73:K80,"ROW")+COUNTIF(K73:K80,"ZIEM")+COUNTIF(K73:K80,"EXTERN") -> 0 | L20: =COUNTIF(L50:L57,"NACHT")+COUNTIF(L50:L57,"WD")+COUNTIF(L50:L57,"WN")+COUNTIF(L50:L57,"EV")+COUNTIF(L50:L57,"EVU")+COUNTIF(L50:L57,"EVVJ")+COUNTIF(L50:L57,"EVUV")+COUNTIF(L50:L57,"WV") +COUNTIF(L50:L57,"TK")+COUNTIF(L50:L57,"EDUC")+COUNTIF(L50:L57,"ROW")+COUNTIF(L50:L57,"ZIEM")+COUNTIF(L50:L57,"EXTERN")+ COUNTIF(L73:L80,"NACHT")+COUNTIF(L73:L80,"WD")+COUNTIF(L73:L80,"WN")+COUNTIF(L73:L80,"EV")+COUNTIF(L73:L80,"EVU")+COUNTIF(L73:L80,"EVVJ")+COUNTIF(L73:L80,"EVUV")+COUNTIF(L73:L80,"WV") +COUNTIF(L73:L80,"TK")+COUNTIF(L73:L80,"EDUC")+COUNTIF(L73:L80,"ROW")+COUNTIF(L73:L80,"ZIEM")+COUNTIF(L73:L80,"EXTERN") -> 0 | M20: =COUNTIF(M50:M57,"NACHT")+COUNTIF(M50:M57,"WD")+COUNTIF(M50:M57,"WN")+COUNTIF(M50:M57,"EV")+COUNTIF(M50:M57,"EVU")+COUNTIF(M50:M57,"EVVJ")+COUNTIF(M50:M57,"EVUV")+COUNTIF(M50:M57,"WV") +COUNTIF(M50:M57,"TK")+COUNTIF(M50:M57,"EDUC")+COUNTIF(M50:M57,"ROW")+COUNTIF(M50:M57,"ZIEM")+COUNTIF(M50:M57,"EXTERN")+ COUNTIF(M73:M80,"NACHT")+COUNTIF(M73:M80,"WD")+COUNTIF(M73:M80,"WN")+COUNTIF(M73:M80,"EV")+COUNTIF(M73:M80,"EVU")+COUNTIF(M73:M80,"EVVJ")+COUNTIF(M73:M80,"EVUV")+COUNTIF(M73:M80,"WV") +COUNTIF(M73:M80,"TK")+COUNTIF(M73:M80,"EDUC")+COUNTIF(M73:M80,"ROW")+COUNTIF(M73:M80,"ZIEM")+COUNTIF(M73:M80,"EXTERN") -> 0 | N20: =COUNTIF(N50:N57,"NACHT")+COUNTIF(N50:N57,"WD")+COUNTIF(N50:N57,"WN")+COUNTIF(N50:N57,"EV")+COUNTIF(N50:N57,"EVU")+COUNTIF(N50:N57,"EVVJ")+COUNTIF(N50:N57,"EVUV")+COUNTIF(N50:N57,"WV") +COUNTIF(N50:N57,"TK")+COUNTIF(N50:N57,"EDUC")+COUNTIF(N50:N57,"ROW")+COUNTIF(N50:N57,"ZIEM")+COUNTIF(N50:N57,"EXTERN")+ COUNTIF(N73:N80,"NACHT")+COUNTIF(N73:N80,"WD")+COUNTIF(N73:N80,"WN")+COUNTIF(N73:N80,"EV")+COUNTIF(N73:N80,"EVU")+COUNTIF(N73:N80,"EVVJ")+COUNTIF(N73:N80,"EVUV")+COUNTIF(N73:N80,"WV") +COUNTIF(N73:N80,"TK")+COUNTIF(N73:N80,"EDUC")+COUNTIF(N73:N80,"ROW")+COUNTIF(N73:N80,"ZIEM")+COUNTIF(N73:N80,"EXTERN") -> 0 | P20: =COUNTIF(P50:P57,"NACHT")+COUNTIF(P50:P57,"WD")+COUNTIF(P50:P57,"WN")+COUNTIF(P50:P57,"EV")+COUNTIF(P50:P57,"EVU")+COUNTIF(P50:P57,"EVVJ")+COUNTIF(P50:P57,"EVUV")+COUNTIF(P50:P57,"WV") +COUNTIF(P50:P57,"TK")+COUNTIF(P50:P57,"EDUC")+COUNTIF(P50:P57,"ROW")+COUNTIF(P50:P57,"ZIEM")+COUNTIF(P50:P57,"EXTERN")+ COUNTIF(P73:P80,"NACHT")+COUNTIF(P73:P80,"WD")+COUNTIF(P73:P80,"WN")+COUNTIF(P73:P80,"EV")+COUNTIF(P73:P80,"EVU")+COUNTIF(P73:P80,"EVVJ")+COUNTIF(P73:P80,"EVUV")+COUNTIF(P73:P80,"WV") +COUNTIF(P73:P80,"TK")+COUNTIF(P73:P80,"EDUC")+COUNTIF(P73:P80,"ROW")+COUNTIF(P73:P80,"ZIEM")+COUNTIF(P73:P80,"EXTERN") -> 0 | Q20: =COUNTIF(Q50:Q57,"NACHT")+COUNTIF(Q50:Q57,"WD")+COUNTIF(Q50:Q57,"WN")+COUNTIF(Q50:Q57,"EV")+COUNTIF(Q50:Q57,"EVU")+COUNTIF(Q50:Q57,"EVVJ")+COUNTIF(Q50:Q57,"EVUV")+COUNTIF(Q50:Q57,"WV") +COUNTIF(Q50:Q57,"TK")+COUNTIF(Q50:Q57,"EDUC")+COUNTIF(Q50:Q57,"ROW")+COUNTIF(Q50:Q57,"ZIEM")+COUNTIF(Q50:Q57,"EXTERN")+ COUNTIF(Q73:Q80,"NACHT")+COUNTIF(Q73:Q80,"WD")+COUNTIF(Q73:Q80,"WN")+COUNTIF(Q73:Q80,"EV")+COUNTIF(Q73:Q80,"EVU")+COUNTIF(Q73:Q80,"EVVJ")+COUNTIF(Q73:Q80,"EVUV")+COUNTIF(Q73:Q80,"WV") +COUNTIF(Q73:Q80,"TK")+COUNTIF(Q73:Q80,"EDUC")+COUNTIF(Q73:Q80,"ROW")+COUNTIF(Q73:Q80,"ZIEM")+COUNTIF(Q73:Q80,"EXTERN") -> 0 | R20: =COUNTIF(R50:R57,"NACHT")+COUNTIF(R50:R57,"WD")+COUNTIF(R50:R57,"WN")+COUNTIF(R50:R57,"EV")+COUNTIF(R50:R57,"EVU")+COUNTIF(R50:R57,"EVVJ")+COUNTIF(R50:R57,"EVUV")+COUNTIF(R50:R57,"WV") +COUNTIF(R50:R57,"TK")+COUNTIF(R50:R57,"EDUC")+COUNTIF(R50:R57,"ROW")+COUNTIF(R50:R57,"ZIEM")+COUNTIF(R50:R57,"EXTERN")+ COUNTIF(R73:R80,"NACHT")+COUNTIF(R73:R80,"WD")+COUNTIF(R73:R80,"WN")+COUNTIF(R73:R80,"EV")+COUNTIF(R73:R80,"EVU")+COUNTIF(R73:R80,"EVVJ")+COUNTIF(R73:R80,"EVUV")+COUNTIF(R73:R80,"WV") +COUNTIF(R73:R80,"TK")+COUNTIF(R73:R80,"EDUC")+COUNTIF(R73:R80,"ROW")+COUNTIF(R73:R80,"ZIEM")+COUNTIF(R73:R80,"EXTERN") -> 0 | S20: =COUNTIF(S50:S57,"NACHT")+COUNTIF(S50:S57,"WD")+COUNTIF(S50:S57,"WN")+COUNTIF(S50:S57,"EV")+COUNTIF(S50:S57,"EVU")+COUNTIF(S50:S57,"EVVJ")+COUNTIF(S50:S57,"EVUV")+COUNTIF(S50:S57,"WV") +COUNTIF(S50:S57,"TK")+COUNTIF(S50:S57,"EDUC")+COUNTIF(S50:S57,"ROW")+COUNTIF(S50:S57,"ZIEM")+COUNTIF(S50:S57,"EXTERN")+ COUNTIF(S73:S80,"NACHT")+COUNTIF(S73:S80,"WD")+COUNTIF(S73:S80,"WN")+COUNTIF(S73:S80,"EV")+COUNTIF(S73:S80,"EVU")+COUNTIF(S73:S80,"EVVJ")+COUNTIF(S73:S80,"EVUV")+COUNTIF(S73:S80,"WV") +COUNTIF(S73:S80,"TK")+COUNTIF(S73:S80,"EDUC")+COUNTIF(S73:S80,"ROW")+COUNTIF(S73:S80,"ZIEM")+COUNTIF(S73:S80,"EXTERN") -> 0 | U20: =COUNTIF(U50:U57,"NACHT")+COUNTIF(U50:U57,"WD")+COUNTIF(U50:U57,"WN")+COUNTIF(U50:U57,"EV")+COUNTIF(U50:U57,"EVU")+COUNTIF(U50:U57,"EVVJ")+COUNTIF(U50:U57,"EVUV")+COUNTIF(U50:U57,"WV") +COUNTIF(U50:U57,"TK")+COUNTIF(U50:U57,"EDUC")+COUNTIF(U50:U57,"ROW")+COUNTIF(U50:U57,"ZIEM")+COUNTIF(U50:U57,"EXTERN")+ COUNTIF(U73:U80,"NACHT")+COUNTIF(U73:U80,"WD")+COUNTIF(U73:U80,"WN")+COUNTIF(U73:U80,"EV")+COUNTIF(U73:U80,"EVU")+COUNTIF(U73:U80,"EVVJ")+COUNTIF(U73:U80,"EVUV")+COUNTIF(U73:U80,"WV") +COUNTIF(U73:U80,"TK")+COUNTIF(U73:U80,"EDUC")+COUNTIF(U73:U80,"ROW")+COUNTIF(U73:U80,"ZIEM")+COUNTIF(U73:U80,"EXTERN") -> 0 | V20: =COUNTIF(V50:V57,"NACHT")+COUNTIF(V50:V57,"WD")+COUNTIF(V50:V57,"WN")+COUNTIF(V50:V57,"EV")+COUNTIF(V50:V57,"EVU")+COUNTIF(V50:V57,"EVVJ")+COUNTIF(V50:V57,"EVUV")+COUNTIF(V50:V57,"WV") +COUNTIF(V50:V57,"TK")+COUNTIF(V50:V57,"EDUC")+COUNTIF(V50:V57,"ROW")+COUNTIF(V50:V57,"ZIEM")+COUNTIF(V50:V57,"EXTERN")+ COUNTIF(V73:V80,"NACHT")+COUNTIF(V73:V80,"WD")+COUNTIF(V73:V80,"WN")+COUNTIF(V73:V80,"EV")+COUNTIF(V73:V80,"EVU")+COUNTIF(V73:V80,"EVVJ")+COUNTIF(V73:V80,"EVUV")+COUNTIF(V73:V80,"WV") +COUNTIF(V73:V80,"TK")+COUNTIF(V73:V80,"EDUC")+COUNTIF(V73:V80,"ROW")+COUNTIF(V73:V80,"ZIEM")+COUNTIF(V73:V80,"EXTERN") -> 0 | W20: =COUNTIF(W50:W57,"NACHT")+COUNTIF(W50:W57,"WD")+COUNTIF(W50:W57,"WN")+COUNTIF(W50:W57,"EV")+COUNTIF(W50:W57,"EVU")+COUNTIF(W50:W57,"EVVJ")+COUNTIF(W50:W57,"EVUV")+COUNTIF(W50:W57,"WV") +COUNTIF(W50:W57,"TK")+COUNTIF(W50:W57,"EDUC")+COUNTIF(W50:W57,"ROW")+COUNTIF(W50:W57,"ZIEM")+COUNTIF(W50:W57,"EXTERN")+ COUNTIF(W73:W80,"NACHT")+COUNTIF(W73:W80,"WD")+COUNTIF(W73:W80,"WN")+COUNTIF(W73:W80,"EV")+COUNTIF(W73:W80,"EVU")+COUNTIF(W73:W80,"EVVJ")+COUNTIF(W73:W80,"EVUV")+COUNTIF(W73:W80,"WV") +COUNTIF(W73:W80,"TK")+COUNTIF(W73:W80,"EDUC")+COUNTIF(W73:W80,"ROW")+COUNTIF(W73:W80,"ZIEM")+COUNTIF(W73:W80,"EXTERN") -> 0 | X20: =COUNTIF(X50:X57,"NACHT")+COUNTIF(X50:X57,"WD")+COUNTIF(X50:X57,"WN")+COUNTIF(X50:X57,"EV")+COUNTIF(X50:X57,"EVU")+COUNTIF(X50:X57,"EVVJ")+COUNTIF(X50:X57,"EVUV")+COUNTIF(X50:X57,"WV") +COUNTIF(X50:X57,"TK")+COUNTIF(X50:X57,"EDUC")+COUNTIF(X50:X57,"ROW")+COUNTIF(X50:X57,"ZIEM")+COUNTIF(X50:X57,"EXTERN")+ COUNTIF(X73:X80,"NACHT")+COUNTIF(X73:X80,"WD")+COUNTIF(X73:X80,"WN")+COUNTIF(X73:X80,"EV")+COUNTIF(X73:X80,"EVU")+COUNTIF(X73:X80,"EVVJ")+COUNTIF(X73:X80,"EVUV")+COUNTIF(X73:X80,"WV") +COUNTIF(X73:X80,"TK")+COUNTIF(X73:X80,"EDUC")+COUNTIF(X73:X80,"ROW")+COUNTIF(X73:X80,"ZIEM")+COUNTIF(X73:X80,"EXTERN") -> 0 | Z20: =COUNTIF(Z50:Z57,"NACHT")+COUNTIF(Z50:Z57,"WD")+COUNTIF(Z50:Z57,"WN")+COUNTIF(Z50:Z57,"EV")+COUNTIF(Z50:Z57,"EVU")+COUNTIF(Z50:Z57,"EVVJ")+COUNTIF(Z50:Z57,"EVUV")+COUNTIF(Z50:Z57,"WV") +COUNTIF(Z50:Z57,"TK")+COUNTIF(Z50:Z57,"EDUC")+COUNTIF(Z50:Z57,"ROW")+COUNTIF(Z50:Z57,"ZIEM")+COUNTIF(Z50:Z57,"EXTERN")+ COUNTIF(Z73:Z80,"NACHT")+COUNTIF(Z73:Z80,"WD")+COUNTIF(Z73:Z80,"WN")+COUNTIF(Z73:Z80,"EV")+COUNTIF(Z73:Z80,"EVU")+COUNTIF(Z73:Z80,"EVVJ")+COUNTIF(Z73:Z80,"EVUV")+COUNTIF(Z73:Z80,"WV") +COUNTIF(Z73:Z80,"TK")+COUNTIF(Z73:Z80,"EDUC")+COUNTIF(Z73:Z80,"ROW")+COUNTIF(Z73:Z80,"ZIEM")+COUNTIF(Z73:Z80,"EXTERN") -> 0 | AA20: =COUNTIF(AA50:AA57,"NACHT")+COUNTIF(AA50:AA57,"WD")+COUNTIF(AA50:AA57,"WN")+COUNTIF(AA50:AA57,"EV")+COUNTIF(AA50:AA57,"EVU")+COUNTIF(AA50:AA57,"EVVJ")+COUNTIF(AA50:AA57,"EVUV")+COUNTIF(AA50:AA57,"WV") +COUNTIF(AA50:AA57,"TK")+COUNTIF(AA50:AA57,"EDUC")+COUNTIF(AA50:AA57,"ROW")+COUNTIF(AA50:AA57,"ZIEM")+COUNTIF(AA50:AA57,"EXTERN")+ COUNTIF(AA73:AA80,"NACHT")+COUNTIF(AA73:AA80,"WD")+COUNTIF(AA73:AA80,"WN")+COUNTIF(AA73:AA80,"EV")+COUNTIF(AA73:AA80,"EVU")+COUNTIF(AA73:AA80,"EVVJ")+COUNTIF(AA73:AA80,"EVUV")+COUNTIF(AA73:AA80,"WV") +COUNTIF(AA73:AA80,"TK")+COUNTIF(AA73:AA80,"EDUC")+COUNTIF(AA73:AA80,"ROW")+COUNTIF(AA73:AA80,"ZIEM")+COUNTIF(AA73:AA80,"EXTERN") -> 0 | AB20: =COUNTIF(AB50:AB57,"NACHT")+COUNTIF(AB50:AB57,"WD")+COUNTIF(AB50:AB57,"WN")+COUNTIF(AB50:AB57,"EV")+COUNTIF(AB50:AB57,"EVU")+COUNTIF(AB50:AB57,"EVVJ")+COUNTIF(AB50:AB57,"EVUV")+COUNTIF(AB50:AB57,"WV") +COUNTIF(AB50:AB57,"TK")+COUNTIF(AB50:AB57,"EDUC")+COUNTIF(AB50:AB57,"ROW")+COUNTIF(AB50:AB57,"ZIEM")+COUNTIF(AB50:AB57,"EXTERN")+ COUNTIF(AB73:AB80,"NACHT")+COUNTIF(AB73:AB80,"WD")+COUNTIF(AB73:AB80,"WN")+COUNTIF(AB73:AB80,"EV")+COUNTIF(AB73:AB80,"EVU")+COUNTIF(AB73:AB80,"EVVJ")+COUNTIF(AB73:AB80,"EVUV")+COUNTIF(AB73:AB80,"WV") +COUNTIF(AB73:AB80,"TK")+COUNTIF(AB73:AB80,"EDUC")+COUNTIF(AB73:AB80,"ROW")+COUNTIF(AB73:AB80,"ZIEM")+COUNTIF(AB73:AB80,"EXTERN") -> 0 | AC20: =COUNTIF(AC50:AC57,"NACHT")+COUNTIF(AC50:AC57,"WD")+COUNTIF(AC50:AC57,"WN")+COUNTIF(AC50:AC57,"EV")+COUNTIF(AC50:AC57,"EVU")+COUNTIF(AC50:AC57,"EVVJ")+COUNTIF(AC50:AC57,"EVUV")+COUNTIF(AC50:AC57,"WV") +COUNTIF(AC50:AC57,"TK")+COUNTIF(AC50:AC57,"EDUC")+COUNTIF(AC50:AC57,"ROW")+COUNTIF(AC50:AC57,"ZIEM")+COUNTIF(AC50:AC57,"EXTERN")+ COUNTIF(AC73:AC80,"NACHT")+COUNTIF(AC73:AC80,"WD")+COUNTIF(AC73:AC80,"WN")+COUNTIF(AC73:AC80,"EV")+COUNTIF(AC73:AC80,"EVU")+COUNTIF(AC73:AC80,"EVVJ")+COUNTIF(AC73:AC80,"EVUV")+COUNTIF(AC73:AC80,"WV") +COUNTIF(AC73:AC80,"TK")+COUNTIF(AC73:AC80,"EDUC")+COUNTIF(AC73:AC80,"ROW")+COUNTIF(AC73:AC80,"ZIEM")+COUNTIF(AC73:AC80,"EXTERN") -> 0 | AD20: =SUM(F20:AC20) -> 0
C21: Aanwezig | F21: =COUNTIF(F50:F57,"XTRA KPO")+COUNTIF(F50:F57,"M2")+COUNTIF(F50:F57,"M4")+COUNTIF(F50:F57,"M5")+COUNTIF(F50:F57,"KNOP")+IF(COUNTIF(F50:F57,"")>3,4,COUNTIF(F50:F57,""))+ COUNTIF(F73:F80,"XTRA KPO")+COUNTIF(F73:F80,"M2")+COUNTIF(F73:F80,"M4")+COUNTIF(F73:F80,"M5")+COUNTIF(F73:F80,"KNOP")+IF(COUNTIF(F73:F80,"")>3,4,COUNTIF(F73:F80,"")) -> 10 | G21: =COUNTIF(G50:G57,"XTRA KPO")+COUNTIF(G50:G57,"M2")+COUNTIF(G50:G57,"M4")+COUNTIF(G50:G57,"M5")+COUNTIF(G50:G57,"KNOP")+IF(COUNTIF(G50:G57,"")>3,4,COUNTIF(G50:G57,""))+ COUNTIF(G73:G80,"XTRA KPO")+COUNTIF(G73:G80,"M2")+COUNTIF(G73:G80,"M4")+COUNTIF(G73:G80,"M5")+COUNTIF(G73:G80,"KNOP")+IF(COUNTIF(G73:G80,"")>3,4,COUNTIF(G73:G80,"")) -> 10 | H21: =COUNTIF(H50:H57,"XTRA KPO")+COUNTIF(H50:H57,"M2")+COUNTIF(H50:H57,"M4")+COUNTIF(H50:H57,"M5")+COUNTIF(H50:H57,"KNOP")+IF(COUNTIF(H50:H57,"")>3,4,COUNTIF(H50:H57,""))+ COUNTIF(H73:H80,"XTRA KPO")+COUNTIF(H73:H80,"M2")+COUNTIF(H73:H80,"M4")+COUNTIF(H73:H80,"M5")+COUNTIF(H73:H80,"KNOP")+IF(COUNTIF(H73:H80,"")>3,4,COUNTIF(H73:H80,"")) -> 10 | I21: =COUNTIF(I50:I57,"XTRA KPO")+COUNTIF(I50:I57,"M2")+COUNTIF(I50:I57,"M4")+COUNTIF(I50:I57,"M5")+COUNTIF(I50:I57,"KNOP")+IF(COUNTIF(I50:I57,"")>3,4,COUNTIF(I50:I57,""))+ COUNTIF(I73:I80,"XTRA KPO")+COUNTIF(I73:I80,"M2")+COUNTIF(I73:I80,"M4")+COUNTIF(I73:I80,"M5")+COUNTIF(I73:I80,"KNOP")+IF(COUNTIF(I73:I80,"")>3,4,COUNTIF(I73:I80,"")) -> 10 | K21: =COUNTIF(K50:K57,"XTRA KPO")+COUNTIF(K50:K57,"M2")+COUNTIF(K50:K57,"M4")+COUNTIF(K50:K57,"M5")+COUNTIF(K50:K57,"KNOP")+IF(COUNTIF(K50:K57,"")>3,4,COUNTIF(K50:K57,""))+ COUNTIF(K73:K80,"XTRA KPO")+COUNTIF(K73:K80,"M2")+COUNTIF(K73:K80,"M4")+COUNTIF(K73:K80,"M5")+COUNTIF(K73:K80,"KNOP")+IF(COUNTIF(K73:K80,"")>3,4,COUNTIF(K73:K80,"")) -> 10 | L21: =COUNTIF(L50:L57,"XTRA KPO")+COUNTIF(L50:L57,"M2")+COUNTIF(L50:L57,"M4")+COUNTIF(L50:L57,"M5")+COUNTIF(L50:L57,"KNOP")+IF(COUNTIF(L50:L57,"")>3,4,COUNTIF(L50:L57,""))+ COUNTIF(L73:L80,"XTRA KPO")+COUNTIF(L73:L80,"M2")+COUNTIF(L73:L80,"M4")+COUNTIF(L73:L80,"M5")+COUNTIF(L73:L80,"KNOP")+IF(COUNTIF(L73:L80,"")>3,4,COUNTIF(L73:L80,"")) -> 10 | M21: =COUNTIF(M50:M57,"XTRA KPO")+COUNTIF(M50:M57,"M2")+COUNTIF(M50:M57,"M4")+COUNTIF(M50:M57,"M5")+COUNTIF(M50:M57,"KNOP")+IF(COUNTIF(M50:M57,"")>3,4,COUNTIF(M50:M57,""))+ COUNTIF(M73:M80,"XTRA KPO")+COUNTIF(M73:M80,"M2")+COUNTIF(M73:M80,"M4")+COUNTIF(M73:M80,"M5")+COUNTIF(M73:M80,"KNOP")+IF(COUNTIF(M73:M80,"")>3,4,COUNTIF(M73:M80,"")) -> 10 | N21: =COUNTIF(N50:N57,"XTRA KPO")+COUNTIF(N50:N57,"M2")+COUNTIF(N50:N57,"M4")+COUNTIF(N50:N57,"M5")+COUNTIF(N50:N57,"KNOP")+IF(COUNTIF(N50:N57,"")>3,4,COUNTIF(N50:N57,""))+ COUNTIF(N73:N80,"XTRA KPO")+COUNTIF(N73:N80,"M2")+COUNTIF(N73:N80,"M4")+COUNTIF(N73:N80,"M5")+COUNTIF(N73:N80,"KNOP")+IF(COUNTIF(N73:N80,"")>3,4,COUNTIF(N73:N80,"")) -> 10 | P21: =COUNTIF(P50:P57,"XTRA KPO")+COUNTIF(P50:P57,"M2")+COUNTIF(P50:P57,"M4")+COUNTIF(P50:P57,"M5")+COUNTIF(P50:P57,"KNOP")+IF(COUNTIF(P50:P57,"")>3,4,COUNTIF(P50:P57,""))+ COUNTIF(P73:P80,"XTRA KPO")+COUNTIF(P73:P80,"M2")+COUNTIF(P73:P80,"M4")+COUNTIF(P73:P80,"M5")+COUNTIF(P73:P80,"KNOP")+IF(COUNTIF(P73:P80,"")>3,4,COUNTIF(P73:P80,"")) -> 10 | Q21: =COUNTIF(Q50:Q57,"XTRA KPO")+COUNTIF(Q50:Q57,"M2")+COUNTIF(Q50:Q57,"M4")+COUNTIF(Q50:Q57,"M5")+COUNTIF(Q50:Q57,"KNOP")+IF(COUNTIF(Q50:Q57,"")>3,4,COUNTIF(Q50:Q57,""))+ COUNTIF(Q73:Q80,"XTRA KPO")+COUNTIF(Q73:Q80,"M2")+COUNTIF(Q73:Q80,"M4")+COUNTIF(Q73:Q80,"M5")+COUNTIF(Q73:Q80,"KNOP")+IF(COUNTIF(Q73:Q80,"")>3,4,COUNTIF(Q73:Q80,"")) -> 10 | R21: =COUNTIF(R50:R57,"XTRA KPO")+COUNTIF(R50:R57,"M2")+COUNTIF(R50:R57,"M4")+COUNTIF(R50:R57,"M5")+COUNTIF(R50:R57,"KNOP")+IF(COUNTIF(R50:R57,"")>3,4,COUNTIF(R50:R57,""))+ COUNTIF(R73:R80,"XTRA KPO")+COUNTIF(R73:R80,"M2")+COUNTIF(R73:R80,"M4")+COUNTIF(R73:R80,"M5")+COUNTIF(R73:R80,"KNOP")+IF(COUNTIF(R73:R80,"")>3,4,COUNTIF(R73:R80,"")) -> 10 | S21: =COUNTIF(S50:S57,"XTRA KPO")+COUNTIF(S50:S57,"M2")+COUNTIF(S50:S57,"M4")+COUNTIF(S50:S57,"M5")+COUNTIF(S50:S57,"KNOP")+IF(COUNTIF(S50:S57,"")>3,4,COUNTIF(S50:S57,""))+ COUNTIF(S73:S80,"XTRA KPO")+COUNTIF(S73:S80,"M2")+COUNTIF(S73:S80,"M4")+COUNTIF(S73:S80,"M5")+COUNTIF(S73:S80,"KNOP")+IF(COUNTIF(S73:S80,"")>3,4,COUNTIF(S73:S80,"")) -> 10 | U21: =COUNTIF(U50:U57,"XTRA KPO")+COUNTIF(U50:U57,"M2")+COUNTIF(U50:U57,"M4")+COUNTIF(U50:U57,"M5")+COUNTIF(U50:U57,"KNOP")+IF(COUNTIF(U50:U57,"")>3,4,COUNTIF(U50:U57,""))+ COUNTIF(U73:U80,"XTRA KPO")+COUNTIF(U73:U80,"M2")+COUNTIF(U73:U80,"M4")+COUNTIF(U73:U80,"M5")+COUNTIF(U73:U80,"KNOP")+IF(COUNTIF(U73:U80,"")>3,4,COUNTIF(U73:U80,"")) -> 10 | V21: =COUNTIF(V50:V57,"XTRA KPO")+COUNTIF(V50:V57,"M2")+COUNTIF(V50:V57,"M4")+COUNTIF(V50:V57,"M5")+COUNTIF(V50:V57,"KNOP")+IF(COUNTIF(V50:V57,"")>3,4,COUNTIF(V50:V57,""))+ COUNTIF(V73:V80,"XTRA KPO")+COUNTIF(V73:V80,"M2")+COUNTIF(V73:V80,"M4")+COUNTIF(V73:V80,"M5")+COUNTIF(V73:V80,"KNOP")+IF(COUNTIF(V73:V80,"")>3,4,COUNTIF(V73:V80,"")) -> 10 | W21: =COUNTIF(W50:W57,"XTRA KPO")+COUNTIF(W50:W57,"M2")+COUNTIF(W50:W57,"M4")+COUNTIF(W50:W57,"M5")+COUNTIF(W50:W57,"KNOP")+IF(COUNTIF(W50:W57,"")>3,4,COUNTIF(W50:W57,""))+ COUNTIF(W73:W80,"XTRA KPO")+COUNTIF(W73:W80,"M2")+COUNTIF(W73:W80,"M4")+COUNTIF(W73:W80,"M5")+COUNTIF(W73:W80,"KNOP")+IF(COUNTIF(W73:W80,"")>3,4,COUNTIF(W73:W80,"")) -> 10 | X21: =COUNTIF(X50:X57,"XTRA KPO")+COUNTIF(X50:X57,"M2")+COUNTIF(X50:X57,"M4")+COUNTIF(X50:X57,"M5")+COUNTIF(X50:X57,"KNOP")+IF(COUNTIF(X50:X57,"")>3,4,COUNTIF(X50:X57,""))+ COUNTIF(X73:X80,"XTRA KPO")+COUNTIF(X73:X80,"M2")+COUNTIF(X73:X80,"M4")+COUNTIF(X73:X80,"M5")+COUNTIF(X73:X80,"KNOP")+IF(COUNTIF(X73:X80,"")>3,4,COUNTIF(X73:X80,"")) -> 10 | Z21: =COUNTIF(Z50:Z57,"XTRA KPO")+COUNTIF(Z50:Z57,"M2")+COUNTIF(Z50:Z57,"M4")+COUNTIF(Z50:Z57,"M5")+COUNTIF(Z50:Z57,"KNOP")+IF(COUNTIF(Z50:Z57,"")>3,4,COUNTIF(Z50:Z57,""))+ COUNTIF(Z73:Z80,"XTRA KPO")+COUNTIF(Z73:Z80,"M2")+COUNTIF(Z73:Z80,"M4")+COUNTIF(Z73:Z80,"M5")+COUNTIF(Z73:Z80,"KNOP")+IF(COUNTIF(Z73:Z80,"")>3,4,COUNTIF(Z73:Z80,"")) -> 9 | AA21: =COUNTIF(AA50:AA57,"XTRA KPO")+COUNTIF(AA50:AA57,"M2")+COUNTIF(AA50:AA57,"M4")+COUNTIF(AA50:AA57,"M5")+COUNTIF(AA50:AA57,"KNOP")+IF(COUNTIF(AA50:AA57,"")>3,4,COUNTIF(AA50:AA57,""))+ COUNTIF(AA73:AA80,"XTRA KPO")+COUNTIF(AA73:AA80,"M2")+COUNTIF(AA73:AA80,"M4")+COUNTIF(AA73:AA80,"M5")+COUNTIF(AA73:AA80,"KNOP")+IF(COUNTIF(AA73:AA80,"")>3,4,COUNTIF(AA73:AA80,"")) -> 9 | AB21: =COUNTIF(AB50:AB57,"XTRA KPO")+COUNTIF(AB50:AB57,"M2")+COUNTIF(AB50:AB57,"M4")+COUNTIF(AB50:AB57,"M5")+COUNTIF(AB50:AB57,"KNOP")+IF(COUNTIF(AB50:AB57,"")>3,4,COUNTIF(AB50:AB57,""))+ COUNTIF(AB73:AB80,"XTRA KPO")+COUNTIF(AB73:AB80,"M2")+COUNTIF(AB73:AB80,"M4")+COUNTIF(AB73:AB80,"M5")+COUNTIF(AB73:AB80,"KNOP")+IF(COUNTIF(AB73:AB80,"")>3,4,COUNTIF(AB73:AB80,"")) -> 9 | AC21: =COUNTIF(AC50:AC57,"XTRA KPO")+COUNTIF(AC50:AC57,"M2")+COUNTIF(AC50:AC57,"M4")+COUNTIF(AC50:AC57,"M5")+COUNTIF(AC50:AC57,"KNOP")+IF(COUNTIF(AC50:AC57,"")>3,4,COUNTIF(AC50:AC57,""))+ COUNTIF(AC73:AC80,"XTRA KPO")+COUNTIF(AC73:AC80,"M2")+COUNTIF(AC73:AC80,"M4")+COUNTIF(AC73:AC80,"M5")+COUNTIF(AC73:AC80,"KNOP")+IF(COUNTIF(AC73:AC80,"")>3,4,COUNTIF(AC73:AC80,"")) -> 9 | AD21: =SUM(F21:AC21) -> 196
C22: WERKELIJKE planuren percent | F22: =(F17-(1.75*F20)-(1.75*F21))/((F17-(1.75*F20))) -> 0.375 | G22: =(G17-(1.75*G20)-(1.75*G21))/((G17-(1.75*G20))) -> 0.375 | H22: 0.375 | I22: 0.375 | K22: 0.375 | L22: 0.375 | M22: 0.375 | N22: 0.375 | P22: 0.375 | Q22: 0.375 | R22: 0.375 | S22: 0.375 | U22: 0.375 | V22: 0.375 | W22: 0.375 | X22: 0.375 | Z22: 0.4375 | AA22: 0.4375 | AB22: 0.4375 | AC22: 0.4375 | AD22: 0.3875
C24: MECHANISCH RINGO | F24: =COUNTIF(F38:F48,"STORING") -> 0 | G24: =COUNTIF(G38:G48,"STORING") -> 0 | H24: =COUNTIF(H38:H48,"STORING") -> 0 | I24: =COUNTIF(I38:I48,"STORING") -> 0 | K24: =COUNTIF(K38:K48,"STORING") -> 0 | L24: =COUNTIF(L38:L48,"STORING") -> 0 | M24: =COUNTIF(M38:M48,"STORING") -> 0 | N24: =COUNTIF(N38:N48,"STORING") -> 0 | P24: =COUNTIF(P38:P48,"STORING") -> 0 | Q24: =COUNTIF(Q38:Q48,"STORING") -> 0 | R24: =COUNTIF(R38:R48,"STORING") -> 0 | S24: =COUNTIF(S38:S48,"STORING") -> 0 | U24: =COUNTIF(U38:U48,"STORING") -> 0 | V24: =COUNTIF(V38:V48,"STORING") -> 0 | W24: =COUNTIF(W38:W48,"STORING") -> 0 | X24: =COUNTIF(X38:X48,"STORING") -> 0 | Z24: =COUNTIF(Z38:Z48,"STORING") -> 0 | AA24: =COUNTIF(AA38:AA48,"STORING") -> 0 | AB24: =COUNTIF(AB38:AB48,"STORING") -> 0 | AC24: =COUNTIF(AC38:AC48,"STORING") -> 0
C25: MECHANISCH PETER | F25: =COUNTIF(F62:F71,"STORING") -> 0 | G25: =COUNTIF(G62:G71,"STORING") -> 0 | H25: =COUNTIF(H62:H71,"STORING") -> 0 | I25: =COUNTIF(I62:I71,"STORING") -> 0 | K25: =COUNTIF(K62:K71,"STORING") -> 0 | L25: =COUNTIF(L62:L71,"STORING") -> 0 | M25: =COUNTIF(M62:M71,"STORING") -> 0 | N25: =COUNTIF(N62:N71,"STORING") -> 0 | P25: =COUNTIF(P62:P71,"STORING") -> 0 | Q25: =COUNTIF(Q62:Q71,"STORING") -> 0 | R25: =COUNTIF(R62:R71,"STORING") -> 0 | S25: =COUNTIF(S62:S71,"STORING") -> 0 | U25: =COUNTIF(U62:U71,"STORING") -> 0 | V25: =COUNTIF(V62:V71,"STORING") -> 0 | W25: =COUNTIF(W62:W71,"STORING") -> 0 | X25: =COUNTIF(X62:X71,"STORING") -> 0 | Z25: =COUNTIF(Z62:Z71,"STORING") -> 0 | AA25: =COUNTIF(AA62:AA71,"STORING") -> 0 | AB25: =COUNTIF(AB62:AB71,"STORING") -> 0 | AC25: =COUNTIF(AC62:AC71,"STORING") -> 0
C26: ELEKTRISCH RINGO | F26: =COUNTIF(F50:F57,"STORING") -> 0 | G26: =COUNTIF(G50:G57,"STORING") -> 0 | H26: =COUNTIF(H50:H57,"STORING") -> 0 | I26: 0 | K26: 0 | L26: 0 | M26: 0 | N26: 0 | P26: 0 | Q26: 0 | R26: 0 | S26: 0 | U26: 0 | V26: 0 | W26: 0 | X26: 0 | Z26: 0 | AA26: 0 | AB26: 0 | AC26: 0
C27: ELEKTRISCH PETER | F27: =COUNTIF(F73:F80,"STORING") -> 0 | G27: =COUNTIF(G73:G80,"STORING") -> 0 | H27: 0 | I27: 0 | K27: 0 | L27: 0 | M27: 0 | N27: 0 | P27: 0 | Q27: 0 | R27: 0 | S27: 0 | U27: 0 | V27: 0 | W27: 0 | X27: 0 | Z27: 0 | AA27: 0 | AB27: 0 | AC27: 0
A29: Aantal lege vakken RINGO | F29: =COUNTBLANK(F38:F48) -> 10 | G29: =COUNTBLANK(G38:G48) -> 10 | H29: =COUNTBLANK(H38:H48) -> 10 | I29: =COUNTBLANK(I38:I48) -> 10 | K29: =COUNTBLANK(K38:K48) -> 10 | L29: =COUNTBLANK(L38:L48) -> 10 | M29: =COUNTBLANK(M38:M48) -> 10 | N29: =COUNTBLANK(N38:N48) -> 10 | P29: =COUNTBLANK(P38:P48) -> 10 | Q29: =COUNTBLANK(Q38:Q48) -> 10 | R29: =COUNTBLANK(R38:R48) -> 10 | S29: =COUNTBLANK(S38:S48) -> 10 | U29: =COUNTBLANK(U38:U48) -> 10 | V29: =COUNTBLANK(V38:V48) -> 10 | W29: =COUNTBLANK(W38:W48) -> 10 | X29: =COUNTBLANK(X38:X48) -> 10 | Z29: =COUNTBLANK(Z38:Z48) -> 10 | AA29: =COUNTBLANK(AA38:AA48) -> 10 | AB29: =COUNTBLANK(AB38:AB48) -> 10 | AC29: =COUNTBLANK(AC38:AC48) -> 10
A30: Aantal lege vakken PETER | F30: =COUNTBLANK(F62:F71) -> 9 | G30: =COUNTBLANK(G62:G71) -> 9 | H30: =COUNTBLANK(H62:H71) -> 9 | I30: =COUNTBLANK(I62:I71) -> 9 | K30: =COUNTBLANK(K62:K71) -> 9 | L30: =COUNTBLANK(L62:L71) -> 9 | M30: =COUNTBLANK(M62:M71) -> 9 | N30: =COUNTBLANK(N62:N71) -> 9 | P30: =COUNTBLANK(P62:P71) -> 9 | Q30: =COUNTBLANK(Q62:Q71) -> 9 | R30: =COUNTBLANK(R62:R71) -> 9 | S30: =COUNTBLANK(S62:S71) -> 9 | U30: =COUNTBLANK(U62:U71) -> 9 | V30: =COUNTBLANK(V62:V71) -> 9 | W30: =COUNTBLANK(W62:W71) -> 9 | X30: =COUNTBLANK(X62:X71) -> 9 | Z30: =COUNTBLANK(Z62:Z71) -> 10 | AA30: =COUNTBLANK(AA62:AA71) -> 10 | AB30: =COUNTBLANK(AB62:AB71) -> 10 | AC30: =COUNTBLANK(AC62:AC71) -> 10
B31: ELEKTRISCH
A32: Aantal lege vakken RINGO | F32: =COUNTBLANK(F50:F57) -> 7 | G32: =COUNTBLANK(G50:G57) -> 7 | H32: 7 | I32: 7 | K32: 7 | L32: 7 | M32: 7 | N32: 7 | P32: 7 | Q32: 7 | R32: 7 | S32: 7 | U32: 7 | V32: 7 | W32: 7 | X32: 7 | Z32: 7 | AA32: 7 | AB32: 7 | AC32: 7
A33: Aantal lege vakken PETER | F33: =COUNTBLANK(F73:F80) -> 7 | G33: =COUNTBLANK(G73:G80) -> 7 | H33: 7 | I33: 7 | K33: 7 | L33: 7 | M33: 7 | N33: 7 | P33: 7 | Q33: 7 | R33: 7 | S33: 7 | U33: 7 | V33: 7 | W33: 7 | X33: 7 | Z33: 8 | AA33: 8 | AB33: 8 | AC33: 8
A35: Reg.nr | B35: Naam | F35: =(DATE($A$2,1,1)-WEEKDAY(DATE($A$2,1,1))-IF(WEEKDAY(DATE($A$2,1,1))<6,5,-2)+$B$3*7) -> 2017-10-02 | K35: =(DATE($A$2,1,1)-WEEKDAY(DATE($A$2,1,1))-IF(WEEKDAY(DATE($A$2,1,1))<6,5,-2)+$B$3*7)+1 -> 2017-10-03 | P35: =(DATE($A$2,1,1)-WEEKDAY(DATE($A$2,1,1))-IF(WEEKDAY(DATE($A$2,1,1))<6,5,-2)+$B$3*7)+2 -> 2017-10-04 | U35: =(DATE($A$2,1,1)-WEEKDAY(DATE($A$2,1,1))-IF(WEEKDAY(DATE($A$2,1,1))<6,5,-2)+$B$3*7)+3 -> 2017-10-05 | Z35: =(DATE($A$2,1,1)-WEEKDAY(DATE($A$2,1,1))-IF(WEEKDAY(DATE($A$2,1,1))<6,5,-2)+$B$3*7)+4 -> 2017-10-06
A36: Ringo Gelaes - Philip Ceyssens | F36: 06 - 08 | G36: 08 - 10 | H36: 10 - 12 | I36: 12 - 14 | K36: 06 - 08 | L36: 08 - 10 | M36: 10 - 12 | N36: 12 - 14 | P36: 06 - 08 | Q36: 08 - 10 | R36: 10 - 12 | S36: 12 - 14 | U36: 06 - 08 | V36: 08 - 10 | W36: 10 - 12 | X36: 12 - 14 | Z36: 06 - 08 | AA36: 08 - 10 | AB36: 10 - 12 | AC36: 12 - 14 | AD36: Opmerkingen
A37: Bezetting M | F37: =IF((COUNTBLANK(F38:F48)*2)=20,"",(COUNTBLANK(F38:F48)*2)) ->  | G37: =IF((COUNTBLANK(G38:G48)*2)=20,"",(COUNTBLANK(G38:G48)*2)) ->  | H37: =IF((COUNTBLANK(H38:H48)*2)=20,"",(COUNTBLANK(H38:H48)*2)) ->  | I37: =IF((COUNTBLANK(I38:I48)*2)=20,"",(COUNTBLANK(I38:I48)*2)) ->  | K37: =IF((COUNTBLANK(K38:K48)*2)=20,"",(COUNTBLANK(K38:K48)*2)) ->  | L37: =IF((COUNTBLANK(L38:L48)*2)=20,"",(COUNTBLANK(L38:L48)*2)) ->  | M37: =IF((COUNTBLANK(M38:M48)*2)=20,"",(COUNTBLANK(M38:M48)*2)) ->  | N37: =IF((COUNTBLANK(N38:N48)*2)=20,"",(COUNTBLANK(N38:N48)*2)) ->  | P37: =IF((COUNTBLANK(P38:P48)*2)=20,"",(COUNTBLANK(P38:P48)*2)) ->  | Q37: =IF((COUNTBLANK(Q38:Q48)*2)=20,"",(COUNTBLANK(Q38:Q48)*2)) ->  | R37: =IF((COUNTBLANK(R38:R48)*2)=20,"",(COUNTBLANK(R38:R48)*2)) ->  | S37: =IF((COUNTBLANK(S38:S48)*2)=20,"",(COUNTBLANK(S38:S48)*2)) ->  | U37: =IF((COUNTBLANK(U38:U48)*2)=20,"",(COUNTBLANK(U38:U48)*2)) ->  | V37: =IF((COUNTBLANK(V38:V48)*2)=20,"",(COUNTBLANK(V38:V48)*2)) ->  | W37: =IF((COUNTBLANK(W38:W48)*2)=20,"",(COUNTBLANK(W38:W48)*2)) ->  | X37: =IF((COUNTBLANK(X38:X48)*2)=20,"",(COUNTBLANK(X38:X48)*2)) ->  | Z37: =IF((COUNTBLANK(Z38:Z48)*2)=20,"",(COUNTBLANK(Z38:Z48)*2)) ->  | AA37: =IF((COUNTBLANK(AA38:AA48)*2)=20,"",(COUNTBLANK(AA38:AA48)*2)) ->  | AB37: =IF((COUNTBLANK(AB38:AB48)*2)=20,"",(COUNTBLANK(AB38:AB48)*2)) ->  | AC37: =IF((COUNTBLANK(AC38:AC48)*2)=20,"",(COUNTBLANK(AC38:AC48)*2)) -> 
A38: 984 | B38: Danny Noels-Caeyers | D38: M - AS | Z38: KNOP | AA38: KNOP | AB38: KNOP | AC38: KNOP
A39: 2951 | B39: Frits Cosemans | D39: M - AS
A40: 3255 | B40: Wim Dresselaerts | D40: M - AS | P40: KNOP | Q40: KNOP | R40: KNOP | S40: KNOP
A41: 3861 | B41: Frank Bierinckx | D41: M - AS | F41: KNOP | G41: KNOP | H41: KNOP | I41: KNOP
A42: 7416 | B42: Paul Coene | D42: M - AS | K42: KNOP | L42: KNOP | M42: KNOP | N42: KNOP
A43: 41392 | B43: Thomas Jansen | D43: M - AS
A44: 3144 | B44: Christof Hendrickx | D44: M - DIFF
A45: 3407 | B45: Maarten Vaes | D45: M - DIFF | U45: KNOP | V45: KNOP | W45: KNOP | X45: KNOP
A46: 3784 | B46: Joris Snyers | D46: M - DIFF
A47: 7856 | B47: Glen Van Espen | D47: M - DIFF
A48: 9476 | B48: Stijn Huybreghts | D48: M - DIFF
A49: Bezetting E | F49: =IF((COUNTBLANK(F50:F57)*2)=14,"",(COUNTBLANK(F50:F57)*2)) ->  | G49: =IF((COUNTBLANK(G50:G57)*2)=14,"",(COUNTBLANK(G50:G57)*2)) ->  | K49: =IF((COUNTBLANK(K50:K57)*2)=14,"",(COUNTBLANK(K50:K57)*2)) ->  | L49: =IF((COUNTBLANK(L50:L57)*2)=14,"",(COUNTBLANK(L50:L57)*2)) ->  | M49: =IF((COUNTBLANK(M50:M57)*2)=14,"",(COUNTBLANK(M50:M57)*2)) ->  | N49: =IF((COUNTBLANK(N50:N57)*2)=14,"",(COUNTBLANK(N50:N57)*2)) ->  | P49: =IF((COUNTBLANK(P50:P57)*2)=14,"",(COUNTBLANK(P50:P57)*2)) ->  | Q49: =IF((COUNTBLANK(Q50:Q57)*2)=14,"",(COUNTBLANK(Q50:Q57)*2)) ->  | R49: =IF((COUNTBLANK(R50:R57)*2)=14,"",(COUNTBLANK(R50:R57)*2)) ->  | S49: =IF((COUNTBLANK(S50:S57)*2)=14,"",(COUNTBLANK(S50:S57)*2)) ->  | U49: =IF((COUNTBLANK(U50:U57)*2)=14,"",(COUNTBLANK(U50:U57)*2)) ->  | V49: =IF((COUNTBLANK(V50:V57)*2)=14,"",(COUNTBLANK(V50:V57)*2)) ->  | W49: =IF((COUNTBLANK(W50:W57)*2)=14,"",(COUNTBLANK(W50:W57)*2)) ->  | X49: =IF((COUNTBLANK(X50:X57)*2)=14,"",(COUNTBLANK(X50:X57)*2)) -> 
A50: 2645 | B50: Jo Vercammen | D50: E - AS | P50: KNOP | Q50: KNOP | R50: KNOP | S50: KNOP
A51: 3056 | B51: Manuel Van Looy | D51: E - AS | K51: KNOP | L51: KNOP | M51: KNOP | N51: KNOP | Z51: KNOP | AA51: KNOP | AB51: KNOP | AC51: KNOP
A52: 6860 | B52: Michel Marx | D52: E - AS | F52: KNOP | G52: KNOP | H52: KNOP | I52: KNOP
A53: 8297 | B53: Tom Jansen | D53: E - AS
A54: 1765 | B54: Guy Dierckx | D54: E - DIFF
A55: 2030 | B55: Patrick van Eynde | D55: E - DIFF
A56: 2485 | B56: Johan Van Der Borght | D56: E - DIFF | U56: KNOP | V56: KNOP | W56: KNOP | X56: KNOP
A57: 6273 | B57: Mike Hufkens | D57: E - DIFF
D58: 1
D59: 2
A60: Peter de Ridder - Chris Cnops | F60: 14 - 16 | G60: 16 - 18 | H60: 18-20 | I60: 20 - 22 | K60: 14 - 16 | L60: 16 - 18 | M60: 18 - 20 | N60: 20 - 22 | P60: 14 - 16 | Q60: 16 - 18 | R60: 18-20 | S60: 20 - 22 | U60: 14 - 16 | V60: 16 - 18 | W60: 18 - 20 | X60: 20 - 22 | Z60: 14 - 16 | AA60: 16 - 18 | AB60: 18-20 | AC60: 20 - 22 | AD60: Opmerkingen
A61: Bezetting M | F61: =IF((COUNTBLANK(F62:F71)*2)=18,"",(COUNTBLANK(F62:F71)*2)) ->  | G61: =IF((COUNTBLANK(G62:G71)*2)=18,"",(COUNTBLANK(G62:G71)*2)) ->  | H61: =IF((COUNTBLANK(H62:H71)*2)=18,"",(COUNTBLANK(H62:H71)*2)) ->  | I61: =IF((COUNTBLANK(I62:I71)*2)=18,"",(COUNTBLANK(I62:I71)*2)) ->  | K61: =IF((COUNTBLANK(K62:K71)*2)=18,"",(COUNTBLANK(K62:K71)*2)) ->  | L61: =IF((COUNTBLANK(L62:L71)*2)=18,"",(COUNTBLANK(L62:L71)*2)) ->  | M61: =IF((COUNTBLANK(M62:M71)*2)=18,"",(COUNTBLANK(M62:M71)*2)) ->  | N61: =IF((COUNTBLANK(N62:N71)*2)=18,"",(COUNTBLANK(N62:N71)*2)) ->  | P61: =IF((COUNTBLANK(P62:P71)*2)=18,"",(COUNTBLANK(P62:P71)*2)) ->  | Q61: =IF((COUNTBLANK(Q62:Q71)*2)=18,"",(COUNTBLANK(Q62:Q71)*2)) ->  | R61: =IF((COUNTBLANK(R62:R71)*2)=18,"",(COUNTBLANK(R62:R71)*2)) ->  | S61: =IF((COUNTBLANK(S62:S71)*2)=18,"",(COUNTBLANK(S62:S71)*2)) ->  | U61: =IF((COUNTBLANK(U62:U71)*2)=18,"",(COUNTBLANK(U62:U71)*2)) ->  | V61: =IF((COUNTBLANK(V62:V71)*2)=18,"",(COUNTBLANK(V62:V71)*2)) ->  | W61: =IF((COUNTBLANK(W62:W71)*2)=18,"",(COUNTBLANK(W62:W71)*2)) ->  | X61: =IF((COUNTBLANK(X62:X71)*2)=18,"",(COUNTBLANK(X62:X71)*2)) ->  | Z61: =IF((COUNTBLANK(Z62:Z71)*2)=20,"",(COUNTBLANK(Z62:Z71)*2)) ->  | AA61: =IF((COUNTBLANK(AA62:AA71)*2)=20,"",(COUNTBLANK(AA62:AA71)*2)) ->  | AB61: =IF((COUNTBLANK(AB62:AB71)*2)=20,"",(COUNTBLANK(AB62:AB71)*2)) ->  | AC61: =IF((COUNTBLANK(AC62:AC71)*2)=20,"",(COUNTBLANK(AC62:AC71)*2)) -> 
A62: 1022 | B62: Bert Tromelmans | D62: M - AS | K62: KNOP | L62: KNOP | M62: KNOP | N62: KNOP
A63: 1562 | B63: Eddy Hooyberghs | D63: M - AS
A64: 2900 | B64: Marco Deprez | D64: M - AS
A65: 9758 | B65: Thomas Seykens | D65: M - AS
A66: 41371 | B66: Roel Antonissen | D66: M - AS
A67: 1786 | B67: Davy Houdmeyers | D67: M - DIFF
A68: 2932 | B68: Toon Vromans | D68: M - DIFF | P68: KNOP | Q68: KNOP | R68: KNOP | S68: KNOP
A69: 7425 | B69: Yasar Ozkan | D69: M - DIFF
A70: 7731 | B70: Joffrey Schroyen | D70: M - DIFF | F70: KNOP | G70: KNOP | H70: KNOP | I70: KNOP
A71: 41185 | B71: Toon Wuyts | D71: M - DIFF | U71: KNOP | V71: KNOP | W71: KNOP | X71: KNOP
A72: Bezetting E | F72: =IF((COUNTBLANK(F73:F80)*2)=14,"",(COUNTBLANK(F73:F80)*2)) ->  | G72: =IF((COUNTBLANK(G73:G80)*2)=14,"",(COUNTBLANK(G73:G80)*2)) ->  | K72: =IF((COUNTBLANK(K73:K80)*2)=14,"",(COUNTBLANK(K73:K80)*2)) ->  | P72: =IF((COUNTBLANK(P73:P80)*2)=14,"",(COUNTBLANK(P73:P80)*2)) ->  | U72: =IF((COUNTBLANK(U73:U80)*2)=14,"",(COUNTBLANK(U73:U80)*2)) ->  | Z72: =IF((COUNTBLANK(Z73:Z80)*2)=16,"",(COUNTBLANK(Z73:Z80)*2)) ->  | AA72: =IF((COUNTBLANK(AA73:AA80)*2)=16,"",(COUNTBLANK(AA73:AA80)*2)) -> 
A73: 715 | B73: Fons Mondelaers | D73: E - AS
A74: 2042 | B74: Ely Daems | D74: E - AS | K74: KNOP | L74: KNOP | M74: KNOP | N74: KNOP
A75: 6930 | B75: Koen Donders | D75: E - AS
A76: 9968 | B76: Rob Willems | D76: E - AS
A77: 2118 | B77: Wim Verwimp | D77: E - DIFF | F77: KNOP | G77: KNOP | H77: KNOP | I77: KNOP
A78: 1635 | B78: Jan van Dingenen | D78: E - DIFF
A79: 2132 | B79: Wouter Vantongerloo | D79: E - DIFF | U79: KNOP | V79: KNOP | W79: KNOP | X79: KNOP
A80: 41218 | B80: Stijn Windelinckx | D80: E - DIFF | P80: KNOP | Q80: KNOP | R80: KNOP | S80: KNOP
D81: 1
D82: 2
A83: Nacht (vast) | F83: 22 - 00 | G83: 00 - 02 | H83: 02 - 04 | I83: 04 - 06 | K83: 22 - 00 | L83: 00 - 02 | M83: 02 - 04 | N83: 04 - 06 | P83: 22 - 00 | Q83: 00 - 02 | R83: 02 - 04 | S83: 04 - 06 | U83: 22 - 00 | V83: 00 - 02 | W83: 02 - 04 | X83: 04 - 06 | Z83: 22 - 00 | AA83: 00 - 02 | AB83: 02 - 04 | AC83: 04 - 06
A84: Bezetting E | F84: =IF((COUNTBLANK(F85:F88)*2)=8,"",(COUNTBLANK(F85:F88)*2)) ->  | G84: =IF((COUNTBLANK(G85:G88)*2)=8,"",(COUNTBLANK(G85:G88)*2)) ->  | K84: =IF((COUNTBLANK(K85:K88)*2)=8,"",(COUNTBLANK(K85:K88)*2)) ->  | L84: =IF((COUNTBLANK(L85:L88)*2)=8,"",(COUNTBLANK(L85:L88)*2)) ->  | M84: =IF((COUNTBLANK(M85:M88)*2)=8,"",(COUNTBLANK(M85:M88)*2)) ->  | N84: =IF((COUNTBLANK(N85:N88)*2)=8,"",(COUNTBLANK(N85:N88)*2)) ->  | P84: =IF((COUNTBLANK(P85:P88)*2)=8,"",(COUNTBLANK(P85:P88)*2)) ->  | Q84: =IF((COUNTBLANK(Q85:Q88)*2)=8,"",(COUNTBLANK(Q85:Q88)*2)) ->  | R84: =IF((COUNTBLANK(R85:R88)*2)=8,"",(COUNTBLANK(R85:R88)*2)) ->  | S84: =IF((COUNTBLANK(S85:S88)*2)=8,"",(COUNTBLANK(S85:S88)*2)) ->  | U84: =IF((COUNTBLANK(U85:U88)*2)=8,"",(COUNTBLANK(U85:U88)*2)) ->  | V84: =IF((COUNTBLANK(V85:V88)*2)=8,"",(COUNTBLANK(V85:V88)*2)) ->  | W84: =IF((COUNTBLANK(W85:W88)*2)=8,"",(COUNTBLANK(W85:W88)*2)) ->  | X84: =IF((COUNTBLANK(X85:X88)*2)=8,"",(COUNTBLANK(X85:X88)*2)) ->  | Z84: =IF((COUNTBLANK(Z85:Z88)*2)=8,"",(COUNTBLANK(Z85:Z88)*2)) ->  | AA84: =IF((COUNTBLANK(AA85:AA88)*2)=8,"",(COUNTBLANK(AA85:AA88)*2)) ->  | AB84: =IF((COUNTBLANK(AB85:AB88)*2)=8,"",(COUNTBLANK(AB85:AB88)*2)) ->  | AC84: =IF((COUNTBLANK(AC85:AC88)*2)=8,"",(COUNTBLANK(AC85:AC88)*2)) -> 
A85: 497 | B85: Herman Luyten | D85: M
A86: 895 | B86: Chris Coomans | D86: M
A87: 1023 | B87: Bert Verhaert | D87: E
A88: 4893 | B88: Jonas Vindevogel | D88: E
A90: Overige | F90: 22 - 00 | G90: 00 - 02 | H90: 02 - 04 | I90: 04 - 06 | K90: 22 - 00 | L90: 00 - 02 | M90: 02 - 04 | N90: 04 - 06 | P90: 22 - 00 | Q90: 00 - 02 | R90: 02 - 04 | S90: 04 - 06 | U90: 22 - 00 | V90: 00 - 02 | W90: 02 - 04 | X90: 04 - 06 | Z90: 22 - 00 | AA90: 00 - 02 | AB90: 02 - 04 | AC90: 04 - 06
A91: Bezetting E | F91: =IF((COUNTBLANK(F92:F97)*2)=12,"",(COUNTBLANK(F92:F97)*2)) ->  | G91: =IF((COUNTBLANK(G92:G97)*2)=12,"",(COUNTBLANK(G92:G97)*2)) ->  | K91: =IF((COUNTBLANK(K92:K97)*2)=12,"",(COUNTBLANK(K92:K97)*2)) ->  | L91: =IF((COUNTBLANK(L92:L97)*2)=12,"",(COUNTBLANK(L92:L97)*2)) ->  | M91: =IF((COUNTBLANK(M92:M97)*2)=12,"",(COUNTBLANK(M92:M97)*2)) ->  | N91: =IF((COUNTBLANK(N92:N97)*2)=12,"",(COUNTBLANK(N92:N97)*2)) ->  | P91: =IF((COUNTBLANK(P92:P97)*2)=12,"",(COUNTBLANK(P92:P97)*2)) ->  | Q91: =IF((COUNTBLANK(Q92:Q97)*2)=12,"",(COUNTBLANK(Q92:Q97)*2)) ->  | R91: =IF((COUNTBLANK(R92:R97)*2)=12,"",(COUNTBLANK(R92:R97)*2)) ->  | S91: =IF((COUNTBLANK(S92:S97)*2)=12,"",(COUNTBLANK(S92:S97)*2)) ->  | U91: =IF((COUNTBLANK(U92:U97)*2)=12,"",(COUNTBLANK(U92:U97)*2)) ->  | V91: =IF((COUNTBLANK(V92:V97)*2)=12,"",(COUNTBLANK(V92:V97)*2)) ->  | W91: =IF((COUNTBLANK(W92:W97)*2)=12,"",(COUNTBLANK(W92:W97)*2)) ->  | X91: =IF((COUNTBLANK(X92:X97)*2)=12,"",(COUNTBLANK(X92:X97)*2)) ->  | Z91: =IF((COUNTBLANK(Z92:Z97)*2)=12,"",(COUNTBLANK(Z92:Z97)*2)) ->  | AA91: =IF((COUNTBLANK(AA92:AA97)*2)=12,"",(COUNTBLANK(AA92:AA97)*2)) ->  | AB91: =IF((COUNTBLANK(AB92:AB97)*2)=12,"",(COUNTBLANK(AB92:AB97)*2)) ->  | AC91: =IF((COUNTBLANK(AC92:AC97)*2)=12,"",(COUNTBLANK(AC92:AC97)*2)) -> 
A92: 1115 | B92: Kris Verbesselt | D92: S
A93: 2076 | B93: Paul van Looy | D93: S
A94: 1279 | B94: Luc Danckers | D94: TT
A95: 1658 | B95: Tom Verbraeken | D95: TT
A96: 1734 | B96: Marc Bax | D96: TT
A97: 296 | B97: Jef Luyten | D97: GM

Sheet LEEG PETER VROEG (hidden)
A1: PLANNING KPO/GPO -AFDELING 53481 | AB1: ='LEEG RINGO VROEG'!AB1:AC2 -> 09:52:49
A2: 2017
A3: WEEK | B3: 41
A4: TOTAAL PLANUREN | D4: =G4+I4 -> 0 | F4: Uren Mech | G4: =SUM(F60:I60)+SUM(K60:N60)+SUM(P60:S60)+SUM(U60:X60)+SUM(Z60:AC60)+SUM(F37:I37)+SUM(K37:N37)+SUM(P37:S37)+SUM(U37:X37)+SUM(Z37:AC37) -> 0 | H4: Uren Elec | I4: =SUM(F72:I72)+SUM(K72:N72)+SUM(P72:S72)+SUM(U72:X72)+SUM(Z72:AC72)+SUM(F48:I48)+SUM(K48:N48)+SUM(P48:S48)+SUM(U48:X48)+SUM(Z48:AC48) -> 0
D5: =AVERAGE(AD13,AD22) -> 0.4604166667
A7: MECHANISCH | F7: =AD13 -> 0.5333333333
C8: MAX bezetting | F8: =(COUNTIF($B$61:$C$71,"><""")+COUNTIF($B$38:$C$47,"><"""))*1.75 -> 36.75 | G8: =(COUNTIF($B$61:$C$71,"><""")+COUNTIF($B$38:$C$47,"><"""))*1.75 -> 36.75 | H8: 36.75 | I8: 36.75 | K8: 36.75 | L8: 36.75 | M8: 36.75 | N8: 36.75 | P8: 36.75 | Q8: 36.75 | R8: 36.75 | S8: 36.75 | U8: 36.75 | V8: 36.75 | W8: 36.75 | X8: 36.75 | Z8: 36.75 | AA8: 36.75 | AB8: 36.75 | AC8: 36.75 | AD8: =SUM(F8:AC8) -> 735
C9: Uren ter beschikking | F9: =COUNTBLANK(F61:F71)*1.75+COUNTBLANK(F38:F47)*1.75 -> 33.25 | G9: =COUNTBLANK(G61:G71)*1.75+COUNTBLANK(G38:G47)*1.75 -> 33.25 | H9: 33.25 | I9: 33.25 | K9: 33.25 | L9: 33.25 | M9: 33.25 | N9: 33.25 | P9: 33.25 | Q9: 33.25 | R9: 33.25 | S9: 33.25 | U9: 33.25 | V9: 33.25 | W9: 33.25 | X9: 33.25 | Z9: 35 | AA9: 35 | AB9: 35 | AC9: 35
C10: Percentage Geheel | F10: =F9/F8 -> 0.9047619048 | G10: =G9/G8 -> 0.9047619048 | H10: =H9/H8 -> 0.9047619048 | I10: 0.9047619048 | K10: =K9/K8 -> 0.9047619048 | L10: 0.9047619048 | M10: 0.9047619048 | N10: 0.9047619048 | P10: =P9/P8 -> 0.9047619048 | Q10: 0.9047619048 | R10: 0.9047619048 | S10: 0.9047619048 | U10: =U9/U8 -> 0.9047619048 | V10: 0.9047619048 | W10: 0.9047619048 | X10: 0.9047619048 | Z10: =Z9/Z8 -> 0.9523809524 | AA10: 0.9523809524 | AB10: 0.9523809524 | AC10: 0.9523809524
C11: Verlof | F11: =COUNTIF(F61:F71,"NACHT")+COUNTIF(F61:F71,"WD")+COUNTIF(F61:F71,"WN")+COUNTIF(F61:F71,"EV")+COUNTIF(F61:F71,"EVU")+COUNTIF(F61:F71,"EVVJ")+COUNTIF(F61:F71,"EVUV")+COUNTIF(F61:F71,"WV") +COUNTIF(F61:F71,"TK")+COUNTIF(F61:F71,"EDUC")+COUNTIF(F61:F71,"ROW")+COUNTIF(F61:F71,"ZIEM")+COUNTIF(F61:F71,"EXTERN")+ COUNTIF(F38:F47,"NACHT")+COUNTIF(F38:F47,"WD")+COUNTIF(F38:F47,"WN")+COUNTIF(F38:F47,"EV")+COUNTIF(F38:F47,"EVU")+COUNTIF(F38:F47,"EVVJ")+COUNTIF(F38:F47,"EVUV")+COUNTIF(F38:F47,"WV") +COUNTIF(F38:F47,"TK")+COUNTIF(F38:F47,"EDUC")+COUNTIF(F38:F47,"ROW")+COUNTIF(F38:F47,"ZIEM")+COUNTIF(F38:F47,"EXTERN") -> 0 | G11: =COUNTIF(G61:G71,"NACHT")+COUNTIF(G61:G71,"WD")+COUNTIF(G61:G71,"WN")+COUNTIF(G61:G71,"EV")+COUNTIF(G61:G71,"EVU")+COUNTIF(G61:G71,"EVVJ")+COUNTIF(G61:G71,"EVUV")+COUNTIF(G61:G71,"WV") +COUNTIF(G61:G71,"TK")+COUNTIF(G61:G71,"EDUC")+COUNTIF(G61:G71,"ROW")+COUNTIF(G61:G71,"ZIEM")+COUNTIF(G61:G71,"EXTERN")+ COUNTIF(G38:G47,"NACHT")+COUNTIF(G38:G47,"WD")+COUNTIF(G38:G47,"WN")+COUNTIF(G38:G47,"EV")+COUNTIF(G38:G47,"EVU")+COUNTIF(G38:G47,"EVVJ")+COUNTIF(G38:G47,"EVUV")+COUNTIF(G38:G47,"WV") +COUNTIF(G38:G47,"TK")+COUNTIF(G38:G47,"EDUC")+COUNTIF(G38:G47,"ROW")+COUNTIF(G38:G47,"ZIEM")+COUNTIF(G38:G47,"EXTERN") -> 0 | H11: =COUNTIF(H61:H71,"NACHT")+COUNTIF(H61:H71,"WD")+COUNTIF(H61:H71,"WN")+COUNTIF(H61:H71,"EV")+COUNTIF(H61:H71,"EVU")+COUNTIF(H61:H71,"EVVJ")+COUNTIF(H61:H71,"EVUV")+COUNTIF(H61:H71,"WV") +COUNTIF(H61:H71,"TK")+COUNTIF(H61:H71,"EDUC")+COUNTIF(H61:H71,"ROW")+COUNTIF(H61:H71,"ZIEM")+COUNTIF(H61:H71,"EXTERN")+ COUNTIF(H38:H47,"NACHT")+COUNTIF(H38:H47,"WD")+COUNTIF(H38:H47,"WN")+COUNTIF(H38:H47,"EV")+COUNTIF(H38:H47,"EVU")+COUNTIF(H38:H47,"EVVJ")+COUNTIF(H38:H47,"EVUV")+COUNTIF(H38:H47,"WV") +COUNTIF(H38:H47,"TK")+COUNTIF(H38:H47,"EDUC")+COUNTIF(H38:H47,"ROW")+COUNTIF(H38:H47,"ZIEM")+COUNTIF(H38:H47,"EXTERN") -> 0 | I11: =COUNTIF(I61:I71,"NACHT")+COUNTIF(I61:I71,"WD")+COUNTIF(I61:I71,"WN")+COUNTIF(I61:I71,"EV")+COUNTIF(I61:I71,"EVU")+COUNTIF(I61:I71,"EVVJ")+COUNTIF(I61:I71,"EVUV")+COUNTIF(I61:I71,"WV") +COUNTIF(I61:I71,"TK")+COUNTIF(I61:I71,"EDUC")+COUNTIF(I61:I71,"ROW")+COUNTIF(I61:I71,"ZIEM")+COUNTIF(I61:I71,"EXTERN")+ COUNTIF(I38:I47,"NACHT")+COUNTIF(I38:I47,"WD")+COUNTIF(I38:I47,"WN")+COUNTIF(I38:I47,"EV")+COUNTIF(I38:I47,"EVU")+COUNTIF(I38:I47,"EVVJ")+COUNTIF(I38:I47,"EVUV")+COUNTIF(I38:I47,"WV") +COUNTIF(I38:I47,"TK")+COUNTIF(I38:I47,"EDUC")+COUNTIF(I38:I47,"ROW")+COUNTIF(I38:I47,"ZIEM")+COUNTIF(I38:I47,"EXTERN") -> 0 | K11: =COUNTIF(K61:K71,"NACHT")+COUNTIF(K61:K71,"WD")+COUNTIF(K61:K71,"WN")+COUNTIF(K61:K71,"EV")+COUNTIF(K61:K71,"EVU")+COUNTIF(K61:K71,"EVVJ")+COUNTIF(K61:K71,"EVUV")+COUNTIF(K61:K71,"WV") +COUNTIF(K61:K71,"TK")+COUNTIF(K61:K71,"EDUC")+COUNTIF(K61:K71,"ROW")+COUNTIF(K61:K71,"ZIEM")+COUNTIF(K61:K71,"EXTERN")+ COUNTIF(K39:K47,"NACHT")+COUNTIF(K39:K47,"WD")+COUNTIF(K39:K47,"WN")+COUNTIF(K39:K47,"EV")+COUNTIF(K39:K47,"EVU")+COUNTIF(K39:K47,"EVVJ")+COUNTIF(K39:K47,"EVUV")+COUNTIF(K39:K47,"WV") +COUNTIF(K39:K47,"TK")+COUNTIF(K39:K47,"EDUC")+COUNTIF(K39:K47,"ROW")+COUNTIF(K39:K47,"ZIEM")+COUNTIF(K39:K47,"EXTERN") -> 0 | L11: =COUNTIF(L61:L71,"NACHT")+COUNTIF(L61:L71,"WD")+COUNTIF(L61:L71,"WN")+COUNTIF(L61:L71,"EV")+COUNTIF(L61:L71,"EVU")+COUNTIF(L61:L71,"EVVJ")+COUNTIF(L61:L71,"EVUV")+COUNTIF(L61:L71,"WV") +COUNTIF(L61:L71,"TK")+COUNTIF(L61:L71,"EDUC")+COUNTIF(L61:L71,"ROW")+COUNTIF(L61:L71,"ZIEM")+COUNTIF(L61:L71,"EXTERN")+ COUNTIF(L39:L47,"NACHT")+COUNTIF(L39:L47,"WD")+COUNTIF(L39:L47,"WN")+COUNTIF(L39:L47,"EV")+COUNTIF(L39:L47,"EVU")+COUNTIF(L39:L47,"EVVJ")+COUNTIF(L39:L47,"EVUV")+COUNTIF(L39:L47,"WV") +COUNTIF(L39:L47,"TK")+COUNTIF(L39:L47,"EDUC")+COUNTIF(L39:L47,"ROW")+COUNTIF(L39:L47,"ZIEM")+COUNTIF(L39:L47,"EXTERN") -> 0 | M11: =COUNTIF(M61:M71,"NACHT")+COUNTIF(M61:M71,"WD")+COUNTIF(M61:M71,"WN")+COUNTIF(M61:M71,"EV")+COUNTIF(M61:M71,"EVU")+COUNTIF(M61:M71,"EVVJ")+COUNTIF(M61:M71,"EVUV")+COUNTIF(M61:M71,"WV") +COUNTIF(M61:M71,"TK")+COUNTIF(M61:M71,"EDUC")+COUNTIF(M61:M71,"ROW")+COUNTIF(M61:M71,"ZIEM")+COUNTIF(M61:M71,"EXTERN")+ COUNTIF(M39:M47,"NACHT")+COUNTIF(M39:M47,"WD")+COUNTIF(M39:M47,"WN")+COUNTIF(M39:M47,"EV")+COUNTIF(M39:M47,"EVU")+COUNTIF(M39:M47,"EVVJ")+COUNTIF(M39:M47,"EVUV")+COUNTIF(M39:M47,"WV") +COUNTIF(M39:M47,"TK")+COUNTIF(M39:M47,"EDUC")+COUNTIF(M39:M47,"ROW")+COUNTIF(M39:M47,"ZIEM")+COUNTIF(M39:M47,"EXTERN") -> 0 | N11: =COUNTIF(N61:N71,"NACHT")+COUNTIF(N61:N71,"WD")+COUNTIF(N61:N71,"WN")+COUNTIF(N61:N71,"EV")+COUNTIF(N61:N71,"EVU")+COUNTIF(N61:N71,"EVVJ")+COUNTIF(N61:N71,"EVUV")+COUNTIF(N61:N71,"WV") +COUNTIF(N61:N71,"TK")+COUNTIF(N61:N71,"EDUC")+COUNTIF(N61:N71,"ROW")+COUNTIF(N61:N71,"ZIEM")+COUNTIF(N61:N71,"EXTERN")+ COUNTIF(N39:N47,"NACHT")+COUNTIF(N39:N47,"WD")+COUNTIF(N39:N47,"WN")+COUNTIF(N39:N47,"EV")+COUNTIF(N39:N47,"EVU")+COUNTIF(N39:N47,"EVVJ")+COUNTIF(N39:N47,"EVUV")+COUNTIF(N39:N47,"WV") +COUNTIF(N39:N47,"TK")+COUNTIF(N39:N47,"EDUC")+COUNTIF(N39:N47,"ROW")+COUNTIF(N39:N47,"ZIEM")+COUNTIF(N39:N47,"EXTERN") -> 0 | P11: =COUNTIF(P61:P71,"NACHT")+COUNTIF(P61:P71,"WD")+COUNTIF(P61:P71,"WN")+COUNTIF(P61:P71,"EV")+COUNTIF(P61:P71,"EVU")+COUNTIF(P61:P71,"EVVJ")+COUNTIF(P61:P71,"EVUV")+COUNTIF(P61:P71,"WV") +COUNTIF(P61:P71,"TK")+COUNTIF(P61:P71,"EDUC")+COUNTIF(P61:P71,"ROW")+COUNTIF(P61:P71,"ZIEM")+COUNTIF(P61:P71,"EXTERN")+ COUNTIF(P38:P47,"NACHT")+COUNTIF(P38:P47,"WD")+COUNTIF(P38:P47,"WN")+COUNTIF(P38:P47,"EV")+COUNTIF(P38:P47,"EVU")+COUNTIF(P38:P47,"EVVJ")+COUNTIF(P38:P47,"EVUV")+COUNTIF(P38:P47,"WV") +COUNTIF(P38:P47,"TK")+COUNTIF(P38:P47,"EDUC")+COUNTIF(P38:P47,"ROW")+COUNTIF(P38:P47,"ZIEM")+COUNTIF(P38:P47,"EXTERN") -> 0 | Q11: =COUNTIF(Q61:Q71,"NACHT")+COUNTIF(Q61:Q71,"WD")+COUNTIF(Q61:Q71,"WN")+COUNTIF(Q61:Q71,"EV")+COUNTIF(Q61:Q71,"EVU")+COUNTIF(Q61:Q71,"EVVJ")+COUNTIF(Q61:Q71,"EVUV")+COUNTIF(Q61:Q71,"WV") +COUNTIF(Q61:Q71,"TK")+COUNTIF(Q61:Q71,"EDUC")+COUNTIF(Q61:Q71,"ROW")+COUNTIF(Q61:Q71,"ZIEM")+COUNTIF(Q61:Q71,"EXTERN")+ COUNTIF(Q38:Q47,"NACHT")+COUNTIF(Q38:Q47,"WD")+COUNTIF(Q38:Q47,"WN")+COUNTIF(Q38:Q47,"EV")+COUNTIF(Q38:Q47,"EVU")+COUNTIF(Q38:Q47,"EVVJ")+COUNTIF(Q38:Q47,"EVUV")+COUNTIF(Q38:Q47,"WV") +COUNTIF(Q38:Q47,"TK")+COUNTIF(Q38:Q47,"EDUC")+COUNTIF(Q38:Q47,"ROW")+COUNTIF(Q38:Q47,"ZIEM")+COUNTIF(Q38:Q47,"EXTERN") -> 0 | R11: =COUNTIF(R61:R71,"NACHT")+COUNTIF(R61:R71,"WD")+COUNTIF(R61:R71,"WN")+COUNTIF(R61:R71,"EV")+COUNTIF(R61:R71,"EVU")+COUNTIF(R61:R71,"EVVJ")+COUNTIF(R61:R71,"EVUV")+COUNTIF(R61:R71,"WV") +COUNTIF(R61:R71,"TK")+COUNTIF(R61:R71,"EDUC")+COUNTIF(R61:R71,"ROW")+COUNTIF(R61:R71,"ZIEM")+COUNTIF(R61:R71,"EXTERN")+ COUNTIF(R38:R47,"NACHT")+COUNTIF(R38:R47,"WD")+COUNTIF(R38:R47,"WN")+COUNTIF(R38:R47,"EV")+COUNTIF(R38:R47,"EVU")+COUNTIF(R38:R47,"EVVJ")+COUNTIF(R38:R47,"EVUV")+COUNTIF(R38:R47,"WV") +COUNTIF(R38:R47,"TK")+COUNTIF(R38:R47,"EDUC")+COUNTIF(R38:R47,"ROW")+COUNTIF(R38:R47,"ZIEM")+COUNTIF(R38:R47,"EXTERN") -> 0 | S11: =COUNTIF(S61:S71,"NACHT")+COUNTIF(S61:S71,"WD")+COUNTIF(S61:S71,"WN")+COUNTIF(S61:S71,"EV")+COUNTIF(S61:S71,"EVU")+COUNTIF(S61:S71,"EVVJ")+COUNTIF(S61:S71,"EVUV")+COUNTIF(S61:S71,"WV") +COUNTIF(S61:S71,"TK")+COUNTIF(S61:S71,"EDUC")+COUNTIF(S61:S71,"ROW")+COUNTIF(S61:S71,"ZIEM")+COUNTIF(S61:S71,"EXTERN")+ COUNTIF(S38:S47,"NACHT")+COUNTIF(S38:S47,"WD")+COUNTIF(S38:S47,"WN")+COUNTIF(S38:S47,"EV")+COUNTIF(S38:S47,"EVU")+COUNTIF(S38:S47,"EVVJ")+COUNTIF(S38:S47,"EVUV")+COUNTIF(S38:S47,"WV") +COUNTIF(S38:S47,"TK")+COUNTIF(S38:S47,"EDUC")+COUNTIF(S38:S47,"ROW")+COUNTIF(S38:S47,"ZIEM")+COUNTIF(S38:S47,"EXTERN") -> 0 | U11: =COUNTIF(U61:U71,"NACHT")+COUNTIF(U61:U71,"WD")+COUNTIF(U61:U71,"WN")+COUNTIF(U61:U71,"EV")+COUNTIF(U61:U71,"EVU")+COUNTIF(U61:U71,"EVVJ")+COUNTIF(U61:U71,"EVUV")+COUNTIF(U61:U71,"WV") +COUNTIF(U61:U71,"TK")+COUNTIF(U61:U71,"EDUC")+COUNTIF(U61:U71,"ROW")+COUNTIF(U61:U71,"ZIEM")+COUNTIF(U61:U71,"EXTERN")+ COUNTIF(U38:U47,"NACHT")+COUNTIF(U38:U47,"WD")+COUNTIF(U38:U47,"WN")+COUNTIF(U38:U47,"EV")+COUNTIF(U38:U47,"EVU")+COUNTIF(U38:U47,"EVVJ")+COUNTIF(U38:U47,"EVUV")+COUNTIF(U38:U47,"WV") +COUNTIF(U38:U47,"TK")+COUNTIF(U38:U47,"EDUC")+COUNTIF(U38:U47,"ROW")+COUNTIF(U38:U47,"ZIEM")+COUNTIF(U38:U47,"EXTERN") -> 0 | V11: =COUNTIF(V61:V71,"NACHT")+COUNTIF(V61:V71,"WD")+COUNTIF(V61:V71,"WN")+COUNTIF(V61:V71,"EV")+COUNTIF(V61:V71,"EVU")+COUNTIF(V61:V71,"EVVJ")+COUNTIF(V61:V71,"EVUV")+COUNTIF(V61:V71,"WV") +COUNTIF(V61:V71,"TK")+COUNTIF(V61:V71,"EDUC")+COUNTIF(V61:V71,"ROW")+COUNTIF(V61:V71,"ZIEM")+COUNTIF(V61:V71,"EXTERN")+ COUNTIF(V38:V47,"NACHT")+COUNTIF(V38:V47,"WD")+COUNTIF(V38:V47,"WN")+COUNTIF(V38:V47,"EV")+COUNTIF(V38:V47,"EVU")+COUNTIF(V38:V47,"EVVJ")+COUNTIF(V38:V47,"EVUV")+COUNTIF(V38:V47,"WV") +COUNTIF(V38:V47,"TK")+COUNTIF(V38:V47,"EDUC")+COUNTIF(V38:V47,"ROW")+COUNTIF(V38:V47,"ZIEM")+COUNTIF(V38:V47,"EXTERN") -> 0 | W11: =COUNTIF(W61:W71,"NACHT")+COUNTIF(W61:W71,"WD")+COUNTIF(W61:W71,"WN")+COUNTIF(W61:W71,"EV")+COUNTIF(W61:W71,"EVU")+COUNTIF(W61:W71,"EVVJ")+COUNTIF(W61:W71,"EVUV")+COUNTIF(W61:W71,"WV") +COUNTIF(W61:W71,"TK")+COUNTIF(W61:W71,"EDUC")+COUNTIF(W61:W71,"ROW")+COUNTIF(W61:W71,"ZIEM")+COUNTIF(W61:W71,"EXTERN")+ COUNTIF(W38:W47,"NACHT")+COUNTIF(W38:W47,"WD")+COUNTIF(W38:W47,"WN")+COUNTIF(W38:W47,"EV")+COUNTIF(W38:W47,"EVU")+COUNTIF(W38:W47,"EVVJ")+COUNTIF(W38:W47,"EVUV")+COUNTIF(W38:W47,"WV") +COUNTIF(W38:W47,"TK")+COUNTIF(W38:W47,"EDUC")+COUNTIF(W38:W47,"ROW")+COUNTIF(W38:W47,"ZIEM")+COUNTIF(W38:W47,"EXTERN") -> 0 | X11: =COUNTIF(X61:X71,"NACHT")+COUNTIF(X61:X71,"WD")+COUNTIF(X61:X71,"WN")+COUNTIF(X61:X71,"EV")+COUNTIF(X61:X71,"EVU")+COUNTIF(X61:X71,"EVVJ")+COUNTIF(X61:X71,"EVUV")+COUNTIF(X61:X71,"WV") +COUNTIF(X61:X71,"TK")+COUNTIF(X61:X71,"EDUC")+COUNTIF(X61:X71,"ROW")+COUNTIF(X61:X71,"ZIEM")+COUNTIF(X61:X71,"EXTERN")+ COUNTIF(X38:X47,"NACHT")+COUNTIF(X38:X47,"WD")+COUNTIF(X38:X47,"WN")+COUNTIF(X38:X47,"EV")+COUNTIF(X38:X47,"EVU")+COUNTIF(X38:X47,"EVVJ")+COUNTIF(X38:X47,"EVUV")+COUNTIF(X38:X47,"WV") +COUNTIF(X38:X47,"TK")+COUNTIF(X38:X47,"EDUC")+COUNTIF(X38:X47,"ROW")+COUNTIF(X38:X47,"ZIEM")+COUNTIF(X38:X47,"EXTERN") -> 0 | Z11: =COUNTIF(Z61:Z71,"NACHT")+COUNTIF(Z61:Z71,"WD")+COUNTIF(Z61:Z71,"WN")+COUNTIF(Z61:Z71,"EV")+COUNTIF(Z61:Z71,"EVU")+COUNTIF(Z61:Z71,"EVVJ")+COUNTIF(Z61:Z71,"EVUV")+COUNTIF(Z61:Z71,"WV") +COUNTIF(Z61:Z71,"TK")+COUNTIF(Z61:Z71,"EDUC")+COUNTIF(Z61:Z71,"ROW")+COUNTIF(Z61:Z71,"ZIEM")+COUNTIF(Z61:Z71,"EXTERN")+ COUNTIF(Z38:Z47,"NACHT")+COUNTIF(Z38:Z47,"WD")+COUNTIF(Z38:Z47,"WN")+COUNTIF(Z38:Z47,"EV")+COUNTIF(Z38:Z47,"EVU")+COUNTIF(Z38:Z47,"EVVJ")+COUNTIF(Z38:Z47,"EVUV")+COUNTIF(Z38:Z47,"WV") +COUNTIF(Z38:Z47,"TK")+COUNTIF(Z38:Z47,"EDUC")+COUNTIF(Z38:Z47,"ROW")+COUNTIF(Z38:Z47,"ZIEM")+COUNTIF(Z38:Z47,"EXTERN") -> 0 | AA11: =COUNTIF(AA61:AA71,"NACHT")+COUNTIF(AA61:AA71,"WD")+COUNTIF(AA61:AA71,"WN")+COUNTIF(AA61:AA71,"EV")+COUNTIF(AA61:AA71,"EVU")+COUNTIF(AA61:AA71,"EVVJ")+COUNTIF(AA61:AA71,"EVUV")+COUNTIF(AA61:AA71,"WV") +COUNTIF(AA61:AA71,"TK")+COUNTIF(AA61:AA71,"EDUC")+COUNTIF(AA61:AA71,"ROW")+COUNTIF(AA61:AA71,"ZIEM")+COUNTIF(AA61:AA71,"EXTERN")+ COUNTIF(AA38:AA47,"NACHT")+COUNTIF(AA38:AA47,"WD")+COUNTIF(AA38:AA47,"WN")+COUNTIF(AA38:AA47,"EV")+COUNTIF(AA38:AA47,"EVU")+COUNTIF(AA38:AA47,"EVVJ")+COUNTIF(AA38:AA47,"EVUV")+COUNTIF(AA38:AA47,"WV") +COUNTIF(AA38:AA47,"TK")+COUNTIF(AA38:AA47,"EDUC")+COUNTIF(AA38:AA47,"ROW")+COUNTIF(AA38:AA47,"ZIEM")+COUNTIF(AA38:AA47,"EXTERN") -> 0 | AB11: =COUNTIF(AB61:AB71,"NACHT")+COUNTIF(AB61:AB71,"WD")+COUNTIF(AB61:AB71,"WN")+COUNTIF(AB61:AB71,"EV")+COUNTIF(AB61:AB71,"EVU")+COUNTIF(AB61:AB71,"EVVJ")+COUNTIF(AB61:AB71,"EVUV")+COUNTIF(AB61:AB71,"WV") +COUNTIF(AB61:AB71,"TK")+COUNTIF(AB61:AB71,"EDUC")+COUNTIF(AB61:AB71,"ROW")+COUNTIF(AB61:AB71,"ZIEM")+COUNTIF(AB61:AB71,"EXTERN")+ COUNTIF(AB38:AB47,"NACHT")+COUNTIF(AB38:AB47,"WD")+COUNTIF(AB38:AB47,"WN")+COUNTIF(AB38:AB47,"EV")+COUNTIF(AB38:AB47,"EVU")+COUNTIF(AB38:AB47,"EVVJ")+COUNTIF(AB38:AB47,"EVUV")+COUNTIF(AB38:AB47,"WV") +COUNTIF(AB38:AB47,"TK")+COUNTIF(AB38:AB47,"EDUC")+COUNTIF(AB38:AB47,"ROW")+COUNTIF(AB38:AB47,"ZIEM")+COUNTIF(AB38:AB47,"EXTERN") -> 0 | AC11: =COUNTIF(AC61:AC71,"NACHT")+COUNTIF(AC61:AC71,"WD")+COUNTIF(AC61:AC71,"WN")+COUNTIF(AC61:AC71,"EV")+COUNTIF(AC61:AC71,"EVU")+COUNTIF(AC61:AC71,"EVVJ")+COUNTIF(AC61:AC71,"EVUV")+COUNTIF(AC61:AC71,"WV") +COUNTIF(AC61:AC71,"TK")+COUNTIF(AC61:AC71,"EDUC")+COUNTIF(AC61:AC71,"ROW")+COUNTIF(AC61:AC71,"ZIEM")+COUNTIF(AC61:AC71,"EXTERN")+ COUNTIF(AC38:AC47,"NACHT")+COUNTIF(AC38:AC47,"WD")+COUNTIF(AC38:AC47,"WN")+COUNTIF(AC38:AC47,"EV")+COUNTIF(AC38:AC47,"EVU")+COUNTIF(AC38:AC47,"EVVJ")+COUNTIF(AC38:AC47,"EVUV")+COUNTIF(AC38:AC47,"WV") +COUNTIF(AC38:AC47,"TK")+COUNTIF(AC38:AC47,"EDUC")+COUNTIF(AC38:AC47,"ROW")+COUNTIF(AC38:AC47,"ZIEM")+COUNTIF(AC38:AC47,"EXTERN") -> 0 | AD11: =SUM(F11:AC11) -> 0
C12: Aanwezig | F12: =COUNTIF(F61:F71,"XTRA KPO")+COUNTIF(F61:F71,"M2")+COUNTIF(F61:F71,"M4")+COUNTIF(F61:F71,"M5")+COUNTIF(F61:F71,"KNOP")+IF(COUNTIF(F61:F71,"")>3,4,COUNTIF(F61:F71,""))+ COUNTIF(F38:F47,"XTRA KPO")+COUNTIF(F38:F47,"M2")+COUNTIF(F38:F47,"M4")+COUNTIF(F38:F47,"M5")+COUNTIF(F38:F47,"KNOP")+IF(COUNTIF(F38:F47,"")>3,4,COUNTIF(F38:F47,"")) -> 10 | G12: =COUNTIF(G61:G71,"XTRA KPO")+COUNTIF(G61:G71,"M2")+COUNTIF(G61:G71,"M4")+COUNTIF(G61:G71,"M5")+COUNTIF(G61:G71,"KNOP")+IF(COUNTIF(G61:G71,"")>3,4,COUNTIF(G61:G71,""))+ COUNTIF(G38:G47,"XTRA KPO")+COUNTIF(G38:G47,"M2")+COUNTIF(G38:G47,"M4")+COUNTIF(G38:G47,"M5")+COUNTIF(G38:G47,"KNOP")+IF(COUNTIF(G38:G47,"")>3,4,COUNTIF(G38:G47,"")) -> 10 | H12: =COUNTIF(H61:H71,"XTRA KPO")+COUNTIF(H61:H71,"M2")+COUNTIF(H61:H71,"M4")+COUNTIF(H61:H71,"M5")+COUNTIF(H61:H71,"KNOP")+IF(COUNTIF(H61:H71,"")>3,4,COUNTIF(H61:H71,""))+ COUNTIF(H38:H47,"XTRA KPO")+COUNTIF(H38:H47,"M2")+COUNTIF(H38:H47,"M4")+COUNTIF(H38:H47,"M5")+COUNTIF(H38:H47,"KNOP")+IF(COUNTIF(H38:H47,"")>3,4,COUNTIF(H38:H47,"")) -> 10 | I12: =COUNTIF(I61:I71,"XTRA KPO")+COUNTIF(I61:I71,"M2")+COUNTIF(I61:I71,"M4")+COUNTIF(I61:I71,"M5")+COUNTIF(I61:I71,"KNOP")+IF(COUNTIF(I61:I71,"")>3,4,COUNTIF(I61:I71,""))+ COUNTIF(I38:I47,"XTRA KPO")+COUNTIF(I38:I47,"M2")+COUNTIF(I38:I47,"M4")+COUNTIF(I38:I47,"M5")+COUNTIF(I38:I47,"KNOP")+IF(COUNTIF(I38:I47,"")>3,4,COUNTIF(I38:I47,"")) -> 10 | K12: =COUNTIF(K61:K71,"XTRA KPO")+COUNTIF(K61:K71,"M2")+COUNTIF(K61:K71,"M4")+COUNTIF(K61:K71,"M5")+COUNTIF(K61:K71,"KNOP")+IF(COUNTIF(K61:K71,"")>3,4,COUNTIF(K61:K71,""))+ COUNTIF(K39:K47,"XTRA KPO")+COUNTIF(K39:K47,"M2")+COUNTIF(K39:K47,"M4")+COUNTIF(K39:K47,"M5")+COUNTIF(K39:K47,"KNOP")+IF(COUNTIF(K39:K47,"")>3,4,COUNTIF(K39:K47,"")) -> 10 | L12: =COUNTIF(L61:L71,"XTRA KPO")+COUNTIF(L61:L71,"M2")+COUNTIF(L61:L71,"M4")+COUNTIF(L61:L71,"M5")+COUNTIF(L61:L71,"KNOP")+IF(COUNTIF(L61:L71,"")>3,4,COUNTIF(L61:L71,""))+ COUNTIF(L39:L47,"XTRA KPO")+COUNTIF(L39:L47,"M2")+COUNTIF(L39:L47,"M4")+COUNTIF(L39:L47,"M5")+COUNTIF(L39:L47,"KNOP")+IF(COUNTIF(L39:L47,"")>3,4,COUNTIF(L39:L47,"")) -> 10 | M12: =COUNTIF(M61:M71,"XTRA KPO")+COUNTIF(M61:M71,"M2")+COUNTIF(M61:M71,"M4")+COUNTIF(M61:M71,"M5")+COUNTIF(M61:M71,"KNOP")+IF(COUNTIF(M61:M71,"")>3,4,COUNTIF(M61:M71,""))+ COUNTIF(M39:M47,"XTRA KPO")+COUNTIF(M39:M47,"M2")+COUNTIF(M39:M47,"M4")+COUNTIF(M39:M47,"M5")+COUNTIF(M39:M47,"KNOP")+IF(COUNTIF(M39:M47,"")>3,4,COUNTIF(M39:M47,"")) -> 10 | N12: =COUNTIF(N61:N71,"XTRA KPO")+COUNTIF(N61:N71,"M2")+COUNTIF(N61:N71,"M4")+COUNTIF(N61:N71,"M5")+COUNTIF(N61:N71,"KNOP")+IF(COUNTIF(N61:N71,"")>3,4,COUNTIF(N61:N71,""))+ COUNTIF(N39:N47,"XTRA KPO")+COUNTIF(N39:N47,"M2")+COUNTIF(N39:N47,"M4")+COUNTIF(N39:N47,"M5")+COUNTIF(N39:N47,"KNOP")+IF(COUNTIF(N39:N47,"")>3,4,COUNTIF(N39:N47,"")) -> 10 | P12: =COUNTIF(P61:P71,"XTRA KPO")+COUNTIF(P61:P71,"M2")+COUNTIF(P61:P71,"M4")+COUNTIF(P61:P71,"M5")+COUNTIF(P61:P71,"KNOP")+IF(COUNTIF(P61:P71,"")>3,4,COUNTIF(P61:P71,""))+ COUNTIF(P38:P47,"XTRA KPO")+COUNTIF(P38:P47,"M2")+COUNTIF(P38:P47,"M4")+COUNTIF(P38:P47,"M5")+COUNTIF(P38:P47,"KNOP")+IF(COUNTIF(P38:P47,"")>3,4,COUNTIF(P38:P47,"")) -> 10 | Q12: =COUNTIF(Q61:Q71,"XTRA KPO")+COUNTIF(Q61:Q71,"M2")+COUNTIF(Q61:Q71,"M4")+COUNTIF(Q61:Q71,"M5")+COUNTIF(Q61:Q71,"KNOP")+IF(COUNTIF(Q61:Q71,"")>3,4,COUNTIF(Q61:Q71,""))+ COUNTIF(Q38:Q47,"XTRA KPO")+COUNTIF(Q38:Q47,"M2")+COUNTIF(Q38:Q47,"M4")+COUNTIF(Q38:Q47,"M5")+COUNTIF(Q38:Q47,"KNOP")+IF(COUNTIF(Q38:Q47,"")>3,4,COUNTIF(Q38:Q47,"")) -> 10 | R12: =COUNTIF(R61:R71,"XTRA KPO")+COUNTIF(R61:R71,"M2")+COUNTIF(R61:R71,"M4")+COUNTIF(R61:R71,"M5")+COUNTIF(R61:R71,"KNOP")+IF(COUNTIF(R61:R71,"")>3,4,COUNTIF(R61:R71,""))+ COUNTIF(R38:R47,"XTRA KPO")+COUNTIF(R38:R47,"M2")+COUNTIF(R38:R47,"M4")+COUNTIF(R38:R47,"M5")+COUNTIF(R38:R47,"KNOP")+IF(COUNTIF(R38:R47,"")>3,4,COUNTIF(R38:R47,"")) -> 10 | S12: =COUNTIF(S61:S71,"XTRA KPO")+COUNTIF(S61:S71,"M2")+COUNTIF(S61:S71,"M4")+COUNTIF(S61:S71,"M5")+COUNTIF(S61:S71,"KNOP")+IF(COUNTIF(S61:S71,"")>3,4,COUNTIF(S61:S71,""))+ COUNTIF(S38:S47,"XTRA KPO")+COUNTIF(S38:S47,"M2")+COUNTIF(S38:S47,"M4")+COUNTIF(S38:S47,"M5")+COUNTIF(S38:S47,"KNOP")+IF(COUNTIF(S38:S47,"")>3,4,COUNTIF(S38:S47,"")) -> 10 | U12: =COUNTIF(U61:U71,"XTRA KPO")+COUNTIF(U61:U71,"M2")+COUNTIF(U61:U71,"M4")+COUNTIF(U61:U71,"M5")+COUNTIF(U61:U71,"KNOP")+IF(COUNTIF(U61:U71,"")>3,4,COUNTIF(U61:U71,""))+ COUNTIF(U38:U47,"XTRA KPO")+COUNTIF(U38:U47,"M2")+COUNTIF(U38:U47,"M4")+COUNTIF(U38:U47,"M5")+COUNTIF(U38:U47,"KNOP")+IF(COUNTIF(U38:U47,"")>3,4,COUNTIF(U38:U47,"")) -> 10 | V12: =COUNTIF(V61:V71,"XTRA KPO")+COUNTIF(V61:V71,"M2")+COUNTIF(V61:V71,"M4")+COUNTIF(V61:V71,"M5")+COUNTIF(V61:V71,"KNOP")+IF(COUNTIF(V61:V71,"")>3,4,COUNTIF(V61:V71,""))+ COUNTIF(V38:V47,"XTRA KPO")+COUNTIF(V38:V47,"M2")+COUNTIF(V38:V47,"M4")+COUNTIF(V38:V47,"M5")+COUNTIF(V38:V47,"KNOP")+IF(COUNTIF(V38:V47,"")>3,4,COUNTIF(V38:V47,"")) -> 10 | W12: =COUNTIF(W61:W71,"XTRA KPO")+COUNTIF(W61:W71,"M2")+COUNTIF(W61:W71,"M4")+COUNTIF(W61:W71,"M5")+COUNTIF(W61:W71,"KNOP")+IF(COUNTIF(W61:W71,"")>3,4,COUNTIF(W61:W71,""))+ COUNTIF(W38:W47,"XTRA KPO")+COUNTIF(W38:W47,"M2")+COUNTIF(W38:W47,"M4")+COUNTIF(W38:W47,"M5")+COUNTIF(W38:W47,"KNOP")+IF(COUNTIF(W38:W47,"")>3,4,COUNTIF(W38:W47,"")) -> 10 | X12: =COUNTIF(X61:X71,"XTRA KPO")+COUNTIF(X61:X71,"M2")+COUNTIF(X61:X71,"M4")+COUNTIF(X61:X71,"M5")+COUNTIF(X61:X71,"KNOP")+IF(COUNTIF(X61:X71,"")>3,4,COUNTIF(X61:X71,""))+ COUNTIF(X38:X47,"XTRA KPO")+COUNTIF(X38:X47,"M2")+COUNTIF(X38:X47,"M4")+COUNTIF(X38:X47,"M5")+COUNTIF(X38:X47,"KNOP")+IF(COUNTIF(X38:X47,"")>3,4,COUNTIF(X38:X47,"")) -> 10 | Z12: =COUNTIF(Z61:Z71,"XTRA KPO")+COUNTIF(Z61:Z71,"M2")+COUNTIF(Z61:Z71,"M4")+COUNTIF(Z61:Z71,"M5")+COUNTIF(Z61:Z71,"KNOP")+IF(COUNTIF(Z61:Z71,"")>3,4,COUNTIF(Z61:Z71,""))+ COUNTIF(Z38:Z47,"XTRA KPO")+COUNTIF(Z38:Z47,"M2")+COUNTIF(Z38:Z47,"M4")+COUNTIF(Z38:Z47,"M5")+COUNTIF(Z38:Z47,"KNOP")+IF(COUNTIF(Z38:Z47,"")>3,4,COUNTIF(Z38:Z47,"")) -> 9 | AA12: =COUNTIF(AA61:AA71,"XTRA KPO")+COUNTIF(AA61:AA71,"M2")+COUNTIF(AA61:AA71,"M4")+COUNTIF(AA61:AA71,"M5")+COUNTIF(AA61:AA71,"KNOP")+IF(COUNTIF(AA61:AA71,"")>3,4,COUNTIF(AA61:AA71,""))+ COUNTIF(AA38:AA47,"XTRA KPO")+COUNTIF(AA38:AA47,"M2")+COUNTIF(AA38:AA47,"M4")+COUNTIF(AA38:AA47,"M5")+COUNTIF(AA38:AA47,"KNOP")+IF(COUNTIF(AA38:AA47,"")>3,4,COUNTIF(AA38:AA47,"")) -> 9 | AB12: =COUNTIF(AB61:AB71,"XTRA KPO")+COUNTIF(AB61:AB71,"M2")+COUNTIF(AB61:AB71,"M4")+COUNTIF(AB61:AB71,"M5")+COUNTIF(AB61:AB71,"KNOP")+IF(COUNTIF(AB61:AB71,"")>3,4,COUNTIF(AB61:AB71,""))+ COUNTIF(AB38:AB47,"XTRA KPO")+COUNTIF(AB38:AB47,"M2")+COUNTIF(AB38:AB47,"M4")+COUNTIF(AB38:AB47,"M5")+COUNTIF(AB38:AB47,"KNOP")+IF(COUNTIF(AB38:AB47,"")>3,4,COUNTIF(AB38:AB47,"")) -> 9 | AC12: =COUNTIF(AC61:AC71,"XTRA KPO")+COUNTIF(AC61:AC71,"M2")+COUNTIF(AC61:AC71,"M4")+COUNTIF(AC61:AC71,"M5")+COUNTIF(AC61:AC71,"KNOP")+IF(COUNTIF(AC61:AC71,"")>3,4,COUNTIF(AC61:AC71,""))+ COUNTIF(AC38:AC47,"XTRA KPO")+COUNTIF(AC38:AC47,"M2")+COUNTIF(AC38:AC47,"M4")+COUNTIF(AC38:AC47,"M5")+COUNTIF(AC38:AC47,"KNOP")+IF(COUNTIF(AC38:AC47,"")>3,4,COUNTIF(AC38:AC47,"")) -> 9 | AD12: =SUM(F12:AC12) -> 196
C13: WERKELIJKE planuren percent | F13: =(F8-(1.75*F11)-(1.75*F12))/((F8-(1.75*F11))) -> 0.5238095238 | G13: =(G8-(1.75*G11)-(1.75*G12))/((G8-(1.75*G11))) -> 0.5238095238 | H13: 0.5238095238 | I13: 0.5238095238 | K13: 0.5238095238 | L13: 0.5238095238 | M13: 0.5238095238 | N13: 0.5238095238 | P13: 0.5238095238 | Q13: 0.5238095238 | R13: 0.5238095238 | S13: 0.5238095238 | U13: 0.5238095238 | V13: 0.5238095238 | W13: 0.5238095238 | X13: 0.5238095238 | Z13: 0.5714285714 | AA13: 0.5714285714 | AB13: 0.5714285714 | AC13: 0.5714285714 | AD13: 0.5333333333
A16: ELEKTRISCH | F16: =AD22 -> 0.3875
C17: MAX bezetting | F17: =(COUNTIF($B$73:$C$80,"><""")+COUNTIF($B$49:$C$56,"><"""))*1.75 -> 28 | G17: =(COUNTIF($B$73:$C$80,"><""")+COUNTIF($B$49:$C$56,"><"""))*1.75 -> 28 | H17: =(COUNTIF($B$73:$C$80,"><""")+COUNTIF($B$49:$C$56,"><"""))*1.75 -> 28 | I17: =(COUNTIF($B$73:$C$80,"><""")+COUNTIF($B$49:$C$56,"><"""))*1.75 -> 28 | K17: =(COUNTIF($B$73:$C$80,"><""")+COUNTIF($B$49:$C$56,"><"""))*1.75 -> 28 | L17: =(COUNTIF($B$73:$C$80,"><""")+COUNTIF($B$49:$C$56,"><"""))*1.75 -> 28 | M17: =(COUNTIF($B$73:$C$80,"><""")+COUNTIF($B$49:$C$56,"><"""))*1.75 -> 28 | N17: =(COUNTIF($B$73:$C$80,"><""")+COUNTIF($B$49:$C$56,"><"""))*1.75 -> 28 | P17: =(COUNTIF($B$73:$C$80,"><""")+COUNTIF($B$49:$C$56,"><"""))*1.75 -> 28 | Q17: =(COUNTIF($B$73:$C$80,"><""")+COUNTIF($B$49:$C$56,"><"""))*1.75 -> 28 | R17: =(COUNTIF($B$73:$C$80,"><""")+COUNTIF($B$49:$C$56,"><"""))*1.75 -> 28 | S17: =(COUNTIF($B$73:$C$80,"><""")+COUNTIF($B$49:$C$56,"><"""))*1.75 -> 28 | U17: =(COUNTIF($B$73:$C$80,"><""")+COUNTIF($B$49:$C$56,"><"""))*1.75 -> 28 | V17: =(COUNTIF($B$73:$C$80,"><""")+COUNTIF($B$49:$C$56,"><"""))*1.75 -> 28 | W17: =(COUNTIF($B$73:$C$80,"><""")+COUNTIF($B$49:$C$56,"><"""))*1.75 -> 28 | X17: =(COUNTIF($B$73:$C$80,"><""")+COUNTIF($B$49:$C$56,"><"""))*1.75 -> 28 | Z17: =(COUNTIF($B$73:$C$80,"><""")+COUNTIF($B$49:$C$56,"><"""))*1.75 -> 28 | AA17: =(COUNTIF($B$73:$C$80,"><""")+COUNTIF($B$49:$C$56,"><"""))*1.75 -> 28 | AB17: =(COUNTIF($B$73:$C$80,"><""")+COUNTIF($B$49:$C$56,"><"""))*1.75 -> 28 | AC17: =(COUNTIF($B$73:$C$80,"><""")+COUNTIF($B$49:$C$56,"><"""))*1.75 -> 28 | AD17: =SUM(F17:AC17) -> 560
C18: Uren ter beschikking | F18: =COUNTBLANK(F73:F80)*1.75+COUNTBLANK(F49:F56)*1.75 -> 24.5 | G18: =COUNTBLANK(G73:G80)*1.75+COUNTBLANK(G49:G56)*1.75 -> 24.5 | H18: =COUNTBLANK(H73:H80)*1.75+COUNTBLANK(H49:H56)*1.75 -> 24.5 | I18: =COUNTBLANK(I73:I80)*1.75+COUNTBLANK(I49:I56)*1.75 -> 24.5 | K18: =COUNTBLANK(K73:K80)*1.75+COUNTBLANK(K49:K56)*1.75 -> 24.5 | L18: =COUNTBLANK(L73:L80)*1.75+COUNTBLANK(L49:L56)*1.75 -> 24.5 | M18: =COUNTBLANK(M73:M80)*1.75+COUNTBLANK(M49:M56)*1.75 -> 24.5 | N18: =COUNTBLANK(N73:N80)*1.75+COUNTBLANK(N49:N56)*1.75 -> 24.5 | P18: =COUNTBLANK(P73:P80)*1.75+COUNTBLANK(P49:P56)*1.75 -> 24.5 | Q18: =COUNTBLANK(Q73:Q80)*1.75+COUNTBLANK(Q49:Q56)*1.75 -> 24.5 | R18: =COUNTBLANK(R73:R80)*1.75+COUNTBLANK(R49:R56)*1.75 -> 24.5 | S18: =COUNTBLANK(S73:S80)*1.75+COUNTBLANK(S49:S56)*1.75 -> 24.5 | U18: =COUNTBLANK(U73:U80)*1.75+COUNTBLANK(U49:U56)*1.75 -> 24.5 | V18: =COUNTBLANK(V73:V80)*1.75+COUNTBLANK(V49:V56)*1.75 -> 24.5 | W18: =COUNTBLANK(W73:W80)*1.75+COUNTBLANK(W49:W56)*1.75 -> 24.5 | X18: =COUNTBLANK(X73:X80)*1.75+COUNTBLANK(X49:X56)*1.75 -> 24.5 | Z18: =COUNTBLANK(Z73:Z80)*1.75+COUNTBLANK(Z49:Z56)*1.75 -> 26.25 | AA18: =COUNTBLANK(AA73:AA80)*1.75+COUNTBLANK(AA49:AA56)*1.75 -> 26.25 | AB18: =COUNTBLANK(AB73:AB80)*1.75+COUNTBLANK(AB49:AB56)*1.75 -> 26.25 | AC18: =COUNTBLANK(AC73:AC80)*1.75+COUNTBLANK(AC49:AC56)*1.75 -> 26.25
C19: Percentage Geheel | F19: =+F18/F17 -> 0.875 | G19: =+G18/G17 -> 0.875 | H19: 0.875 | I19: 0.875 | K19: 0.875 | L19: 0.875 | M19: 0.875 | N19: 0.875 | P19: 0.875 | Q19: 0.875 | R19: 0.875 | S19: 0.875 | U19: 0.875 | V19: 0.875 | W19: 0.875 | X19: 0.875 | Z19: 0.9375 | AA19: 0.9375 | AB19: 0.9375 | AC19: 0.9375
C20: Verlof | F20: =COUNTIF(F73:F80,"NACHT")+COUNTIF(F73:F80,"WD")+COUNTIF(F73:F80,"WN")+COUNTIF(F73:F80,"EV")+COUNTIF(F73:F80,"EVU")+COUNTIF(F73:F80,"EVVJ")+COUNTIF(F73:F80,"EVUV")+COUNTIF(F73:F80,"WV") +COUNTIF(F73:F80,"TK")+COUNTIF(F73:F80,"EDUC")+COUNTIF(F73:F80,"ROW")+COUNTIF(F73:F80,"ZIEM")+COUNTIF(F73:F80,"EXTERN")+ COUNTIF(F49:F56,"NACHT")+COUNTIF(F49:F56,"WD")+COUNTIF(F49:F56,"WN")+COUNTIF(F49:F56,"EV")+COUNTIF(F49:F56,"EVU")+COUNTIF(F49:F56,"EVVJ")+COUNTIF(F49:F56,"EVUV")+COUNTIF(F49:F56,"WV") +COUNTIF(F49:F56,"TK")+COUNTIF(F49:F56,"EDUC")+COUNTIF(F49:F56,"ROW")+COUNTIF(F49:F56,"ZIEM")+COUNTIF(F49:F56,"EXTERN") -> 0 | G20: =COUNTIF(G73:G80,"NACHT")+COUNTIF(G73:G80,"WD")+COUNTIF(G73:G80,"WN")+COUNTIF(G73:G80,"EV")+COUNTIF(G73:G80,"EVU")+COUNTIF(G73:G80,"EVVJ")+COUNTIF(G73:G80,"EVUV")+COUNTIF(G73:G80,"WV") +COUNTIF(G73:G80,"TK")+COUNTIF(G73:G80,"EDUC")+COUNTIF(G73:G80,"ROW")+COUNTIF(G73:G80,"ZIEM")+COUNTIF(G73:G80,"EXTERN")+ COUNTIF(G49:G56,"NACHT")+COUNTIF(G49:G56,"WD")+COUNTIF(G49:G56,"WN")+COUNTIF(G49:G56,"EV")+COUNTIF(G49:G56,"EVU")+COUNTIF(G49:G56,"EVVJ")+COUNTIF(G49:G56,"EVUV")+COUNTIF(G49:G56,"WV") +COUNTIF(G49:G56,"TK")+COUNTIF(G49:G56,"EDUC")+COUNTIF(G49:G56,"ROW")+COUNTIF(G49:G56,"ZIEM")+COUNTIF(G49:G56,"EXTERN") -> 0 | H20: =COUNTIF(H73:H80,"NACHT")+COUNTIF(H73:H80,"WD")+COUNTIF(H73:H80,"WN")+COUNTIF(H73:H80,"EV")+COUNTIF(H73:H80,"EVU")+COUNTIF(H73:H80,"EVVJ")+COUNTIF(H73:H80,"EVUV")+COUNTIF(H73:H80,"WV") +COUNTIF(H73:H80,"TK")+COUNTIF(H73:H80,"EDUC")+COUNTIF(H73:H80,"ROW")+COUNTIF(H73:H80,"ZIEM")+COUNTIF(H73:H80,"EXTERN")+ COUNTIF(H49:H56,"NACHT")+COUNTIF(H49:H56,"WD")+COUNTIF(H49:H56,"WN")+COUNTIF(H49:H56,"EV")+COUNTIF(H49:H56,"EVU")+COUNTIF(H49:H56,"EVVJ")+COUNTIF(H49:H56,"EVUV")+COUNTIF(H49:H56,"WV") +COUNTIF(H49:H56,"TK")+COUNTIF(H49:H56,"EDUC")+COUNTIF(H49:H56,"ROW")+COUNTIF(H49:H56,"ZIEM")+COUNTIF(H49:H56,"EXTERN") -> 0 | I20: =COUNTIF(I73:I80,"NACHT")+COUNTIF(I73:I80,"WD")+COUNTIF(I73:I80,"WN")+COUNTIF(I73:I80,"EV")+COUNTIF(I73:I80,"EVU")+COUNTIF(I73:I80,"EVVJ")+COUNTIF(I73:I80,"EVUV")+COUNTIF(I73:I80,"WV") +COUNTIF(I73:I80,"TK")+COUNTIF(I73:I80,"EDUC")+COUNTIF(I73:I80,"ROW")+COUNTIF(I73:I80,"ZIEM")+COUNTIF(I73:I80,"EXTERN")+ COUNTIF(I49:I56,"NACHT")+COUNTIF(I49:I56,"WD")+COUNTIF(I49:I56,"WN")+COUNTIF(I49:I56,"EV")+COUNTIF(I49:I56,"EVU")+COUNTIF(I49:I56,"EVVJ")+COUNTIF(I49:I56,"EVUV")+COUNTIF(I49:I56,"WV") +COUNTIF(I49:I56,"TK")+COUNTIF(I49:I56,"EDUC")+COUNTIF(I49:I56,"ROW")+COUNTIF(I49:I56,"ZIEM")+COUNTIF(I49:I56,"EXTERN") -> 0 | K20: =COUNTIF(K73:K80,"NACHT")+COUNTIF(K73:K80,"WD")+COUNTIF(K73:K80,"WN")+COUNTIF(K73:K80,"EV")+COUNTIF(K73:K80,"EVU")+COUNTIF(K73:K80,"EVVJ")+COUNTIF(K73:K80,"EVUV")+COUNTIF(K73:K80,"WV") +COUNTIF(K73:K80,"TK")+COUNTIF(K73:K80,"EDUC")+COUNTIF(K73:K80,"ROW")+COUNTIF(K73:K80,"ZIEM")+COUNTIF(K73:K80,"EXTERN")+ COUNTIF(K49:K56,"NACHT")+COUNTIF(K49:K56,"WD")+COUNTIF(K49:K56,"WN")+COUNTIF(K49:K56,"EV")+COUNTIF(K49:K56,"EVU")+COUNTIF(K49:K56,"EVVJ")+COUNTIF(K49:K56,"EVUV")+COUNTIF(K49:K56,"WV") +COUNTIF(K49:K56,"TK")+COUNTIF(K49:K56,"EDUC")+COUNTIF(K49:K56,"ROW")+COUNTIF(K49:K56,"ZIEM")+COUNTIF(K49:K56,"EXTERN") -> 0 | L20: =COUNTIF(L73:L80,"NACHT")+COUNTIF(L73:L80,"WD")+COUNTIF(L73:L80,"WN")+COUNTIF(L73:L80,"EV")+COUNTIF(L73:L80,"EVU")+COUNTIF(L73:L80,"EVVJ")+COUNTIF(L73:L80,"EVUV")+COUNTIF(L73:L80,"WV") +COUNTIF(L73:L80,"TK")+COUNTIF(L73:L80,"EDUC")+COUNTIF(L73:L80,"ROW")+COUNTIF(L73:L80,"ZIEM")+COUNTIF(L73:L80,"EXTERN")+ COUNTIF(L49:L56,"NACHT")+COUNTIF(L49:L56,"WD")+COUNTIF(L49:L56,"WN")+COUNTIF(L49:L56,"EV")+COUNTIF(L49:L56,"EVU")+COUNTIF(L49:L56,"EVVJ")+COUNTIF(L49:L56,"EVUV")+COUNTIF(L49:L56,"WV") +COUNTIF(L49:L56,"TK")+COUNTIF(L49:L56,"EDUC")+COUNTIF(L49:L56,"ROW")+COUNTIF(L49:L56,"ZIEM")+COUNTIF(L49:L56,"EXTERN") -> 0 | M20: =COUNTIF(M73:M80,"NACHT")+COUNTIF(M73:M80,"WD")+COUNTIF(M73:M80,"WN")+COUNTIF(M73:M80,"EV")+COUNTIF(M73:M80,"EVU")+COUNTIF(M73:M80,"EVVJ")+COUNTIF(M73:M80,"EVUV")+COUNTIF(M73:M80,"WV") +COUNTIF(M73:M80,"TK")+COUNTIF(M73:M80,"EDUC")+COUNTIF(M73:M80,"ROW")+COUNTIF(M73:M80,"ZIEM")+COUNTIF(M73:M80,"EXTERN")+ COUNTIF(M49:M56,"NACHT")+COUNTIF(M49:M56,"WD")+COUNTIF(M49:M56,"WN")+COUNTIF(M49:M56,"EV")+COUNTIF(M49:M56,"EVU")+COUNTIF(M49:M56,"EVVJ")+COUNTIF(M49:M56,"EVUV")+COUNTIF(M49:M56,"WV") +COUNTIF(M49:M56,"TK")+COUNTIF(M49:M56,"EDUC")+COUNTIF(M49:M56,"ROW")+COUNTIF(M49:M56,"ZIEM")+COUNTIF(M49:M56,"EXTERN") -> 0 | N20: =COUNTIF(N73:N80,"NACHT")+COUNTIF(N73:N80,"WD")+COUNTIF(N73:N80,"WN")+COUNTIF(N73:N80,"EV")+COUNTIF(N73:N80,"EVU")+COUNTIF(N73:N80,"EVVJ")+COUNTIF(N73:N80,"EVUV")+COUNTIF(N73:N80,"WV") +COUNTIF(N73:N80,"TK")+COUNTIF(N73:N80,"EDUC")+COUNTIF(N73:N80,"ROW")+COUNTIF(N73:N80,"ZIEM")+COUNTIF(N73:N80,"EXTERN")+ COUNTIF(N49:N56,"NACHT")+COUNTIF(N49:N56,"WD")+COUNTIF(N49:N56,"WN")+COUNTIF(N49:N56,"EV")+COUNTIF(N49:N56,"EVU")+COUNTIF(N49:N56,"EVVJ")+COUNTIF(N49:N56,"EVUV")+COUNTIF(N49:N56,"WV") +COUNTIF(N49:N56,"TK")+COUNTIF(N49:N56,"EDUC")+COUNTIF(N49:N56,"ROW")+COUNTIF(N49:N56,"ZIEM")+COUNTIF(N49:N56,"EXTERN") -> 0 | P20: =COUNTIF(P73:P80,"NACHT")+COUNTIF(P73:P80,"WD")+COUNTIF(P73:P80,"WN")+COUNTIF(P73:P80,"EV")+COUNTIF(P73:P80,"EVU")+COUNTIF(P73:P80,"EVVJ")+COUNTIF(P73:P80,"EVUV")+COUNTIF(P73:P80,"WV") +COUNTIF(P73:P80,"TK")+COUNTIF(P73:P80,"EDUC")+COUNTIF(P73:P80,"ROW")+COUNTIF(P73:P80,"ZIEM")+COUNTIF(P73:P80,"EXTERN")+ COUNTIF(P49:P56,"NACHT")+COUNTIF(P49:P56,"WD")+COUNTIF(P49:P56,"WN")+COUNTIF(P49:P56,"EV")+COUNTIF(P49:P56,"EVU")+COUNTIF(P49:P56,"EVVJ")+COUNTIF(P49:P56,"EVUV")+COUNTIF(P49:P56,"WV") +COUNTIF(P49:P56,"TK")+COUNTIF(P49:P56,"EDUC")+COUNTIF(P49:P56,"ROW")+COUNTIF(P49:P56,"ZIEM")+COUNTIF(P49:P56,"EXTERN") -> 0 | Q20: =COUNTIF(Q73:Q80,"NACHT")+COUNTIF(Q73:Q80,"WD")+COUNTIF(Q73:Q80,"WN")+COUNTIF(Q73:Q80,"EV")+COUNTIF(Q73:Q80,"EVU")+COUNTIF(Q73:Q80,"EVVJ")+COUNTIF(Q73:Q80,"EVUV")+COUNTIF(Q73:Q80,"WV") +COUNTIF(Q73:Q80,"TK")+COUNTIF(Q73:Q80,"EDUC")+COUNTIF(Q73:Q80,"ROW")+COUNTIF(Q73:Q80,"ZIEM")+COUNTIF(Q73:Q80,"EXTERN")+ COUNTIF(Q49:Q56,"NACHT")+COUNTIF(Q49:Q56,"WD")+COUNTIF(Q49:Q56,"WN")+COUNTIF(Q49:Q56,"EV")+COUNTIF(Q49:Q56,"EVU")+COUNTIF(Q49:Q56,"EVVJ")+COUNTIF(Q49:Q56,"EVUV")+COUNTIF(Q49:Q56,"WV") +COUNTIF(Q49:Q56,"TK")+COUNTIF(Q49:Q56,"EDUC")+COUNTIF(Q49:Q56,"ROW")+COUNTIF(Q49:Q56,"ZIEM")+COUNTIF(Q49:Q56,"EXTERN") -> 0 | R20: =COUNTIF(R73:R80,"NACHT")+COUNTIF(R73:R80,"WD")+COUNTIF(R73:R80,"WN")+COUNTIF(R73:R80,"EV")+COUNTIF(R73:R80,"EVU")+COUNTIF(R73:R80,"EVVJ")+COUNTIF(R73:R80,"EVUV")+COUNTIF(R73:R80,"WV") +COUNTIF(R73:R80,"TK")+COUNTIF(R73:R80,"EDUC")+COUNTIF(R73:R80,"ROW")+COUNTIF(R73:R80,"ZIEM")+COUNTIF(R73:R80,"EXTERN")+ COUNTIF(R49:R56,"NACHT")+COUNTIF(R49:R56,"WD")+COUNTIF(R49:R56,"WN")+COUNTIF(R49:R56,"EV")+COUNTIF(R49:R56,"EVU")+COUNTIF(R49:R56,"EVVJ")+COUNTIF(R49:R56,"EVUV")+COUNTIF(R49:R56,"WV") +COUNTIF(R49:R56,"TK")+COUNTIF(R49:R56,"EDUC")+COUNTIF(R49:R56,"ROW")+COUNTIF(R49:R56,"ZIEM")+COUNTIF(R49:R56,"EXTERN") -> 0 | S20: =COUNTIF(S73:S80,"NACHT")+COUNTIF(S73:S80,"WD")+COUNTIF(S73:S80,"WN")+COUNTIF(S73:S80,"EV")+COUNTIF(S73:S80,"EVU")+COUNTIF(S73:S80,"EVVJ")+COUNTIF(S73:S80,"EVUV")+COUNTIF(S73:S80,"WV") +COUNTIF(S73:S80,"TK")+COUNTIF(S73:S80,"EDUC")+COUNTIF(S73:S80,"ROW")+COUNTIF(S73:S80,"ZIEM")+COUNTIF(S73:S80,"EXTERN")+ COUNTIF(S49:S56,"NACHT")+COUNTIF(S49:S56,"WD")+COUNTIF(S49:S56,"WN")+COUNTIF(S49:S56,"EV")+COUNTIF(S49:S56,"EVU")+COUNTIF(S49:S56,"EVVJ")+COUNTIF(S49:S56,"EVUV")+COUNTIF(S49:S56,"WV") +COUNTIF(S49:S56,"TK")+COUNTIF(S49:S56,"EDUC")+COUNTIF(S49:S56,"ROW")+COUNTIF(S49:S56,"ZIEM")+COUNTIF(S49:S56,"EXTERN") -> 0 | U20: =COUNTIF(U73:U80,"NACHT")+COUNTIF(U73:U80,"WD")+COUNTIF(U73:U80,"WN")+COUNTIF(U73:U80,"EV")+COUNTIF(U73:U80,"EVU")+COUNTIF(U73:U80,"EVVJ")+COUNTIF(U73:U80,"EVUV")+COUNTIF(U73:U80,"WV") +COUNTIF(U73:U80,"TK")+COUNTIF(U73:U80,"EDUC")+COUNTIF(U73:U80,"ROW")+COUNTIF(U73:U80,"ZIEM")+COUNTIF(U73:U80,"EXTERN")+ COUNTIF(U49:U56,"NACHT")+COUNTIF(U49:U56,"WD")+COUNTIF(U49:U56,"WN")+COUNTIF(U49:U56,"EV")+COUNTIF(U49:U56,"EVU")+COUNTIF(U49:U56,"EVVJ")+COUNTIF(U49:U56,"EVUV")+COUNTIF(U49:U56,"WV") +COUNTIF(U49:U56,"TK")+COUNTIF(U49:U56,"EDUC")+COUNTIF(U49:U56,"ROW")+COUNTIF(U49:U56,"ZIEM")+COUNTIF(U49:U56,"EXTERN") -> 0 | V20: =COUNTIF(V73:V80,"NACHT")+COUNTIF(V73:V80,"WD")+COUNTIF(V73:V80,"WN")+COUNTIF(V73:V80,"EV")+COUNTIF(V73:V80,"EVU")+COUNTIF(V73:V80,"EVVJ")+COUNTIF(V73:V80,"EVUV")+COUNTIF(V73:V80,"WV") +COUNTIF(V73:V80,"TK")+COUNTIF(V73:V80,"EDUC")+COUNTIF(V73:V80,"ROW")+COUNTIF(V73:V80,"ZIEM")+COUNTIF(V73:V80,"EXTERN")+ COUNTIF(V49:V56,"NACHT")+COUNTIF(V49:V56,"WD")+COUNTIF(V49:V56,"WN")+COUNTIF(V49:V56,"EV")+COUNTIF(V49:V56,"EVU")+COUNTIF(V49:V56,"EVVJ")+COUNTIF(V49:V56,"EVUV")+COUNTIF(V49:V56,"WV") +COUNTIF(V49:V56,"TK")+COUNTIF(V49:V56,"EDUC")+COUNTIF(V49:V56,"ROW")+COUNTIF(V49:V56,"ZIEM")+COUNTIF(V49:V56,"EXTERN") -> 0 | W20: =COUNTIF(W73:W80,"NACHT")+COUNTIF(W73:W80,"WD")+COUNTIF(W73:W80,"WN")+COUNTIF(W73:W80,"EV")+COUNTIF(W73:W80,"EVU")+COUNTIF(W73:W80,"EVVJ")+COUNTIF(W73:W80,"EVUV")+COUNTIF(W73:W80,"WV") +COUNTIF(W73:W80,"TK")+COUNTIF(W73:W80,"EDUC")+COUNTIF(W73:W80,"ROW")+COUNTIF(W73:W80,"ZIEM")+COUNTIF(W73:W80,"EXTERN")+ COUNTIF(W49:W56,"NACHT")+COUNTIF(W49:W56,"WD")+COUNTIF(W49:W56,"WN")+COUNTIF(W49:W56,"EV")+COUNTIF(W49:W56,"EVU")+COUNTIF(W49:W56,"EVVJ")+COUNTIF(W49:W56,"EVUV")+COUNTIF(W49:W56,"WV") +COUNTIF(W49:W56,"TK")+COUNTIF(W49:W56,"EDUC")+COUNTIF(W49:W56,"ROW")+COUNTIF(W49:W56,"ZIEM")+COUNTIF(W49:W56,"EXTERN") -> 0 | X20: =COUNTIF(X73:X80,"NACHT")+COUNTIF(X73:X80,"WD")+COUNTIF(X73:X80,"WN")+COUNTIF(X73:X80,"EV")+COUNTIF(X73:X80,"EVU")+COUNTIF(X73:X80,"EVVJ")+COUNTIF(X73:X80,"EVUV")+COUNTIF(X73:X80,"WV") +COUNTIF(X73:X80,"TK")+COUNTIF(X73:X80,"EDUC")+COUNTIF(X73:X80,"ROW")+COUNTIF(X73:X80,"ZIEM")+COUNTIF(X73:X80,"EXTERN")+ COUNTIF(X49:X56,"NACHT")+COUNTIF(X49:X56,"WD")+COUNTIF(X49:X56,"WN")+COUNTIF(X49:X56,"EV")+COUNTIF(X49:X56,"EVU")+COUNTIF(X49:X56,"EVVJ")+COUNTIF(X49:X56,"EVUV")+COUNTIF(X49:X56,"WV") +COUNTIF(X49:X56,"TK")+COUNTIF(X49:X56,"EDUC")+COUNTIF(X49:X56,"ROW")+COUNTIF(X49:X56,"ZIEM")+COUNTIF(X49:X56,"EXTERN") -> 0 | Z20: =COUNTIF(Z73:Z80,"NACHT")+COUNTIF(Z73:Z80,"WD")+COUNTIF(Z73:Z80,"WN")+COUNTIF(Z73:Z80,"EV")+COUNTIF(Z73:Z80,"EVU")+COUNTIF(Z73:Z80,"EVVJ")+COUNTIF(Z73:Z80,"EVUV")+COUNTIF(Z73:Z80,"WV") +COUNTIF(Z73:Z80,"TK")+COUNTIF(Z73:Z80,"EDUC")+COUNTIF(Z73:Z80,"ROW")+COUNTIF(Z73:Z80,"ZIEM")+COUNTIF(Z73:Z80,"EXTERN")+ COUNTIF(Z49:Z56,"NACHT")+COUNTIF(Z49:Z56,"WD")+COUNTIF(Z49:Z56,"WN")+COUNTIF(Z49:Z56,"EV")+COUNTIF(Z49:Z56,"EVU")+COUNTIF(Z49:Z56,"EVVJ")+COUNTIF(Z49:Z56,"EVUV")+COUNTIF(Z49:Z56,"WV") +COUNTIF(Z49:Z56,"TK")+COUNTIF(Z49:Z56,"EDUC")+COUNTIF(Z49:Z56,"ROW")+COUNTIF(Z49:Z56,"ZIEM")+COUNTIF(Z49:Z56,"EXTERN") -> 0 | AA20: =COUNTIF(AA73:AA80,"NACHT")+COUNTIF(AA73:AA80,"WD")+COUNTIF(AA73:AA80,"WN")+COUNTIF(AA73:AA80,"EV")+COUNTIF(AA73:AA80,"EVU")+COUNTIF(AA73:AA80,"EVVJ")+COUNTIF(AA73:AA80,"EVUV")+COUNTIF(AA73:AA80,"WV") +COUNTIF(AA73:AA80,"TK")+COUNTIF(AA73:AA80,"EDUC")+COUNTIF(AA73:AA80,"ROW")+COUNTIF(AA73:AA80,"ZIEM")+COUNTIF(AA73:AA80,"EXTERN")+ COUNTIF(AA49:AA56,"NACHT")+COUNTIF(AA49:AA56,"WD")+COUNTIF(AA49:AA56,"WN")+COUNTIF(AA49:AA56,"EV")+COUNTIF(AA49:AA56,"EVU")+COUNTIF(AA49:AA56,"EVVJ")+COUNTIF(AA49:AA56,"EVUV")+COUNTIF(AA49:AA56,"WV") +COUNTIF(AA49:AA56,"TK")+COUNTIF(AA49:AA56,"EDUC")+COUNTIF(AA49:AA56,"ROW")+COUNTIF(AA49:AA56,"ZIEM")+COUNTIF(AA49:AA56,"EXTERN") -> 0 | AB20: =COUNTIF(AB73:AB80,"NACHT")+COUNTIF(AB73:AB80,"WD")+COUNTIF(AB73:AB80,"WN")+COUNTIF(AB73:AB80,"EV")+COUNTIF(AB73:AB80,"EVU")+COUNTIF(AB73:AB80,"EVVJ")+COUNTIF(AB73:AB80,"EVUV")+COUNTIF(AB73:AB80,"WV") +COUNTIF(AB73:AB80,"TK")+COUNTIF(AB73:AB80,"EDUC")+COUNTIF(AB73:AB80,"ROW")+COUNTIF(AB73:AB80,"ZIEM")+COUNTIF(AB73:AB80,"EXTERN")+ COUNTIF(AB49:AB56,"NACHT")+COUNTIF(AB49:AB56,"WD")+COUNTIF(AB49:AB56,"WN")+COUNTIF(AB49:AB56,"EV")+COUNTIF(AB49:AB56,"EVU")+COUNTIF(AB49:AB56,"EVVJ")+COUNTIF(AB49:AB56,"EVUV")+COUNTIF(AB49:AB56,"WV") +COUNTIF(AB49:AB56,"TK")+COUNTIF(AB49:AB56,"EDUC")+COUNTIF(AB49:AB56,"ROW")+COUNTIF(AB49:AB56,"ZIEM")+COUNTIF(AB49:AB56,"EXTERN") -> 0 | AC20: =COUNTIF(AC73:AC80,"NACHT")+COUNTIF(AC73:AC80,"WD")+COUNTIF(AC73:AC80,"WN")+COUNTIF(AC73:AC80,"EV")+COUNTIF(AC73:AC80,"EVU")+COUNTIF(AC73:AC80,"EVVJ")+COUNTIF(AC73:AC80,"EVUV")+COUNTIF(AC73:AC80,"WV") +COUNTIF(AC73:AC80,"TK")+COUNTIF(AC73:AC80,"EDUC")+COUNTIF(AC73:AC80,"ROW")+COUNTIF(AC73:AC80,"ZIEM")+COUNTIF(AC73:AC80,"EXTERN")+ COUNTIF(AC49:AC56,"NACHT")+COUNTIF(AC49:AC56,"WD")+COUNTIF(AC49:AC56,"WN")+COUNTIF(AC49:AC56,"EV")+COUNTIF(AC49:AC56,"EVU")+COUNTIF(AC49:AC56,"EVVJ")+COUNTIF(AC49:AC56,"EVUV")+COUNTIF(AC49:AC56,"WV") +COUNTIF(AC49:AC56,"TK")+COUNTIF(AC49:AC56,"EDUC")+COUNTIF(AC49:AC56,"ROW")+COUNTIF(AC49:AC56,"ZIEM")+COUNTIF(AC49:AC56,"EXTERN") -> 0 | AD20: =SUM(F20:AC20) -> 0
C21: Aanwezig | F21: =COUNTIF(F73:F80,"XTRA KPO")+COUNTIF(F73:F80,"M2")+COUNTIF(F73:F80,"M4")+COUNTIF(F73:F80,"M5")+COUNTIF(F73:F80,"KNOP")+IF(COUNTIF(F73:F80,"")>3,4,COUNTIF(F73:F80,""))+ COUNTIF(F49:F56,"XTRA KPO")+COUNTIF(F49:F56,"M2")+COUNTIF(F49:F56,"M4")+COUNTIF(F49:F56,"M5")+COUNTIF(F49:F56,"KNOP")+IF(COUNTIF(F49:F56,"")>3,4,COUNTIF(F49:F56,"")) -> 10 | G21: =COUNTIF(G73:G80,"XTRA KPO")+COUNTIF(G73:G80,"M2")+COUNTIF(G73:G80,"M4")+COUNTIF(G73:G80,"M5")+COUNTIF(G73:G80,"KNOP")+IF(COUNTIF(G73:G80,"")>3,4,COUNTIF(G73:G80,""))+ COUNTIF(G49:G56,"XTRA KPO")+COUNTIF(G49:G56,"M2")+COUNTIF(G49:G56,"M4")+COUNTIF(G49:G56,"M5")+COUNTIF(G49:G56,"KNOP")+IF(COUNTIF(G49:G56,"")>3,4,COUNTIF(G49:G56,"")) -> 10 | H21: =COUNTIF(H73:H80,"XTRA KPO")+COUNTIF(H73:H80,"M2")+COUNTIF(H73:H80,"M4")+COUNTIF(H73:H80,"M5")+COUNTIF(H73:H80,"KNOP")+IF(COUNTIF(H73:H80,"")>3,4,COUNTIF(H73:H80,""))+ COUNTIF(H49:H56,"XTRA KPO")+COUNTIF(H49:H56,"M2")+COUNTIF(H49:H56,"M4")+COUNTIF(H49:H56,"M5")+COUNTIF(H49:H56,"KNOP")+IF(COUNTIF(H49:H56,"")>3,4,COUNTIF(H49:H56,"")) -> 10 | I21: =COUNTIF(I73:I80,"XTRA KPO")+COUNTIF(I73:I80,"M2")+COUNTIF(I73:I80,"M4")+COUNTIF(I73:I80,"M5")+COUNTIF(I73:I80,"KNOP")+IF(COUNTIF(I73:I80,"")>3,4,COUNTIF(I73:I80,""))+ COUNTIF(I49:I56,"XTRA KPO")+COUNTIF(I49:I56,"M2")+COUNTIF(I49:I56,"M4")+COUNTIF(I49:I56,"M5")+COUNTIF(I49:I56,"KNOP")+IF(COUNTIF(I49:I56,"")>3,4,COUNTIF(I49:I56,"")) -> 10 | K21: =COUNTIF(K73:K80,"XTRA KPO")+COUNTIF(K73:K80,"M2")+COUNTIF(K73:K80,"M4")+COUNTIF(K73:K80,"M5")+COUNTIF(K73:K80,"KNOP")+IF(COUNTIF(K73:K80,"")>3,4,COUNTIF(K73:K80,""))+ COUNTIF(K49:K56,"XTRA KPO")+COUNTIF(K49:K56,"M2")+COUNTIF(K49:K56,"M4")+COUNTIF(K49:K56,"M5")+COUNTIF(K49:K56,"KNOP")+IF(COUNTIF(K49:K56,"")>3,4,COUNTIF(K49:K56,"")) -> 10 | L21: =COUNTIF(L73:L80,"XTRA KPO")+COUNTIF(L73:L80,"M2")+COUNTIF(L73:L80,"M4")+COUNTIF(L73:L80,"M5")+COUNTIF(L73:L80,"KNOP")+IF(COUNTIF(L73:L80,"")>3,4,COUNTIF(L73:L80,""))+ COUNTIF(L49:L56,"XTRA KPO")+COUNTIF(L49:L56,"M2")+COUNTIF(L49:L56,"M4")+COUNTIF(L49:L56,"M5")+COUNTIF(L49:L56,"KNOP")+IF(COUNTIF(L49:L56,"")>3,4,COUNTIF(L49:L56,"")) -> 10 | M21: =COUNTIF(M73:M80,"XTRA KPO")+COUNTIF(M73:M80,"M2")+COUNTIF(M73:M80,"M4")+COUNTIF(M73:M80,"M5")+COUNTIF(M73:M80,"KNOP")+IF(COUNTIF(M73:M80,"")>3,4,COUNTIF(M73:M80,""))+ COUNTIF(M49:M56,"XTRA KPO")+COUNTIF(M49:M56,"M2")+COUNTIF(M49:M56,"M4")+COUNTIF(M49:M56,"M5")+COUNTIF(M49:M56,"KNOP")+IF(COUNTIF(M49:M56,"")>3,4,COUNTIF(M49:M56,"")) -> 10 | N21: =COUNTIF(N73:N80,"XTRA KPO")+COUNTIF(N73:N80,"M2")+COUNTIF(N73:N80,"M4")+COUNTIF(N73:N80,"M5")+COUNTIF(N73:N80,"KNOP")+IF(COUNTIF(N73:N80,"")>3,4,COUNTIF(N73:N80,""))+ COUNTIF(N49:N56,"XTRA KPO")+COUNTIF(N49:N56,"M2")+COUNTIF(N49:N56,"M4")+COUNTIF(N49:N56,"M5")+COUNTIF(N49:N56,"KNOP")+IF(COUNTIF(N49:N56,"")>3,4,COUNTIF(N49:N56,"")) -> 10 | P21: =COUNTIF(P73:P80,"XTRA KPO")+COUNTIF(P73:P80,"M2")+COUNTIF(P73:P80,"M4")+COUNTIF(P73:P80,"M5")+COUNTIF(P73:P80,"KNOP")+IF(COUNTIF(P73:P80,"")>3,4,COUNTIF(P73:P80,""))+ COUNTIF(P49:P56,"XTRA KPO")+COUNTIF(P49:P56,"M2")+COUNTIF(P49:P56,"M4")+COUNTIF(P49:P56,"M5")+COUNTIF(P49:P56,"KNOP")+IF(COUNTIF(P49:P56,"")>3,4,COUNTIF(P49:P56,"")) -> 10 | Q21: =COUNTIF(Q73:Q80,"XTRA KPO")+COUNTIF(Q73:Q80,"M2")+COUNTIF(Q73:Q80,"M4")+COUNTIF(Q73:Q80,"M5")+COUNTIF(Q73:Q80,"KNOP")+IF(COUNTIF(Q73:Q80,"")>3,4,COUNTIF(Q73:Q80,""))+ COUNTIF(Q49:Q56,"XTRA KPO")+COUNTIF(Q49:Q56,"M2")+COUNTIF(Q49:Q56,"M4")+COUNTIF(Q49:Q56,"M5")+COUNTIF(Q49:Q56,"KNOP")+IF(COUNTIF(Q49:Q56,"")>3,4,COUNTIF(Q49:Q56,"")) -> 10 | R21: =COUNTIF(R73:R80,"XTRA KPO")+COUNTIF(R73:R80,"M2")+COUNTIF(R73:R80,"M4")+COUNTIF(R73:R80,"M5")+COUNTIF(R73:R80,"KNOP")+IF(COUNTIF(R73:R80,"")>3,4,COUNTIF(R73:R80,""))+ COUNTIF(R49:R56,"XTRA KPO")+COUNTIF(R49:R56,"M2")+COUNTIF(R49:R56,"M4")+COUNTIF(R49:R56,"M5")+COUNTIF(R49:R56,"KNOP")+IF(COUNTIF(R49:R56,"")>3,4,COUNTIF(R49:R56,"")) -> 10 | S21: =COUNTIF(S73:S80,"XTRA KPO")+COUNTIF(S73:S80,"M2")+COUNTIF(S73:S80,"M4")+COUNTIF(S73:S80,"M5")+COUNTIF(S73:S80,"KNOP")+IF(COUNTIF(S73:S80,"")>3,4,COUNTIF(S73:S80,""))+ COUNTIF(S49:S56,"XTRA KPO")+COUNTIF(S49:S56,"M2")+COUNTIF(S49:S56,"M4")+COUNTIF(S49:S56,"M5")+COUNTIF(S49:S56,"KNOP")+IF(COUNTIF(S49:S56,"")>3,4,COUNTIF(S49:S56,"")) -> 10 | U21: =COUNTIF(U73:U80,"XTRA KPO")+COUNTIF(U73:U80,"M2")+COUNTIF(U73:U80,"M4")+COUNTIF(U73:U80,"M5")+COUNTIF(U73:U80,"KNOP")+IF(COUNTIF(U73:U80,"")>3,4,COUNTIF(U73:U80,""))+ COUNTIF(U49:U56,"XTRA KPO")+COUNTIF(U49:U56,"M2")+COUNTIF(U49:U56,"M4")+COUNTIF(U49:U56,"M5")+COUNTIF(U49:U56,"KNOP")+IF(COUNTIF(U49:U56,"")>3,4,COUNTIF(U49:U56,"")) -> 10 | V21: =COUNTIF(V73:V80,"XTRA KPO")+COUNTIF(V73:V80,"M2")+COUNTIF(V73:V80,"M4")+COUNTIF(V73:V80,"M5")+COUNTIF(V73:V80,"KNOP")+IF(COUNTIF(V73:V80,"")>3,4,COUNTIF(V73:V80,""))+ COUNTIF(V49:V56,"XTRA KPO")+COUNTIF(V49:V56,"M2")+COUNTIF(V49:V56,"M4")+COUNTIF(V49:V56,"M5")+COUNTIF(V49:V56,"KNOP")+IF(COUNTIF(V49:V56,"")>3,4,COUNTIF(V49:V56,"")) -> 10 | W21: =COUNTIF(W73:W80,"XTRA KPO")+COUNTIF(W73:W80,"M2")+COUNTIF(W73:W80,"M4")+COUNTIF(W73:W80,"M5")+COUNTIF(W73:W80,"KNOP")+IF(COUNTIF(W73:W80,"")>3,4,COUNTIF(W73:W80,""))+ COUNTIF(W49:W56,"XTRA KPO")+COUNTIF(W49:W56,"M2")+COUNTIF(W49:W56,"M4")+COUNTIF(W49:W56,"M5")+COUNTIF(W49:W56,"KNOP")+IF(COUNTIF(W49:W56,"")>3,4,COUNTIF(W49:W56,"")) -> 10 | X21: =COUNTIF(X73:X80,"XTRA KPO")+COUNTIF(X73:X80,"M2")+COUNTIF(X73:X80,"M4")+COUNTIF(X73:X80,"M5")+COUNTIF(X73:X80,"KNOP")+IF(COUNTIF(X73:X80,"")>3,4,COUNTIF(X73:X80,""))+ COUNTIF(X49:X56,"XTRA KPO")+COUNTIF(X49:X56,"M2")+COUNTIF(X49:X56,"M4")+COUNTIF(X49:X56,"M5")+COUNTIF(X49:X56,"KNOP")+IF(COUNTIF(X49:X56,"")>3,4,COUNTIF(X49:X56,"")) -> 10 | Z21: =COUNTIF(Z73:Z80,"XTRA KPO")+COUNTIF(Z73:Z80,"M2")+COUNTIF(Z73:Z80,"M4")+COUNTIF(Z73:Z80,"M5")+COUNTIF(Z73:Z80,"KNOP")+IF(COUNTIF(Z73:Z80,"")>3,4,COUNTIF(Z73:Z80,""))+ COUNTIF(Z49:Z56,"XTRA KPO")+COUNTIF(Z49:Z56,"M2")+COUNTIF(Z49:Z56,"M4")+COUNTIF(Z49:Z56,"M5")+COUNTIF(Z49:Z56,"KNOP")+IF(COUNTIF(Z49:Z56,"")>3,4,COUNTIF(Z49:Z56,"")) -> 9 | AA21: =COUNTIF(AA73:AA80,"XTRA KPO")+COUNTIF(AA73:AA80,"M2")+COUNTIF(AA73:AA80,"M4")+COUNTIF(AA73:AA80,"M5")+COUNTIF(AA73:AA80,"KNOP")+IF(COUNTIF(AA73:AA80,"")>3,4,COUNTIF(AA73:AA80,""))+ COUNTIF(AA49:AA56,"XTRA KPO")+COUNTIF(AA49:AA56,"M2")+COUNTIF(AA49:AA56,"M4")+COUNTIF(AA49:AA56,"M5")+COUNTIF(AA49:AA56,"KNOP")+IF(COUNTIF(AA49:AA56,"")>3,4,COUNTIF(AA49:AA56,"")) -> 9 | AB21: =COUNTIF(AB73:AB80,"XTRA KPO")+COUNTIF(AB73:AB80,"M2")+COUNTIF(AB73:AB80,"M4")+COUNTIF(AB73:AB80,"M5")+COUNTIF(AB73:AB80,"KNOP")+IF(COUNTIF(AB73:AB80,"")>3,4,COUNTIF(AB73:AB80,""))+ COUNTIF(AB49:AB56,"XTRA KPO")+COUNTIF(AB49:AB56,"M2")+COUNTIF(AB49:AB56,"M4")+COUNTIF(AB49:AB56,"M5")+COUNTIF(AB49:AB56,"KNOP")+IF(COUNTIF(AB49:AB56,"")>3,4,COUNTIF(AB49:AB56,"")) -> 9 | AC21: =COUNTIF(AC73:AC80,"XTRA KPO")+COUNTIF(AC73:AC80,"M2")+COUNTIF(AC73:AC80,"M4")+COUNTIF(AC73:AC80,"M5")+COUNTIF(AC73:AC80,"KNOP")+IF(COUNTIF(AC73:AC80,"")>3,4,COUNTIF(AC73:AC80,""))+ COUNTIF(AC49:AC56,"XTRA KPO")+COUNTIF(AC49:AC56,"M2")+COUNTIF(AC49:AC56,"M4")+COUNTIF(AC49:AC56,"M5")+COUNTIF(AC49:AC56,"KNOP")+IF(COUNTIF(AC49:AC56,"")>3,4,COUNTIF(AC49:AC56,"")) -> 9 | AD21: =SUM(F21:AC21) -> 196
C22: WERKELIJKE planuren percent | F22: =(F17-(1.75*F20)-(1.75*F21))/((F17-(1.75*F20))) -> 0.375 | G22: =(G17-(1.75*G20)-(1.75*G21))/((G17-(1.75*G20))) -> 0.375 | H22: 0.375 | I22: 0.375 | K22: 0.375 | L22: 0.375 | M22: 0.375 | N22: 0.375 | P22: 0.375 | Q22: 0.375 | R22: 0.375 | S22: 0.375 | U22: 0.375 | V22: 0.375 | W22: 0.375 | X22: 0.375 | Z22: 0.4375 | AA22: 0.4375 | AB22: 0.4375 | AC22: 0.4375 | AD22: 0.3875
C24: MECHANISCH RINGO | F24: =COUNTIF(F61:F71,"STORING") -> 0 | G24: =COUNTIF(G61:G71,"STORING") -> 0 | H24: =COUNTIF(H61:H71,"STORING") -> 0 | I24: =COUNTIF(I61:I71,"STORING") -> 0 | K24: =COUNTIF(K61:K71,"STORING") -> 0 | L24: =COUNTIF(L61:L71,"STORING") -> 0 | M24: =COUNTIF(M61:M71,"STORING") -> 0 | N24: =COUNTIF(N61:N71,"STORING") -> 0 | P24: =COUNTIF(P61:P71,"STORING") -> 0 | Q24: =COUNTIF(Q61:Q71,"STORING") -> 0 | R24: =COUNTIF(R61:R71,"STORING") -> 0 | S24: =COUNTIF(S61:S71,"STORING") -> 0 | U24: =COUNTIF(U61:U71,"STORING") -> 0 | V24: =COUNTIF(V61:V71,"STORING") -> 0 | W24: =COUNTIF(W61:W71,"STORING") -> 0 | X24: =COUNTIF(X61:X71,"STORING") -> 0 | Z24: =COUNTIF(Z61:Z71,"STORING") -> 0 | AA24: =COUNTIF(AA61:AA71,"STORING") -> 0 | AB24: =COUNTIF(AB61:AB71,"STORING") -> 0 | AC24: =COUNTIF(AC61:AC71,"STORING") -> 0
C25: MECHANISCH PETER | F25: =COUNTIF(F38:F47,"STORING") -> 0 | G25: =COUNTIF(G38:G47,"STORING") -> 0 | H25: =COUNTIF(H38:H47,"STORING") -> 0 | I25: =COUNTIF(I38:I47,"STORING") -> 0 | K25: =COUNTIF(K39:K47,"STORING") -> 0 | L25: =COUNTIF(L39:L47,"STORING") -> 0 | M25: =COUNTIF(M39:M47,"STORING") -> 0 | N25: =COUNTIF(N39:N47,"STORING") -> 0 | P25: =COUNTIF(P38:P47,"STORING") -> 0 | Q25: =COUNTIF(Q38:Q47,"STORING") -> 0 | R25: =COUNTIF(R38:R47,"STORING") -> 0 | S25: =COUNTIF(S38:S47,"STORING") -> 0 | U25: =COUNTIF(U38:U47,"STORING") -> 0 | V25: =COUNTIF(V38:V47,"STORING") -> 0 | W25: =COUNTIF(W38:W47,"STORING") -> 0 | X25: =COUNTIF(X38:X47,"STORING") -> 0 | Z25: =COUNTIF(Z38:Z47,"STORING") -> 0 | AA25: =COUNTIF(AA38:AA47,"STORING") -> 0 | AB25: =COUNTIF(AB38:AB47,"STORING") -> 0 | AC25: =COUNTIF(AC38:AC47,"STORING") -> 0
C26: ELEKTRISCH RINGO | F26: =COUNTIF(F73:F80,"STORING") -> 0 | G26: =COUNTIF(G73:G80,"STORING") -> 0 | H26: =COUNTIF(H73:H80,"STORING") -> 0 | I26: =COUNTIF(I73:I80,"STORING") -> 0 | K26: =COUNTIF(K73:K80,"STORING") -> 0 | L26: =COUNTIF(L73:L80,"STORING") -> 0 | M26: =COUNTIF(M73:M80,"STORING") -> 0 | N26: =COUNTIF(N73:N80,"STORING") -> 0 | P26: =COUNTIF(P73:P80,"STORING") -> 0 | Q26: =COUNTIF(Q73:Q80,"STORING") -> 0 | R26: =COUNTIF(R73:R80,"STORING") -> 0 | S26: =COUNTIF(S73:S80,"STORING") -> 0 | U26: =COUNTIF(U73:U80,"STORING") -> 0 | V26: =COUNTIF(V73:V80,"STORING") -> 0 | W26: =COUNTIF(W73:W80,"STORING") -> 0 | X26: =COUNTIF(X73:X80,"STORING") -> 0 | Z26: =COUNTIF(Z73:Z80,"STORING") -> 0 | AA26: =COUNTIF(AA73:AA80,"STORING") -> 0 | AB26: =COUNTIF(AB73:AB80,"STORING") -> 0 | AC26: =COUNTIF(AC73:AC80,"STORING") -> 0
C27: ELEKTRISCH PETER | F27: =COUNTIF(F49:F56,"STORING") -> 0 | G27: =COUNTIF(G49:G56,"STORING") -> 0 | H27: =COUNTIF(H49:H56,"STORING") -> 0 | I27: =COUNTIF(I49:I56,"STORING") -> 0 | K27: =COUNTIF(K49:K56,"STORING") -> 0 | L27: =COUNTIF(L49:L56,"STORING") -> 0 | M27: =COUNTIF(M49:M56,"STORING") -> 0 | N27: =COUNTIF(N49:N56,"STORING") -> 0 | P27: =COUNTIF(P49:P56,"STORING") -> 0 | Q27: =COUNTIF(Q49:Q56,"STORING") -> 0 | R27: =COUNTIF(R49:R56,"STORING") -> 0 | S27: =COUNTIF(S49:S56,"STORING") -> 0 | U27: =COUNTIF(U49:U56,"STORING") -> 0 | V27: =COUNTIF(V49:V56,"STORING") -> 0 | W27: =COUNTIF(W49:W56,"STORING") -> 0 | X27: =COUNTIF(X49:X56,"STORING") -> 0 | Z27: =COUNTIF(Z49:Z56,"STORING") -> 0 | AA27: =COUNTIF(AA49:AA56,"STORING") -> 0 | AB27: =COUNTIF(AB49:AB56,"STORING") -> 0 | AC27: =COUNTIF(AC49:AC56,"STORING") -> 0
A29: Aantal lege vakken RINGO | F29: =COUNTBLANK(F61:F71) -> 10 | G29: =COUNTBLANK(G61:G71) -> 10 | H29: =COUNTBLANK(H61:H71) -> 10 | I29: =COUNTBLANK(I61:I71) -> 10 | K29: =COUNTBLANK(K61:K71) -> 10 | L29: =COUNTBLANK(L61:L71) -> 10 | M29: =COUNTBLANK(M61:M71) -> 10 | N29: =COUNTBLANK(N61:N71) -> 10 | P29: =COUNTBLANK(P61:P71) -> 10 | Q29: =COUNTBLANK(Q61:Q71) -> 10 | R29: =COUNTBLANK(R61:R71) -> 10 | S29: =COUNTBLANK(S61:S71) -> 10 | U29: =COUNTBLANK(U61:U71) -> 10 | V29: =COUNTBLANK(V61:V71) -> 10 | W29: =COUNTBLANK(W61:W71) -> 10 | X29: =COUNTBLANK(X61:X71) -> 10 | Z29: =COUNTBLANK(Z61:Z71) -> 11 | AA29: =COUNTBLANK(AA61:AA71) -> 11 | AB29: =COUNTBLANK(AB61:AB71) -> 11 | AC29: =COUNTBLANK(AC61:AC71) -> 11
A30: Aantal lege vakken PETER | F30: =COUNTBLANK(F38:F47) -> 9 | G30: =COUNTBLANK(G38:G47) -> 9 | H30: =COUNTBLANK(H38:H47) -> 9 | I30: =COUNTBLANK(I38:I47) -> 9 | K30: =COUNTBLANK(K39:K47) -> 8 | L30: =COUNTBLANK(L39:L47) -> 8 | M30: =COUNTBLANK(M39:M47) -> 8 | N30: =COUNTBLANK(N39:N47) -> 8 | P30: =COUNTBLANK(P38:P47) -> 9 | Q30: =COUNTBLANK(Q38:Q47) -> 9 | R30: =COUNTBLANK(R38:R47) -> 9 | S30: =COUNTBLANK(S38:S47) -> 9 | U30: =COUNTBLANK(U38:U47) -> 9 | V30: =COUNTBLANK(V38:V47) -> 9 | W30: =COUNTBLANK(W38:W47) -> 9 | X30: =COUNTBLANK(X38:X47) -> 9 | Z30: =COUNTBLANK(Z38:Z47) -> 9 | AA30: =COUNTBLANK(AA38:AA47) -> 9 | AB30: =COUNTBLANK(AB38:AB47) -> 9 | AC30: =COUNTBLANK(AC38:AC47) -> 9
B31: ELEKTRISCH
A32: Aantal lege vakken RINGO | F32: =COUNTBLANK(F73:F80) -> 7 | G32: =COUNTBLANK(G73:G80) -> 7 | H32: =COUNTBLANK(H73:H80) -> 7 | I32: =COUNTBLANK(I73:I80) -> 7 | K32: =COUNTBLANK(K73:K80) -> 7 | L32: =COUNTBLANK(L73:L80) -> 7 | M32: =COUNTBLANK(M73:M80) -> 7 | N32: =COUNTBLANK(N73:N80) -> 7 | P32: =COUNTBLANK(P73:P80) -> 7 | Q32: =COUNTBLANK(Q73:Q80) -> 7 | R32: =COUNTBLANK(R73:R80) -> 7 | S32: =COUNTBLANK(S73:S80) -> 7 | U32: =COUNTBLANK(U73:U80) -> 7 | V32: =COUNTBLANK(V73:V80) -> 7 | W32: =COUNTBLANK(W73:W80) -> 7 | X32: =COUNTBLANK(X73:X80) -> 7 | Z32: =COUNTBLANK(Z73:Z80) -> 8 | AA32: =COUNTBLANK(AA73:AA80) -> 8 | AB32: =COUNTBLANK(AB73:AB80) -> 8 | AC32: =COUNTBLANK(AC73:AC80) -> 8
A33: Aantal lege vakken PETER | F33: =COUNTBLANK(F49:F56) -> 7 | G33: =COUNTBLANK(G49:G56) -> 7 | H33: =COUNTBLANK(H49:H56) -> 7 | I33: =COUNTBLANK(I49:I56) -> 7 | K33: =COUNTBLANK(K49:K56) -> 7 | L33: =COUNTBLANK(L49:L56) -> 7 | M33: =COUNTBLANK(M49:M56) -> 7 | N33: =COUNTBLANK(N49:N56) -> 7 | P33: =COUNTBLANK(P49:P56) -> 7 | Q33: =COUNTBLANK(Q49:Q56) -> 7 | R33: =COUNTBLANK(R49:R56) -> 7 | S33: =COUNTBLANK(S49:S56) -> 7 | U33: =COUNTBLANK(U49:U56) -> 7 | V33: =COUNTBLANK(V49:V56) -> 7 | W33: =COUNTBLANK(W49:W56) -> 7 | X33: =COUNTBLANK(X49:X56) -> 7 | Z33: =COUNTBLANK(Z49:Z56) -> 7 | AA33: =COUNTBLANK(AA49:AA56) -> 7 | AB33: =COUNTBLANK(AB49:AB56) -> 7 | AC33: =COUNTBLANK(AC49:AC56) -> 7
A35: Reg.nr | B35: Naam | F35: =(DATE($A$2,1,1)-WEEKDAY(DATE($A$2,1,1))-IF(WEEKDAY(DATE($A$2,1,1))<6,5,-2)+$B$3*7) -> 2017-10-09 | K35: =(DATE($A$2,1,1)-WEEKDAY(DATE($A$2,1,1))-IF(WEEKDAY(DATE($A$2,1,1))<6,5,-2)+$B$3*7)+1 -> 2017-10-10 | P35: =(DATE($A$2,1,1)-WEEKDAY(DATE($A$2,1,1))-IF(WEEKDAY(DATE($A$2,1,1))<6,5,-2)+$B$3*7)+2 -> 2017-10-11 | U35: =(DATE($A$2,1,1)-WEEKDAY(DATE($A$2,1,1))-IF(WEEKDAY(DATE($A$2,1,1))<6,5,-2)+$B$3*7)+3 -> 2017-10-12 | Z35: =(DATE($A$2,1,1)-WEEKDAY(DATE($A$2,1,1))-IF(WEEKDAY(DATE($A$2,1,1))<6,5,-2)+$B$3*7)+4 -> 2017-10-13
A36: Peter de Ridder - Chris Cnops | F36: 14 - 16 | G36: 16 - 18 | H36: 18-20 | I36: 20 - 22 | K36: 14 - 16 | L36: 16 - 18 | M36: 18 - 20 | N36: 20 - 22 | P36: 14 - 16 | Q36: 16 - 18 | R36: 18-20 | S36: 20 - 22 | U36: 14 - 16 | V36: 16 - 18 | W36: 18 - 20 | X36: 20 - 22 | Z36: 14 - 16 | AA36: 16 - 18 | AB36: 18-20 | AC36: 20 - 22 | AD36: Opmerkingen
A37: Bezetting M | F37: =IF((COUNTBLANK(F38:F47)*2)=18,"",(COUNTBLANK(F38:F47)*2)) ->  | G37: =IF((COUNTBLANK(G38:G47)*2)=18,"",(COUNTBLANK(G38:G47)*2)) ->  | H37: =IF((COUNTBLANK(H38:H47)*2)=18,"",(COUNTBLANK(H38:H47)*2)) ->  | I37: =IF((COUNTBLANK(I38:I47)*2)=18,"",(COUNTBLANK(I38:I47)*2)) ->  | K37: =IF((COUNTBLANK(K38:K47)*2)=18,"",(COUNTBLANK(K38:K47)*2)) ->  | L37: =IF((COUNTBLANK(L38:L47)*2)=18,"",(COUNTBLANK(L38:L47)*2)) ->  | M37: =IF((COUNTBLANK(M38:M47)*2)=18,"",(COUNTBLANK(M38:M47)*2)) ->  | N37: =IF((COUNTBLANK(N38:N47)*2)=18,"",(COUNTBLANK(N38:N47)*2)) ->  | P37: =IF((COUNTBLANK(P38:P47)*2)=18,"",(COUNTBLANK(P38:P47)*2)) ->  | Q37: =IF((COUNTBLANK(Q38:Q47)*2)=18,"",(COUNTBLANK(Q38:Q47)*2)) ->  | R37: =IF((COUNTBLANK(R38:R47)*2)=18,"",(COUNTBLANK(R38:R47)*2)) ->  | S37: =IF((COUNTBLANK(S38:S47)*2)=18,"",(COUNTBLANK(S38:S47)*2)) ->  | U37: =IF((COUNTBLANK(U38:U47)*2)=18,"",(COUNTBLANK(U38:U47)*2)) ->  | V37: =IF((COUNTBLANK(V38:V47)*2)=18,"",(COUNTBLANK(V38:V47)*2)) ->  | W37: =IF((COUNTBLANK(W38:W47)*2)=18,"",(COUNTBLANK(W38:W47)*2)) ->  | X37: =IF((COUNTBLANK(X38:X47)*2)=18,"",(COUNTBLANK(X38:X47)*2)) ->  | Z37: =IF((COUNTBLANK(Z38:Z47)*2)=18,"",(COUNTBLANK(Z38:Z47)*2)) ->  | AA37: =IF((COUNTBLANK(AA38:AA47)*2)=18,"",(COUNTBLANK(AA38:AA47)*2)) ->  | AB37: =IF((COUNTBLANK(AB38:AB47)*2)=18,"",(COUNTBLANK(AB38:AB47)*2)) ->  | AC37: =IF((COUNTBLANK(AC38:AC47)*2)=18,"",(COUNTBLANK(AC38:AC47)*2)) -> 
A38: 1022 | B38: Bert Tromelmans | D38: M - AS
A39: 1562 | B39: Eddy Hooyberghs | D39: M - AS
A40: 2900 | B40: Marco Deprez | D40: M - AS | K40: KNOP | L40: KNOP | M40: KNOP | N40: KNOP
A41: 9758 | B41: Thomas Seykens | D41: M - AS | Z41: KNOP | AA41: KNOP | AB41: KNOP | AC41: KNOP
A42: 41371 | B42: Roel Antonissen | D42: M - AS | P42: KNOP | Q42: KNOP | R42: KNOP | S42: KNOP
A43: 1786 | B43: Davy Houdmeyers | D43: M - DIFF | U43: KNOP | V43: KNOP | W43: KNOP | X43: KNOP
A44: 2932 | B44: Toon Vromans | D44: M - DIFF
A45: 7425 | B45: Yasar Ozkan | D45: M - DIFF | F45: KNOP | G45: KNOP | H45: KNOP | I45: KNOP
A46: 7731 | B46: Joffrey Schroyen | D46: M - DIFF
A47: 41185 | B47: Toon Wuyts | D47: M - DIFF
A48: Bezetting E | F48: =IF((COUNTBLANK(F49:F56)*2)=14,"",(COUNTBLANK(F49:F56)*2)) ->  | G48: =IF((COUNTBLANK(G49:G56)*2)=14,"",(COUNTBLANK(G49:G56)*2)) ->  | K48: =IF((COUNTBLANK(K49:K56)*2)=14,"",(COUNTBLANK(K49:K56)*2)) ->  | P48: =IF((COUNTBLANK(P49:P56)*2)=14,"",(COUNTBLANK(P49:P56)*2)) ->  | U48: =IF((COUNTBLANK(U49:U56)*2)=14,"",(COUNTBLANK(U49:U56)*2)) -> 
A49: 715 | B49: Fons Mondelaers | D49: E - AS | Z49: KNOP | AA49: KNOP | AB49: KNOP | AC49: KNOP
A50: 2042 | B50: Ely Daems | D50: E - AS
A51: 6930 | B51: Koen Donders | D51: E - AS | P51: KNOP | Q51: KNOP | R51: KNOP | S51: KNOP
A52: 9968 | B52: Rob Willems | D52: E - AS | K52: KNOP | L52: KNOP | M52: KNOP | N52: KNOP
A53: 2118 | B53: Wim Verwimp | D53: E - DIFF
A54: 1635 | B54: Jan van Dingenen | D54: E - DIFF | F54: KNOP | G54: KNOP | H54: KNOP | I54: KNOP
A55: 2132 | B55: Wouter Vantongerloo | D55: E - DIFF
A56: 41218 | B56: Stijn Windelinckx | D56: E - DIFF | U56: KNOP | V56: KNOP | W56: KNOP | X56: KNOP
D57: 1
D58: 2
A59: Ringo Gelaes - Philip Ceyssens | F59: 06 - 08 | G59: 08 - 10 | H59: 10 - 12 | I59: 12 - 14 | K59: 06 - 08 | L59: 08 - 10 | M59: 10 - 12 | N59: 12 - 14 | P59: 06 - 08 | Q59: 08 - 10 | R59: 10 - 12 | S59: 12 - 14 | U59: 06 - 08 | V59: 08 - 10 | W59: 10 - 12 | X59: 12 - 14 | Z59: 06 - 08 | AA59: 08 - 10 | AB59: 10 - 12 | AC59: 12 - 14 | AD59: Opmerkingen
A60: Bezetting M | F60: =IF((COUNTBLANK(F61:F71)*2)=20,"",(COUNTBLANK(F61:F71)*2)) ->  | G60: =IF((COUNTBLANK(G61:G71)*2)=20,"",(COUNTBLANK(G61:G71)*2)) ->  | H60: =IF((COUNTBLANK(H61:H71)*2)=20,"",(COUNTBLANK(H61:H71)*2)) ->  | I60: =IF((COUNTBLANK(I61:I71)*2)=20,"",(COUNTBLANK(I61:I71)*2)) ->  | K60: =IF((COUNTBLANK(K61:K71)*2)=20,"",(COUNTBLANK(K61:K71)*2)) ->  | L60: =IF((COUNTBLANK(L61:L71)*2)=20,"",(COUNTBLANK(L61:L71)*2)) ->  | M60: =IF((COUNTBLANK(M61:M71)*2)=20,"",(COUNTBLANK(M61:M71)*2)) ->  | N60: =IF((COUNTBLANK(N61:N71)*2)=20,"",(COUNTBLANK(N61:N71)*2)) ->  | P60: =IF((COUNTBLANK(P61:P71)*2)=20,"",(COUNTBLANK(P61:P71)*2)) ->  | Q60: =IF((COUNTBLANK(Q61:Q71)*2)=20,"",(COUNTBLANK(Q61:Q71)*2)) ->  | R60: =IF((COUNTBLANK(R61:R71)*2)=20,"",(COUNTBLANK(R61:R71)*2)) ->  | S60: =IF((COUNTBLANK(S61:S71)*2)=20,"",(COUNTBLANK(S61:S71)*2)) ->  | U60: =IF((COUNTBLANK(U61:U71)*2)=20,"",(COUNTBLANK(U61:U71)*2)) ->  | V60: =IF((COUNTBLANK(V61:V71)*2)=20,"",(COUNTBLANK(V61:V71)*2)) ->  | W60: =IF((COUNTBLANK(W61:W71)*2)=20,"",(COUNTBLANK(W61:W71)*2)) ->  | X60: =IF((COUNTBLANK(X61:X71)*2)=20,"",(COUNTBLANK(X61:X71)*2)) ->  | Z60: =IF((COUNTBLANK(Z61:Z71)*2)=22,"",(COUNTBLANK(Z61:Z71)*2)) ->  | AA60: =IF((COUNTBLANK(AA61:AA71)*2)=22,"",(COUNTBLANK(AA61:AA71)*2)) ->  | AB60: =IF((COUNTBLANK(AB61:AB71)*2)=22,"",(COUNTBLANK(AB61:AB71)*2)) ->  | AC60: =IF((COUNTBLANK(AC61:AC71)*2)=22,"",(COUNTBLANK(AC61:AC71)*2)) -> 
A61: 984 | B61: Danny Noels-Caeyers | D61: M - AS
A62: 2951 | B62: Frits Cosemans | D62: M - AS | K62: KNOP | L62: KNOP | M62: KNOP | N62: KNOP
A63: 3255 | B63: Wim Dresselaerts | D63: M - AS
A64: 3861 | B64: Frank Bierinckx | D64: M - AS
A65: 7416 | B65: Paul Coene | D65: M - AS
A66: 41392 | B66: Thomas Jansen | D66: M - AS
A67: 3144 | B67: Christof Hendrickx | D67: M - DIFF | F67: KNOP | G67: KNOP | H67: KNOP | I67: KNOP
A68: 3407 | B68: Maarten Vaes | D68: M - DIFF
A69: 3784 | B69: Joris Snyers | D69: M - DIFF
A70: 7856 | B70: Glen Van Espen | D70: M - DIFF | U70: KNOP | V70: KNOP | W70: KNOP | X70: KNOP
A71: 9476 | B71: Stijn Huybreghts | D71: M - DIFF | P71: KNOP | Q71: KNOP | R71: KNOP | S71: KNOP
A72: Bezetting E | F72: =IF((COUNTBLANK(F73:F80)*2)=14,"",(COUNTBLANK(F73:F80)*2)) ->  | G72: =IF((COUNTBLANK(G73:G80)*2)=14,"",(COUNTBLANK(G73:G80)*2)) ->  | K72: =IF((COUNTBLANK(K73:K80)*2)=14,"",(COUNTBLANK(K73:K80)*2)) ->  | P72: =IF((COUNTBLANK(P73:P80)*2)=14,"",(COUNTBLANK(P73:P80)*2)) ->  | U72: =IF((COUNTBLANK(U73:U80)*2)=14,"",(COUNTBLANK(U73:U80)*2)) ->  | Z72: =IF((COUNTBLANK(Z73:Z80)*2)=16,"",(COUNTBLANK(Z73:Z80)*2)) ->  | AA72: =IF((COUNTBLANK(AA73:AA80)*2)=16,"",(COUNTBLANK(AA73:AA80)*2)) -> 
A73: 2645 | B73: Jo Vercammen | D73: E - AS
A74: 3056 | B74: Manuel Van Looy | D74: E - AS
A75: 6860 | B75: Michel Marx | D75: E - AS
A76: 8297 | B76: Tom Jansen | D76: E - AS | K76: KNOP | L76: KNOP | M76: KNOP | N76: KNOP
A77: 1765 | B77: Guy Dierckx | D77: E - DIFF | U77: KNOP | V77: KNOP | W77: KNOP | X77: KNOP
A78: 2030 | B78: Patrick van Eynde | D78: E - DIFF | F78: KNOP | G78: KNOP | H78: KNOP | I78: KNOP
A79: 2485 | B79: Johan Van Der Borght | D79: E - DIFF
A80: 6273 | B80: Mike Hufkens | D80: E - DIFF | P80: KNOP | Q80: KNOP | R80: KNOP | S80: KNOP
D81: 1
D82: 2
A83: Nacht (vast) | F83: 22 - 00 | G83: 00 - 02 | H83: 02 - 04 | I83: 04 - 06 | K83: 22 - 00 | L83: 00 - 02 | M83: 02 - 04 | N83: 04 - 06 | P83: 22 - 00 | Q83: 00 - 02 | R83: 02 - 04 | S83: 04 - 06 | U83: 22 - 00 | V83: 00 - 02 | W83: 02 - 04 | X83: 04 - 06 | Z83: 22 - 00 | AA83: 00 - 02 | AB83: 02 - 04 | AC83: 04 - 06
A84: Bezetting E | F84: =IF((COUNTBLANK(F85:F88)*2)=8,"",(COUNTBLANK(F85:F88)*2)) ->  | G84: =IF((COUNTBLANK(G85:G88)*2)=8,"",(COUNTBLANK(G85:G88)*2)) ->  | K84: =IF((COUNTBLANK(K85:K88)*2)=8,"",(COUNTBLANK(K85:K88)*2)) ->  | L84: =IF((COUNTBLANK(L85:L88)*2)=8,"",(COUNTBLANK(L85:L88)*2)) ->  | P84: =IF((COUNTBLANK(P85:P88)*2)=8,"",(COUNTBLANK(P85:P88)*2)) ->  | Q84: =IF((COUNTBLANK(Q85:Q88)*2)=8,"",(COUNTBLANK(Q85:Q88)*2)) ->  | U84: =IF((COUNTBLANK(U85:U88)*2)=8,"",(COUNTBLANK(U85:U88)*2)) ->  | V84: =IF((COUNTBLANK(V85:V88)*2)=8,"",(COUNTBLANK(V85:V88)*2)) ->  | Z84: =IF((COUNTBLANK(Z85:Z88)*2)=8,"",(COUNTBLANK(Z85:Z88)*2)) ->  | AA84: =IF((COUNTBLANK(AA85:AA88)*2)=8,"",(COUNTBLANK(AA85:AA88)*2)) -> 
A85: 497 | B85: Herman Luyten | D85: M
A86: 895 | B86: Chris Coomans | D86: M
A87: 1023 | B87: Bert Verhaert | D87: E
A88: 4893 | B88: Jonas Vindevogel | D88: E
A90: Overige | F90: 22 - 00 | G90: 00 - 02 | H90: 02 - 04 | I90: 04 - 06 | K90: 22 - 00 | L90: 00 - 02 | M90: 02 - 04 | N90: 04 - 06 | P90: 22 - 00 | Q90: 00 - 02 | R90: 02 - 04 | S90: 04 - 06 | U90: 22 - 00 | V90: 00 - 02 | W90: 02 - 04 | X90: 04 - 06 | Z90: 22 - 00 | AA90: 00 - 02 | AB90: 02 - 04 | AC90: 04 - 06
A91: Bezetting E | F91: =IF((COUNTBLANK(F92:F97)*2)=12,"",(COUNTBLANK(F92:F97)*2)) ->  | G91: =IF((COUNTBLANK(G92:G97)*2)=12,"",(COUNTBLANK(G92:G97)*2)) ->  | K91: =IF((COUNTBLANK(K92:K97)*2)=12,"",(COUNTBLANK(K92:K97)*2)) ->  | L91: =IF((COUNTBLANK(L92:L97)*2)=12,"",(COUNTBLANK(L92:L97)*2)) ->  | P91: =IF((COUNTBLANK(P92:P97)*2)=12,"",(COUNTBLANK(P92:P97)*2)) ->  | Q91: =IF((COUNTBLANK(Q92:Q97)*2)=12,"",(COUNTBLANK(Q92:Q97)*2)) ->  | U91: =IF((COUNTBLANK(U92:U97)*2)=12,"",(COUNTBLANK(U92:U97)*2)) ->  | V91: =IF((COUNTBLANK(V92:V97)*2)=12,"",(COUNTBLANK(V92:V97)*2)) ->  | Z91: =IF((COUNTBLANK(Z92:Z97)*2)=12,"",(COUNTBLANK(Z92:Z97)*2)) ->  | AA91: =IF((COUNTBLANK(AA92:AA97)*2)=12,"",(COUNTBLANK(AA92:AA97)*2)) -> 
A92: 1115 | B92: Kris Verbesselt | D92: S
A93: 2076 | B93: Paul van Looy | D93: S
A94: 1279 | B94: Luc Danckers | D94: TT
A95: 1658 | B95: Tom Verbraeken | D95: TT
A96: 1734 | B96: Marc Bax | D96: TT
A97: 296 | B97: Jef Luyten | D97: GM

Sheet Blad1 (hidden)

Sheet ron (hidden)
A1: 166
B3: 1

Sheet Blad2 (hidden)
A1: 944

Sheet WEEK 4
A1: PLANNING KPO/GPO -AFDELING 53481
A2: 2018
A3: WEEK | B3: 4
A4: TOTAAL PLANUREN | C4: =F4+H4 -> 888 | E4: Uren Mech | F4: =SUM(E15:H15)+SUM(J15:M15)+SUM(O15:R15)+SUM(T15:W15)+SUM(Y15:AB15)+SUM(E39:H39)+SUM(J39:M39)+SUM(O39:R39)+SUM(T39:W39)+SUM(Y39:AB39) -> 448 | G4: Uren Elec | H4: =SUM(E27:H27)+SUM(J27:M27)+SUM(O27:R27)+SUM(T27:W27)+SUM(Y27:AB27)+SUM(E50:H50)+SUM(J50:M50)+SUM(O50:R50)+SUM(T50:W50)+SUM(Y50:AB50) -> 440
J5: MELDING | L5: WERKORDER
E6: =COUNTBLANK(E16:E26) -> 3 | F6: =COUNTBLANK(F16:F26) -> 3 | G6: =COUNTBLANK(G16:G26) -> 3 | H6: =COUNTBLANK(H16:H26) -> 3 | J6: =COUNTBLANK(J16:J26) -> 3 | K6: =COUNTBLANK(K16:K26) -> 3 | L6: =COUNTBLANK(L16:L26) -> 3 | M6: =COUNTBLANK(M16:M26) -> 3 | O6: =COUNTBLANK(O16:O26) -> 4 | P6: =COUNTBLANK(P16:P26) -> 4 | Q6: 4 | R6: 4 | T6: =COUNTBLANK(T16:T26) -> 4 | U6: =COUNTBLANK(U16:U26) -> 4 | V6: 4 | W6: 4 | Y6: =COUNTBLANK(Y16:Y26) -> 3 | Z6: =COUNTBLANK(Z16:Z26) -> 3 | AA6: 3 | AB6: 3
E7: =COUNTBLANK(E28:E35) -> 4 | F7: =COUNTBLANK(F28:F35) -> 4 | G7: 4 | H7: 3 | J7: =COUNTBLANK(J28:J35) -> 4 | K7: 4 | L7: 4 | M7: 4 | O7: =COUNTBLANK(O28:O35) -> 4 | P7: 4 | Q7: 4 | R7: 4 | T7: =COUNTBLANK(T28:T35) -> 4 | U7: 4 | V7: 4 | W7: 4 | Y7: =COUNTBLANK(Y28:Y35) -> 3 | Z7: 4 | AA7: 4 | AB7: 4
E8: =COUNTBLANK(E40:E49) -> 5 | F8: =COUNTBLANK(F40:F49) -> 5 | G8: 5 | H8: 5 | J8: =COUNTBLANK(J40:J49) -> 6 | K8: 6 | L8: 6 | M8: 6 | O8: =COUNTBLANK(O40:O49) -> 3 | P8: 3 | Q8: 3 | R8: 3 | T8: =COUNTBLANK(T40:T49) -> 7 | U8: 7 | V8: 7 | W8: 7 | Y8: 6 | Z8: 6 | AA8: 6 | AB8: 6
E9: =COUNTBLANK(E51:E58) -> 4 | F9: =COUNTBLANK(F51:F58) -> 4 | G9: 4 | H9: 4 | J9: =COUNTBLANK(J51:J58) -> 4 | K9: 4 | L9: 4 | M9: 4 | O9: =COUNTBLANK(O51:O58) -> 4 | P9: 4 | Q9: 4 | R9: 4 | T9: =COUNTBLANK(T51:T58) -> 4 | U9: 4 | V9: 4 | W9: 4 | Y9: =COUNTBLANK(Y51:Y58) -> 5 | Z9: 5 | AA9: 5 | AB9: 5
A13: Reg.nr | B13: Naam | E13: =(DATE($A$2,1,1)-WEEKDAY(DATE($A$2,1,1))-IF(WEEKDAY(DATE($A$2,1,1))<6,5,-2)+$B$3*7) -> 2018-01-22 | J13: =(DATE($A$2,1,1)-WEEKDAY(DATE($A$2,1,1))-IF(WEEKDAY(DATE($A$2,1,1))<6,5,-2)+$B$3*7)+1 -> 2018-01-23 | O13: =(DATE($A$2,1,1)-WEEKDAY(DATE($A$2,1,1))-IF(WEEKDAY(DATE($A$2,1,1))<6,5,-2)+$B$3*7)+2 -> 2018-01-24 | T13: =(DATE($A$2,1,1)-WEEKDAY(DATE($A$2,1,1))-IF(WEEKDAY(DATE($A$2,1,1))<6,5,-2)+$B$3*7)+3 -> 2018-01-25 | Y13: =(DATE($A$2,1,1)-WEEKDAY(DATE($A$2,1,1))-IF(WEEKDAY(DATE($A$2,1,1))<6,5,-2)+$B$3*7)+4 -> 2018-01-26
E14: 06 - 08 | F14: 08 - 10 | G14: 10 - 12 | H14: 12 - 14 | J14: 06 - 08 | K14: 08 - 10 | L14: 10 - 12 | M14: 12 - 14 | O14: 06 - 08 | P14: 08 - 10 | Q14: 10 - 12 | R14: 12 - 14 | T14: 06 - 08 | U14: 08 - 10 | V14: 10 - 12 | W14: 12 - 14 | Y14: 06 - 08 | Z14: 08 - 10 | AA14: 10 - 12 | AB14: 12 - 14 | AC14: Opmerkingen
A15: Bezetting M | E15: =IF((COUNTBLANK(E16:E26)*2)=22,"",(COUNTBLANK(E16:E26)*2)) -> 6 | F15: =IF((COUNTBLANK(F16:F26)*2)=22,"",(COUNTBLANK(F16:F26)*2)) -> 6 | G15: 6 | H15: 6 | J15: 6 | K15: =IF((COUNTBLANK(K16:K26)*2)=22,"",(COUNTBLANK(K16:K26)*2)) -> 6 | L15: =IF((COUNTBLANK(L16:L26)*2)=22,"",(COUNTBLANK(L16:L26)*2)) -> 6 | M15: =IF((COUNTBLANK(M16:M26)*2)=22,"",(COUNTBLANK(M16:M26)*2)) -> 6 | O15: =IF((COUNTBLANK(O16:O26)*2)=22,"",(COUNTBLANK(O16:O26)*2)) -> 8 | P15: =IF((COUNTBLANK(P16:P26)*2)=22,"",(COUNTBLANK(P16:P26)*2)) -> 8 | Q15: =IF((COUNTBLANK(Q16:Q26)*2)=22,"",(COUNTBLANK(Q16:Q26)*2)) -> 8 | R15: =IF((COUNTBLANK(R16:R26)*2)=22,"",(COUNTBLANK(R16:R26)*2)) -> 8 | T15: =IF((COUNTBLANK(T16:T26)*2)=22,"",(COUNTBLANK(T16:T26)*2)) -> 8 | U15: =IF((COUNTBLANK(U16:U26)*2)=22,"",(COUNTBLANK(U16:U26)*2)) -> 8 | V15: =IF((COUNTBLANK(V16:V26)*2)=22,"",(COUNTBLANK(V16:V26)*2)) -> 8 | W15: =IF((COUNTBLANK(W16:W26)*2)=22,"",(COUNTBLANK(W16:W26)*2)) -> 8 | Y15: =IF((COUNTBLANK(Y16:Y26)*2)=22,"",(COUNTBLANK(Y16:Y26)*2)) -> 6 | Z15: =IF((COUNTBLANK(Z16:Z26)*2)=22,"",(COUNTBLANK(Z16:Z26)*2)) -> 6 | AA15: =IF((COUNTBLANK(AA16:AA26)*2)=22,"",(COUNTBLANK(AA16:AA26)*2)) -> 6 | AB15: =IF((COUNTBLANK(AB16:AB26)*2)=22,"",(COUNTBLANK(AB16:AB26)*2)) -> 6
A16: 984 | C16: M - AS | J16: KPO | K16: KPO | L16: KPO | M16: KPO | Y16: KPO | Z16: KPO | AA16: KPO | AB16: KPO
A17: 2951 | C17: M - AS | J17: V | K17: V | L17: V | M17: V | Y17: V | Z17: V | AA17: V | AB17: V
A18: 3255 | C18: M - AS | E18: 11574304 | F18: X | G18: X | H18: X | O18: KPO | P18: KPO | Q18: KPO | R18: KPO
A19: 3861 | C19: M - AS | E19: KPO | F19: KPO | G19: KPO | H19: KPO
A20: 7416 | C20: M - AS | E20: WD | F20: WD | G20: WD | H20: WD | J20: WD | K20: WD | L20: WD | M20: WD | O20: WD | P20: WD | Q20: WD | R20: WD | T20: WD | U20: WD | V20: WD | W20: WD | Y20: WD | Z20: WD | AA20: WD | AB20: WD
A21: X | C21: M - AS | E21: X | F21: X | G21: X | H21: X | J21: X | K21: X | L21: X | M21: X | O21: X | P21: X | Q21: X | R21: X | T21: X | U21: X | V21: X | W21: X | Y21: X | Z21: X | AA21: X | AB21: X
A22: 3144 | C22: M - DIFF | E22: WN | F22: WN | G22: WN | H22: WN | J22: WN | K22: WN | L22: WN | M22: WN | O22: WN | P22: WN | Q22: WN | R22: WN | T22: WN | U22: WN | V22: WN | W22: WN | Y22: WN | Z22: WN | AA22: WN | AB22: WN
A23: 3407 | C23: M - DIFF | E23: V | F23: V | G23: V | H23: V | J23: V | K23: V | L23: V | M23: V | O23: G | P23: P | Q23: O | R23: FAMAR | T23: V | U23: V | V23: V | W23: V | Y23: G | Z23: P | AA23: O | AB23: FAMAR
A24: 3784 | C24: M - DIFF | E24: G | F24: P | G24: O | H24: FAMAR | J24: G | K24: P | L24: O | M24: FAMAR | O24: G | P24: P | Q24: O | R24: FAMAR | T24: G | U24: P | V24: O | W24: FAMAR | Y24: G | Z24: P | AA24: O | AB24: FAMAR
A25: 7856 | C25: M - DIFF | T25: V | U25: V | V25: V | W25: V
A26: 9476 | C26: M - DIFF | E26: G | F26: P | G26: O | H26: FAMAR | J26: G | K26: P | L26: O | M26: FAMAR | O26: G | P26: P | Q26: O | R26: FAMAR | T26: G | U26: P | V26: O | W26: FAMAR | Y26: G | Z26: P | AA26: O | AB26: FAMAR
A27: Bezetting E | E27: 10 | F27: 10 | G27: 10 | H27: 10 | J27: 10 | K27: 10 | L27: 10 | M27: 10 | O27: 10 | P27: 10 | Q27: 10 | R27: 10 | T27: 10 | U27: 10 | V27: 10 | W27: 10 | Y27: 10 | Z27: 10 | AA27: 10 | AB27: 10
A28: 2645 | C28: E - AS | O28: KPO | P28: KPO | Q28: KPO | R28: KPO
A29: 3056 | C29: E - AS | J29: KPO | K29: KPO | L29: KPO | M29: KPO | Y29: KPO | Z29: KPO | AA29: KPO | AB29: KPO
A30: 6860 | C30: E - AS | E30: KPO | F30: KPO | G30: KPO | H30: KPO | Y30: 11576349
A31: 8297 | C31: E - AS | E31: Z | F31: Z | G31: Z | H31: Z | J31: Z | K31: Z | L31: Z | M31: Z | O31: Z | P31: Z | Q31: Z | R31: Z | T31: Z | U31: Z | V31: Z | W31: Z | Y31: Z | Z31: Z | AA31: Z | AB31: Z
A32: 1765 | C32: E - DIFF | E32: NACHT | F32: NACHT | G32: NACHT | H32: NACHT | J32: NACHT | K32: NACHT | L32: NACHT | M32: NACHT | O32: NACHT | P32: NACHT | Q32: NACHT | R32: NACHT | T32: NACHT | U32: NACHT | V32: NACHT | W32: NACHT | Y32: NACHT | Z32: NACHT | AA32: NACHT | AB32: NACHT
A33: 2030 | C33: E - DIFF | E33: G | F33: P | G33: O | H33: FAMAR | J33: G | K33: P | L33: O | M33: FAMAR | O33: G | P33: P | Q33: O | R33: FAMAR | T33: G | U33: P | V33: O | W33: FAMAR | Y33: G | Z33: P | AA33: O | AB33: FAMAR
A34: 2485 | C34: E - DIFF | T34: KPO | U34: KPO | V34: KPO | W34: KPO
A35: 6273 | C35: E - DIFF | H35: V
C36: 1
C37: 2
E38: 14 - 16 | F38: 16 - 18 | G38: 18-20 | H38: 20 - 22 | J38: 14 - 16 | K38: 16 - 18 | L38: 18 - 20 | M38: 20 - 22 | O38: 14 - 16 | P38: 16 - 18 | Q38: 18-20 | R38: 20 - 22 | T38: 14 - 16 | U38: 16 - 18 | V38: 18 - 20 | W38: 20 - 22 | Y38: 14 - 16 | Z38: 16 - 18 | AA38: 18-20 | AB38: 20 - 22 | AC38: Opmerkingen
A39: Bezetting M | E39: 14 | F39: 14 | G39: 14 | H39: 14 | J39: 16 | K39: 16 | L39: 16 | M39: 16 | O39: 16 | P39: 16 | Q39: 16 | R39: 16 | T39: 16 | U39: 16 | V39: 16 | W39: 16 | Y39: 16 | Z39: 16 | AA39: 16 | AB39: 16
A40: 1022 | C40: M - AS | J40: KPO | K40: KPO | L40: KPO | M40: KPO
A41: 1562 | C41: M - AS | Y41: TK | Z41: TK | AA41: TK | AB41: TK
A42: 2900 | C42: M - AS | E42: 18335 | F42: 18335 | G42: 18335 | H42: 18335 | J42: 18335 | K42: 18335 | L42: 18335 | M42: 18335
A43: 9758 | C43: M - AS | O43: OPL | P43: OPL | Q43: OPL | R43: OPL
A44: 41371 | C44: M - AS | O44: OPL | P44: OPL | Q44: OPL | R44: OPL
A45: 1786 | C45: M - DIFF | O45: OPL | P45: OPL | Q45: OPL | R45: OPL
A46: 2932 | C46: M - DIFF | E46: TK | F46: TK | G46: TK | H46: TK | O46: KPO | P46: KPO | Q46: KPO | R46: KPO | Y46: 11584319 | Z46: X | AA46: X | AB46: X
A47: 7425 | C47: M - DIFF | E47: G | F47: P | G47: O | H47: FAMAR | J47: G | K47: P | L47: O | M47: FAMAR | O47: G | P47: P | Q47: O | R47: FAMAR | T47: G | U47: P | V47: O | W47: FAMAR | Y47: G | Z47: P | AA47: O | AB47: FAMAR
A48: 7731 | C48: M - DIFF | E48: NACHT | F48: NACHT | G48: NACHT | H48: NACHT | J48: NACHT | K48: NACHT | L48: NACHT | M48: NACHT | O48: NACHT | P48: NACHT | Q48: NACHT | R48: NACHT | T48: NACHT | U48: NACHT | V48: NACHT | W48: NACHT | Y48: NACHT | Z48: NACHT | AA48: NACHT | AB48: NACHT
A49: 41185 | C49: M - DIFF | E49: KPO | F49: KPO | G49: KPO | H49: KPO | O49: OPL | P49: OPL | Q49: OPL | R49: OPL | T49: KPO | U49: KPO | V49: KPO | W49: KPO
A50: Bezetting E | E50: 12 | F50: 12 | G50: 12 | H50: 12 | J50: 12 | K50: 12 | L50: 12 | M50: 12 | O50: 12 | P50: 12 | Q50: 12 | R50: 12 | T50: 12 | U50: 12 | V50: 12 | W50: 12 | Y50: 12 | Z50: 12 | AA50: 12 | AB50: 12
A51: 715 | C51: E - AS
A52: 2042 | C52: E - AS | E52: WD | F52: WD | G52: WD | H52: WD | J52: WD | K52: WD | L52: WD | M52: WD | O52: WD | P52: WD | Q52: WD | R52: WD | T52: WD | U52: WD | V52: WD | W52: WD | Y52: WD | Z52: WD | AA52: WD | AB52: WD
A53: 6930 | C53: E - AS | J53: KPO | K53: KPO | L53: KPO | M53: KPO
A54: 9968 | C54: E - AS
A55: 2118 | C55: E - DIFF | E55: WN | F55: WN | G55: WN | H55: WN | J55: WN | K55: WN | L55: WN | M55: WN | O55: WN | P55: WN | Q55: WN | R55: WN | T55: WN | U55: WN | V55: WN | W55: WN | Y55: WN | Z55: WN | AA55: WN | AB55: WN
A56: 1635 | C56: E - DIFF | E56: G | F56: P | G56: O | H56: FAMAR | J56: G | K56: P | L56: O | M56: FAMAR | O56: G | P56: P | Q56: O | R56: FAMAR | T56: G | U56: P | V56: O | W56: FAMAR | Y56: G | Z56: P | AA56: O | AB56: FAMAR
A57: 2132 | C57: E - DIFF | T57: KPO | U57: KPO | V57: KPO | W57: KPO
A58: 41218 | C58: E - DIFF | E58: KPO | F58: KPO | G58: KPO | H58: KPO | O58: OPL | P58: OPL | Q58: OPL | R58: OPL
C59: 1
C60: 2
A61: Nacht (vast) | E61: 22 - 00 | F61: 00 - 02 | G61: 02 - 04 | H61: 04 - 06 | J61: 22 - 00 | K61: 00 - 02 | L61: 02 - 04 | M61: 04 - 06 | O61: 22 - 00 | P61: 00 - 02 | Q61: 02 - 04 | R61: 04 - 06 | T61: 22 - 00 | U61: 00 - 02 | V61: 02 - 04 | W61: 04 - 06 | Y61: 22 - 00 | Z61: 00 - 02 | AA61: 02 - 04 | AB61: 04 - 06
A62: Bezetting E
A63: 497 | C63: M
A64: 895 | C64: M
A65: 1023 | C65: E | T65: TK | U65: TK | V65: TK | W65: TK | Y65: TK | Z65: TK | AA65: TK | AB65: TK
A66: 4893 | C66: E
A67: Overige | E67: 22 - 00 | F67: 00 - 02 | G67: 02 - 04 | H67: 04 - 06 | J67: 22 - 00 | K67: 00 - 02 | L67: 02 - 04 | M67: 04 - 06 | O67: 22 - 00 | P67: 00 - 02 | Q67: 02 - 04 | R67: 04 - 06 | T67: 22 - 00 | U67: 00 - 02 | V67: 02 - 04 | W67: 04 - 06 | Y67: 22 - 00 | Z67: 00 - 02 | AA67: 02 - 04 | AB67: 04 - 06
A68: Bezetting E | O68: 10 | P68: 10 | Q68: 10 | R68: 10 | Y68: 8 | Z68: 8 | AA68: 8 | AB68: 8
A69: 1115 | C69: S
A70: 2076 | C70: S | E70: Z | F70: Z | G70: Z | H70: Z | J70: Z | K70: Z | L70: Z | M70: Z | O70: Z | P70: Z | Q70: Z | R70: Z | T70: Z | U70: Z | V70: Z | W70: Z | Y70: Z | Z70: Z | AA70: Z | AB70: Z
A71: 1279 | C71: TT | Y71: TK | Z71: TK | AA71: TK | AB71: TK
A72: 1658 | C72: TT | Y72: TK | Z72: TK | AA72: TK | AB72: TK
A73: 1734 | C73: TT
A74: 296 | C74: GM | Y74: TK | Z74: TK | AA74: TK | AB74: TK

Sheet WEEK 5
A1: PLANNING KPO/GPO -AFDELING 53481
A2: 2018
A3: WEEK | B3: 5
A4: TOTAAL PLANUREN | C4: =F4+H4 -> 1024 | E4: Uren Mech | F4: =SUM(E39:H39)+SUM(J39:M39)+SUM(O39:R39)+SUM(T39:W39)+SUM(Y39:AB39)+SUM(E16:H16)+SUM(J16:M16)+SUM(O16:R16)+SUM(T16:W16)+SUM(Y16:AB16) -> 584 | G4: Uren Elec | H4: =SUM(E51:H51)+SUM(J51:M51)+SUM(O51:R51)+SUM(T51:W51)+SUM(Y51:AB51)+SUM(E27:H27)+SUM(J27:M27)+SUM(O27:R27)+SUM(T27:W27)+SUM(Y27:AB27) -> 440
E5: GPO 19019 WO 13221555 | J5: MELDING | L5: WERKORDER
E6: GPO 19585 WO 13223703
E8: =COUNTBLANK(E17:E26) -> 5 | F8: =COUNTBLANK(F17:F26) -> 6 | G8: 6 | H8: 6 | J8: =COUNTBLANK(J17:J26) -> 3 | K8: 3 | L8: 3 | M8: 3 | O8: =COUNTBLANK(O17:O26) -> 4 | P8: 5 | Q8: 5 | R8: 5 | T8: =COUNTBLANK(T17:T26) -> 6 | U8: 7 | V8: 7 | W8: 7 | Y8: =COUNTBLANK(Y17:Y26) -> 2 | Z8: 3 | AA8: 3 | AB8: 3
E9: =COUNTBLANK(E28:E35) -> 3 | F9: =COUNTBLANK(F28:F35) -> 4 | G9: 4 | H9: 4 | J9: =COUNTBLANK(J28:J35) -> 2 | K9: 3 | L9: 3 | M9: 3 | O9: =COUNTBLANK(O28:O35) -> 3 | P9: 3 | Q9: 3 | R9: 3 | T9: =COUNTBLANK(T28:T35) -> 4 | U9: 5 | V9: 5 | W9: 5 | Y9: =COUNTBLANK(Y28:Y35) -> 4 | Z9: =COUNTBLANK(Z28:Z35) -> 4 | AA9: 4 | AB9: 4
E10: =COUNTBLANK(E40:E50) -> 5 | F10: =COUNTBLANK(F40:F50) -> 5 | G10: 5 | H10: 5 | J10: =COUNTBLANK(J40:J50) -> 5 | K10: 5 | L10: 4 | M10: 4 | O10: =COUNTBLANK(O40:O50) -> 4 | P10: 4 | Q10: 4 | R10: 4 | T10: =COUNTBLANK(T40:T50) -> 4 | U10: 4 | V10: 3 | W10: 3 | Y10: =COUNTBLANK(Y40:Y50) -> 5 | Z10: 5 | AA10: 5 | AB10: 5
E11: =COUNTBLANK(E52:E59) -> 4 | F11: =COUNTBLANK(F52:F59) -> 4 | G11: 3 | H11: 4 | J11: =COUNTBLANK(J52:J59) -> 5 | K11: 5 | L11: 4 | M11: 4 | O11: 4 | P11: 4 | Q11: 4 | R11: 5 | T11: 4 | U11: 4 | V11: 4 | W11: 4 | Y11: 5 | Z11: 5 | AA11: 5 | AB11: 5
A14: Reg.nr | B14: Naam | E14: =(DATE($A$2,1,1)-WEEKDAY(DATE($A$2,1,1))-IF(WEEKDAY(DATE($A$2,1,1))<6,5,-2)+$B$3*7) -> 2018-01-29 | J14: =(DATE($A$2,1,1)-WEEKDAY(DATE($A$2,1,1))-IF(WEEKDAY(DATE($A$2,1,1))<6,5,-2)+$B$3*7)+1 -> 2018-01-30 | O14: =(DATE($A$2,1,1)-WEEKDAY(DATE($A$2,1,1))-IF(WEEKDAY(DATE($A$2,1,1))<6,5,-2)+$B$3*7)+2 -> 2018-01-31 | T14: =(DATE($A$2,1,1)-WEEKDAY(DATE($A$2,1,1))-IF(WEEKDAY(DATE($A$2,1,1))<6,5,-2)+$B$3*7)+3 -> 2018-02-01 | Y14: =(DATE($A$2,1,1)-WEEKDAY(DATE($A$2,1,1))-IF(WEEKDAY(DATE($A$2,1,1))<6,5,-2)+$B$3*7)+4 -> 2018-02-02
E15: 06 - 08 | F15: 08 - 10 | G15: 10 - 12 | H15: 12 - 14 | J15: 06 - 08 | K15: 08 - 10 | L15: 10 - 12 | M15: 12 - 14 | O15: 06 - 08 | P15: 08 - 10 | Q15: 10 - 12 | R15: 12 - 14 | T15: 06 - 08 | U15: 08 - 10 | V15: 10 - 12 | W15: 12 - 14 | Y15: 06 - 08 | Z15: 08 - 10 | AA15: 10 - 12 | AB15: 12 - 14
A16: Bezetting M | E16: 14 | F16: 14 | G16: 14 | H16: 14 | J16: 16 | K16: 16 | L16: 16 | M16: 16 | O16: 16 | P16: 16 | Q16: 16 | R16: 16 | T16: 16 | U16: 16 | V16: 16 | W16: 16 | Y16: 14 | Z16: 14 | AA16: 14 | AB16: 14
A17: 1022 | C17: M - AS | E17: LS | J17: LS | K17: KPO | L17: KPO | M17: KPO | O17: LS | T17: LS | Y17: LS | AC17: Opmerkingen
A18: 1562 | C18: M - AS | Y18: TK | Z18: TK | AA18: TK | AB18: TK
A19: 2900 | C19: M - AS | E19: G | F19: P | G19: O | H19: 19019 | J19: G | K19: P | L19: O | M19: 19019 | O19: G | P19: P | Q19: O | R19: 19019 | T19: G | U19: P | V19: O | W19: 19019 | Y19: G | Z19: P | AA19: O | AB19: 19019
A20: 9758 | C20: M - AS | J20: OPL | K20: OPL | L20: OPL | M20: OPL | O20: OPL | P20: OPL | Q20: OPL | R20: OPL | Y20: OPL | Z20: OPL | AA20: OPL | AB20: OPL
A21: 41371 | C21: M - AS | J21: OPL | K21: OPL | L21: OPL | M21: OPL | O21: OPL | P21: OPL | Q21: OPL | R21: OPL | Y21: OPL | Z21: OPL | AA21: OPL | AB21: OPL
A22: 1786 | C22: M - DIFF | J22: OPL | K22: OPL | L22: OPL | M22: OPL | O22: OPL | P22: OPL | Q22: OPL | R22: OPL | T22: KPO | U22: KPO | V22: KPO | W22: KPO | Y22: OPL | Z22: OPL | AA22: OPL | AB22: OPL
A23: 2932 | C23: M - DIFF | E23: TK | F23: TK | G23: TK | H23: TK
A24: 7425 | C24: M - DIFF | E24: KPO | F24: KPO | G24: KPO | H24: KPO | J24: NACHT | K24: NACHT | L24: NACHT | M24: NACHT | O24: NACHT | P24: NACHT | Q24: NACHT | R24: NACHT | T24: NACHT | U24: NACHT | V24: NACHT | W24: NACHT | Y24: NACHT | Z24: NACHT | AA24: NACHT | AB24: NACHT
A25: 7731 | C25: M - DIFF | E25: NACHT | F25: NACHT | G25: NACHT | H25: NACHT
A26: 41185 | C26: M - DIFF | J26: OPL | K26: OPL | L26: OPL | M26: OPL | Y26: OPL | Z26: OPL | AA26: OPL | AB26: OPL
A27: Bezetting E | E27: 10 | F27: 10 | G27: 10 | H27: 10 | J27: 10 | K27: 10 | L27: 10 | M27: 10 | O27: 10 | P27: 10 | Q27: 10 | R27: 10 | T27: 10 | U27: 10 | V27: 10 | W27: 10 | Y27: 10 | Z27: 10 | AA27: 10 | AB27: 10
A28: 715 | C28: E - AS | J28: KPO | K28: KPO | L28: KPO | M28: KPO | Y28: KPO | Z28: KPO | AA28: KPO | AB28: KPO
A29: 2042 | C29: E - AS | E29: WD | F29: WD | G29: WD | H29: WD | J29: WD | K29: WD | L29: WD | M29: WD | O29: WD | P29: WD | Q29: WD | R29: WD | T29: WD | U29: WD | V29: WD | W29: WD | Y29: WD | Z29: WD | AA29: WD | AB29: WD
A30: 6930 | C30: E - AS | E30: SD | J30: SD | O30: SD | P30: KPO | Q30: KPO | R30: KPO | T30: SD
A31: 9968 | C31: E - AS | E31: G | F31: P | G31: O | H31: 19585 | J31: G | K31: P | L31: O | M31: 19585 | O31: G | P31: P | Q31: O | R31: 19585 | T31: G | U31: P | V31: O | W31: 19585 | Y31: G | Z31: P | AA31: O | AB31: 19585
A32: 2118 | C32: E - DIFF | E32: WN | F32: WN | G32: WN | H32: WN | J32: WN | K32: WN | L32: WN | M32: WN | O32: WN | P32: WN | Q32: WN | R32: WN
A33: 1635 | C33: E - DIFF | E33: KPO | F33: KPO | G33: KPO | H33: KPO
A34: 2132 | C34: E - DIFF
A35: 41218 | C35: E - DIFF | J35: OPL | K35: OPL | L35: OPL | M35: OPL | O35: OPL | P35: OPL | Q35: OPL | R35: OPL | T35: KPO | U35: KPO | V35: KPO | W35: KPO | Y35: OPL | Z35: OPL | AA35: OPL | AB35: OPL
C36: 1
C37: 2
E38: 14 - 16 | F38: 16 - 18 | G38: 18-20 | H38: 20 - 22 | J38: 14 - 16 | K38: 16 - 18 | L38: 18 - 20 | M38: 20 - 22 | O38: 14 - 16 | P38: 16 - 18 | Q38: 18-20 | R38: 20 - 22 | T38: 14 - 16 | U38: 16 - 18 | V38: 18 - 20 | W38: 20 - 22 | Y38: 14 - 16 | Z38: 16 - 18 | AA38: 18-20 | AB38: 20 - 22
A39: Bezetting M | E39: 14 | F39: 14 | G39: 14 | H39: 14 | J39: 14 | K39: 14 | L39: 14 | M39: 14 | O39: 14 | P39: 14 | Q39: 14 | R39: 14 | T39: 14 | U39: 14 | V39: 14 | W39: 14 | Y39: 14 | Z39: 14 | AA39: 14 | AB39: 14
A40: 984 | C40: M - AS | E40: G | F40: P | G40: O | H40: 19585 | J40: G | K40: P | L40: O | M40: 19585 | O40: G | P40: P | Q40: O | R40: 19585 | T40: G | U40: P | V40: O | W40: 19585 | Y40: G | Z40: P | AA40: O | AB40: 19585 | AC40: Opmerkingen
A41: 2951 | C41: M - AS | J41: KPO | K41: KPO | L41: KPO | M41: KPO
A42: 3255 | C42: M - AS
A43: 3861 | C43: M - AS | E43: G | F43: P | G43: O | H43: 19585 | J43: G | K43: P | L43: O | M43: 19585 | O43: G | P43: P | Q43: O | R43: 19585 | T43: G | U43: P | V43: O | W43: 19585 | Y43: G | Z43: P | AA43: O | AB43: 19585
A44: 7416 | C44: M - AS | E44: WD | F44: WD | G44: WD | H44: WD | J44: WD | K44: WD | L44: WD | M44: WD | O44: WD | P44: WD | Q44: WD | R44: WD | T44: WD | U44: WD | V44: WD | W44: WD | Y44: WD | Z44: WD | AA44: WD | AB44: WD
A45: X | C45: M - AS | E45: X | F45: X | G45: X | H45: X | J45: X | K45: X | L45: X | M45: X | O45: X | P45: X | Q45: X | R45: X | T45: X | U45: X | V45: X | W45: X | Y45: X | Z45: X | AA45: X | AB45: X
A46: 3144 | C46: M - DIFF | E46: WN | F46: WN | G46: WN | H46: WN | J46: WN | K46: WN | L46: WN | M46: WN | O46: WN | P46: WN | Q46: WN | R46: WN | T46: WN | U46: WN | V46: WN | W46: WN | Y46: WN | Z46: WN | AA46: WN | AB46: WN
A47: 3407 | C47: M - DIFF | E47: KPO | F47: KPO | G47: KPO | H47: KPO | T47: 13225308 | U47: X | V47: X | W47: X | Y47: V | Z47: V | AA47: V | AB47: V
A48: 3784 | C48: M - DIFF | O48: 11576558 | P48: X
A49: 7856 | C49: M - DIFF | Q49: V | R49: V | T49: KPO | U49: KPO | V49: KPO | W49: KPO
A50: 9476 | C50: M - DIFF | L50: EDUC | M50: EDUC | O50: KPO | P50: KPO | Q50: KPO | R50: KPO | V50: EDUC | W50: EDUC
A51: Bezetting E | E51: 12 | F51: 12 | G51: 12 | H51: 12 | J51: 12 | K51: 12 | L51: 12 | M51: 12 | O51: 12 | P51: 12 | Q51: 12 | R51: 12 | T51: 12 | U51: 12 | V51: 12 | W51: 12 | Y51: 12 | Z51: 12 | AA51: 12 | AB51: 12
A52: 2645 | C52: E - AS | E52: G | F52: P | G52: O | H52: 19019 | J52: G | K52: P | L52: O | M52: 19019 | O52: G | P52: P | Q52: O | R52: 19019 | T52: G | U52: P | V52: O | W52: 19019 | Y52: G | Z52: P | AA52: O | AB52: 19019
A53: 3056 | C53: E - AS | T53: WN | U53: WN | V53: WN | W53: WN | Y53: WN | Z53: WN | AA53: WN | AB53: WN
A54: 6860 | C54: E - AS
A55: 8297 | C55: E - AS | J55: KPO | K55: KPO | L55: KPO | M55: KPO
A56: 1765 | C56: E - DIFF | E56: NACHT | F56: NACHT | G56: NACHT | H56: NACHT | J56: NACHT | K56: NACHT | L56: NACHT | M56: NACHT | O56: NACHT | P56: NACHT | Q56: NACHT | R56: NACHT | T56: NACHT | U56: NACHT | V56: NACHT | W56: NACHT | Y56: NACHT | Z56: NACHT | AA56: NACHT | AB56: NACHT
A57: 2030 | C57: E - DIFF | E57: TK | F57: TK | G57: TK | H57: TK | T57: KPO | U57: KPO | V57: KPO | W57: KPO
A58: 2485 | C58: E - DIFF | G58: 11575624 | L58: EDUC | M58: EDUC | O58: EDUC | P58: EDUC | Q58: 11579972
A59: 6273 | C59: E - DIFF | E59: KPO | F59: KPO | G59: KPO | H59: KPO | O59: KPO | P59: KPO | Q59: KPO | R59: KPO
C60: 1
C61: 2
A62: Nacht (vast) | E62: 22 - 00 | F62: 00 - 02 | G62: 02 - 04 | H62: 04 - 06 | J62: 22 - 00 | K62: 00 - 02 | L62: 02 - 04 | M62: 04 - 06 | O62: 22 - 00 | P62: 00 - 02 | Q62: 02 - 04 | R62: 04 - 06 | T62: 22 - 00 | U62: 00 - 02 | V62: 02 - 04 | W62: 04 - 06 | Y62: 22 - 00 | Z62: 00 - 02 | AA62: 02 - 04 | AB62: 04 - 06
A63: Bezetting E
A64: 497 | C64: M
A65: 895 | C65: M
A66: 1023 | C66: E | Y66: TK | Z66: TK | AA66: TK | AB66: TK
A67: 4893 | C67: E
A68: Overige | E68: 22 - 00 | F68: 00 - 02 | G68: 02 - 04 | H68: 04 - 06 | J68: 22 - 00 | K68: 00 - 02 | L68: 02 - 04 | M68: 04 - 06 | O68: 22 - 00 | P68: 00 - 02 | Q68: 02 - 04 | R68: 04 - 06 | T68: 22 - 00 | U68: 00 - 02 | V68: 02 - 04 | W68: 04 - 06 | Y68: 22 - 00 | Z68: 00 - 02 | AA68: 02 - 04 | AB68: 04 - 06
A69: Bezetting E | O69: 10 | P69: 10 | Q69: 10 | R69: 10 | Y69: 8 | Z69: 8 | AA69: 8 | AB69: 8
A70: 1115 | C70: S
A71: 2076 | C71: S | E71: Z | F71: Z | G71: Z | H71: Z | J71: Z | K71: Z | L71: Z | M71: Z | O71: Z | P71: Z | Q71: Z | R71: Z | T71: Z | U71: Z | V71: Z | W71: Z | Y71: Z | Z71: Z | AA71: Z | AB71: Z
A72: 1279 | C72: TT | Y72: TK | Z72: TK | AA72: TK | AB72: TK
A73: 1658 | C73: TT | E73: TK | F73: TK | G73: TK | H73: TK | J73: TK | K73: TK | L73: TK | M73: TK
A74: 1734 | C74: TT
A75: 296 | C75: GM | Y75: TK | Z75: TK | AA75: TK | AB75: TK

Sheet WEEK 6
A1: PLANNING KPO/GPO -AFDELING 53481
A2: 2018
A3: WEEK | B3: 6
A4: TOTAAL PLANUREN | C4: =F4+H4 -> 390 | E4: Uren Mech | F4: =SUM(E15:H15)+SUM(J15:M15)+SUM(O15:R15)+SUM(T15:W15)+SUM(Y15:AB15)+SUM(E39:H39)+SUM(J39:M39)+SUM(O39:R39)+SUM(T39:W39)+SUM(Y39:AB39) -> 206 | G4: Uren Elec | H4: =SUM(E27:H27)+SUM(J27:M27)+SUM(O27:R27)+SUM(T27:W27)+SUM(Y27:AB27)+SUM(E50:H50)+SUM(J50:M50)+SUM(O50:R50)+SUM(T50:W50)+SUM(Y50:AB50) -> 184
J5: MELDING | L5: WERKORDER
E6: =COUNTBLANK(E16:E26) -> 4 | F6: =COUNTBLANK(F16:F26) -> 4 | G6: =COUNTBLANK(G16:G26) -> 4 | H6: =COUNTBLANK(H16:H26) -> 4 | J6: =COUNTBLANK(J16:J26) -> 5 | K6: =COUNTBLANK(K16:K26) -> 5 | L6: =COUNTBLANK(L16:L26) -> 5 | M6: =COUNTBLANK(M16:M26) -> 4 | O6: =COUNTBLANK(O16:O26) -> 5 | P6: =COUNTBLANK(P16:P26) -> 5 | Q6: 5 | R6: 5 | T6: =COUNTBLANK(T16:T26) -> 6 | U6: =COUNTBLANK(U16:U26) -> 6 | V6: 6 | W6: 6 | Y6: =COUNTBLANK(Y16:Y26) -> 6 | Z6: =COUNTBLANK(Z16:Z26) -> 6 | AA6: 6 | AB6: 6
E7: =COUNTBLANK(E28:E35) -> 3 | F7: =COUNTBLANK(F28:F35) -> 3 | G7: 3 | H7: 3 | J7: =COUNTBLANK(J28:J35) -> 3 | K7: 3 | L7: 3 | M7: 3 | O7: =COUNTBLANK(O28:O35) -> 3 | P7: 3 | Q7: 3 | R7: 3 | T7: =COUNTBLANK(T28:T35) -> 3 | U7: 3 | V7: 3 | W7: 3 | Y7: =COUNTBLANK(Y28:Y35) -> 3 | Z7: 3 | AA7: 3 | AB7: 3
E8: =COUNTBLANK(E40:E49) -> 6 | F8: =COUNTBLANK(F40:F49) -> 6 | G8: 6 | H8: 6 | J8: =COUNTBLANK(J40:J49) -> 8 | K8: 8 | L8: 8 | M8: 8 | O8: =COUNTBLANK(O40:O49) -> 8 | P8: 8 | Q8: 7 | R8: 7 | T8: =COUNTBLANK(T40:T49) -> 6 | U8: 6 | V8: 6 | W8: 6 | Y8: 6 | Z8: 6 | AA8: 6 | AB8: 6
E9: =COUNTBLANK(E51:E58) -> 3 | F9: =COUNTBLANK(F51:F58) -> 3 | G9: 3 | H9: 3 | J9: =COUNTBLANK(J51:J58) -> 6 | K9: 6 | L9: 6 | M9: 6 | O9: =COUNTBLANK(O51:O58) -> 6 | P9: 6 | Q9: 6 | R9: 6 | T9: =COUNTBLANK(T51:T58) -> 7 | U9: 7 | V9: 7 | W9: 7 | Y9: =COUNTBLANK(Y51:Y58) -> 7 | Z9: 7 | AA9: 7 | AB9: 7
E10: GPO | F10: 18334 | G10: ORDER | H10: 13220702
A13: Reg.nr | B13: Naam | E13: =(DATE($A$2,1,1)-WEEKDAY(DATE($A$2,1,1))-IF(WEEKDAY(DATE($A$2,1,1))<6,5,-2)+$B$3*7) -> 2018-02-05 | J13: =(DATE($A$2,1,1)-WEEKDAY(DATE($A$2,1,1))-IF(WEEKDAY(DATE($A$2,1,1))<6,5,-2)+$B$3*7)+1 -> 2018-02-06 | O13: =(DATE($A$2,1,1)-WEEKDAY(DATE($A$2,1,1))-IF(WEEKDAY(DATE($A$2,1,1))<6,5,-2)+$B$3*7)+2 -> 2018-02-07 | T13: =(DATE($A$2,1,1)-WEEKDAY(DATE($A$2,1,1))-IF(WEEKDAY(DATE($A$2,1,1))<6,5,-2)+$B$3*7)+3 -> 2018-02-08 | Y13: =(DATE($A$2,1,1)-WEEKDAY(DATE($A$2,1,1))-IF(WEEKDAY(DATE($A$2,1,1))<6,5,-2)+$B$3*7)+4 -> 2018-02-09
E14: 06 - 08 | F14: 08 - 10 | G14: 10 - 12 | H14: 12 - 14 | J14: 06 - 08 | K14: 08 - 10 | L14: 10 - 12 | M14: 12 - 14 | O14: 06 - 08 | P14: 08 - 10 | Q14: 10 - 12 | R14: 12 - 14 | T14: 06 - 08 | U14: 08 - 10 | V14: 10 - 12 | W14: 12 - 14 | Y14: 06 - 08 | Z14: 08 - 10 | AA14: 10 - 12 | AB14: 12 - 14 | AC14: Opmerkingen
A15: Bezetting M | E15: =IF((COUNTBLANK(E16:E26)*2)=22,"",(COUNTBLANK(E16:E26)*2)) -> 8 | F15: =IF((COUNTBLANK(F16:F26)*2)=22,"",(COUNTBLANK(F16:F26)*2)) -> 8 | G15: 8 | H15: 8 | J15: 10 | K15: 10 | L15: 10 | M15: 8 | O15: =IF((COUNTBLANK(O16:O26)*2)=22,"",(COUNTBLANK(O16:O26)*2)) -> 10 | P15: 10 | Q15: 10 | R15: 10 | T15: =IF((COUNTBLANK(T16:T26)*2)=22,"",(COUNTBLANK(T16:T26)*2)) -> 12 | U15: 12 | V15: 12 | W15: 12 | Y15: =IF((COUNTBLANK(Y16:Y26)*2)=22,"",(COUNTBLANK(Y16:Y26)*2)) -> 12 | Z15: 12 | AA15: 12 | AB15: 12
A16: 984 | C16: M - AS | J16: KPO | K16: KPO | L16: KPO | M16: KPO | Y16: KPO | Z16: KPO | AA16: KPO | AB16: KPO
A17: 2951 | C17: M - AS | E17: KPO | F17: KPO | G17: KPO | H17: KPO
A18: 3255 | C18: M - AS | E18: IN | F18: SPEC | G18: TIE | H18: 19020 | O18: KPO | P18: KPO | Q18: KPO | R18: KPO
A19: 3861 | C19: M - AS | E19: NACHT | F19: NACHT | G19: NACHT | H19: NACHT | J19: NACHT | K19: NACHT | L19: NACHT | M19: NACHT | O19: NACHT | P19: NACHT | Q19: NACHT | R19: NACHT | T19: NACHT | U19: NACHT | V19: NACHT | W19: NACHT | Y19: NACHT | Z19: NACHT | AA19: NACHT | AB19: NACHT
A20: 7416 | C20: M - AS | E20: WD | F20: WD | G20: WD | H20: WD | J20: WD | K20: WD | L20: WD | M20: WD | O20: WD | P20: WD | Q20: WD | R20: WD
A21: X | C21: M - AS | E21: X | F21: X | G21: X | H21: X | J21: X | K21: X | L21: X | M21: X | O21: X | P21: X | Q21: X | R21: X | T21: X | U21: X | V21: X | W21: X | Y21: X | Z21: X | AA21: X | AB21: X
A22: 3144 | C22: M - DIFF | E22: WN | F22: WN | G22: WN | H22: WN | J22: WN | K22: WN | L22: WN | M22: WN | O22: WN | P22: WN | Q22: WN | R22: WN | T22: WN | U22: WN | V22: WN | W22: WN | Y22: WN | Z22: WN | AA22: WN | AB22: WN
A23: 3407 | C23: M - DIFF | M23: V | T23: KPO | U23: KPO | V23: KPO | W23: KPO
A24: 3784 | C24: M - DIFF
A25: 7856 | C25: M - DIFF | E25: G | F25: P | G25: O | H25: 18334 | J25: G | K25: P | L25: O | M25: 18334 | O25: G | P25: P | Q25: O | R25: 18334 | T25: G | U25: P | V25: O | W25: 18334 | Y25: G | Z25: P | AA25: O | AB25: 18334
A26: 9476 | C26: M - DIFF
A27: Bezetting E | E27: 10 | F27: 10 | G27: 10 | H27: 10 | J27: 10 | K27: 10 | L27: 10 | M27: 10 | O27: 10 | P27: 10 | Q27: 10 | R27: 10 | T27: 8 | U27: 8 | V27: 8 | W27: 8 | Y27: 8 | Z27: 8 | AA27: 8 | AB27: 8
A28: 2645 | C28: E - AS | E28: V | F28: V | G28: V | H28: V | J28: V | K28: V | L28: V | M28: V | O28: V | P28: V | Q28: V | R28: V | T28: WD | U28: WD | V28: WD | W28: WD | Y28: WD | Z28: WD | AA28: WD | AB28: WD
A29: 3056 | C29: E - AS | E29: WN | F29: WN | G29: WN | H29: WN | J29: WN | K29: WN | L29: WN | M29: WN | O29: WN | P29: WN | Q29: WN | R29: WN | T29: WN | U29: WN | V29: WN | W29: WN | Y29: WN | Z29: WN | AA29: WN | AB29: WN
A30: 6860 | C30: E - AS | E30: NACHT | F30: NACHT | G30: NACHT | H30: NACHT | J30: NACHT | K30: NACHT | L30: NACHT | M30: NACHT | O30: NACHT | P30: NACHT | Q30: NACHT | R30: NACHT | T30: NACHT | U30: NACHT | V30: NACHT | W30: NACHT | Y30: NACHT | Z30: NACHT | AA30: NACHT | AB30: NACHT
A31: 8297 | C31: E - AS | E31: IN | F31: SPEC | G31: TIE | H31: 19020 | J31: V | K31: V | L31: V | M31: V | Y31: KPO | Z31: KPO | AA31: KPO | AB31: KPO
A32: 1765 | C32: E - DIFF | T32: KPO | U32: KPO | V32: KPO | W32: KPO
A33: 2030 | C33: E - DIFF
A34: 2485 | C34: E - DIFF | E34: G | F34: P | G34: O | H34: 18334 | J34: G | K34: P | L34: O | M34: 18334 | O34: G | P34: P | Q34: O | R34: 18334 | T34: G | U34: P | V34: O | W34: 18334 | Y34: G | Z34: P | AA34: O | AB34: 18334
A35: 6273 | C35: E - DIFF | O35: KPO | P35: KPO | Q35: KPO | R35: KPO
C36: 1 | E36: FFG GPO 18334 | J36: FFG GPO 18334 | O36: FFG GPO 18334 | T36: FFG GPO 18334 | Y36: FFG GPO 18334
C37: 2
E38: 14 - 16 | F38: 16 - 18 | G38: 18-20 | H38: 20 - 22 | J38: 14 - 16 | K38: 16 - 18 | L38: 18 - 20 | M38: 20 - 22 | O38: 14 - 16 | P38: 16 - 18 | Q38: 18-20 | R38: 20 - 22 | T38: 14 - 16 | U38: 16 - 18 | V38: 18 - 20 | W38: 20 - 22 | Y38: 14 - 16 | Z38: 16 - 18 | AA38: 18-20 | AB38: 20 - 22 | AC38: Opmerkingen
A39: Bezetting M
A40: 1022 | C40: M - AS | J40: KPO | K40: KPO | L40: KPO | M40: KPO | T40: WD | U40: WD | V40: WD | W40: WD | Y40: WD | Z40: WD | AA40: WD | AB40: WD
A41: 1562 | C41: M - AS | Y41: TK | Z41: TK | AA41: TK | AB41: TK
A42: 2900 | C42: M - AS
A43: 9758 | C43: M - AS | T43: V | U43: V | V43: V | W43: V | Y43: V | Z43: V | AA43: V | AB43: V
A44: 41371 | C44: M - AS
A45: 1786 | C45: M - DIFF | E45: IN | F45: SPEC | G45: TIE | H45: 17840
A46: 2932 | C46: M - DIFF | E46: TK | F46: TK | G46: TK | H46: TK | O46: KPO | P46: KPO | Q46: KPO | R46: KPO
A47: 7425 | C47: M - DIFF | T47: KPO | U47: KPO | V47: KPO | W47: KPO
A48: 7731 | C48: M - DIFF | E48: EDUC | F48: EDUC | G48: EDUC | H48: EDUC | Q48: 11578204 | R48: X
A49: 41185 | C49: M - DIFF | E49: G | F49: P | G49: O | H49: 18334 | J49: G | K49: P | L49: O | M49: 18334 | O49: G | P49: P | Q49: O | R49: 18334 | T49: G | U49: P | V49: O | W49: 18334 | Y49: G | Z49: P | AA49: O | AB49: 18334
A50: Bezetting E
A51: 715 | C51: E - AS
A52: 2042 | C52: E - AS | E52: WD | F52: WD | G52: WD | H52: WD | J52: WD | K52: WD | L52: WD | M52: WD | O52: WD | P52: WD | Q52: WD | R52: WD
A53: 6930 | C53: E - AS | J53: KPO | K53: KPO | L53: KPO | M53: KPO
A54: 9968 | C54: E - AS | E54: 11569017 | F54: X | G54: X | H54: X
A55: 2118 | C55: E - DIFF | E55: OPL | F55: OPL | G55: OPL | H55: OPL
A56: 1635 | C56: E - DIFF | E56: KPO | F56: KPO | G56: KPO | H56: KPO | Y56: V | Z56: V
A57: 2132 | C57: E - DIFF | T57: KPO | U57: KPO | V57: KPO | W57: KPO
A58: 41218 | C58: E - DIFF | E58: IN | F58: SPEC | G58: TIE | H58: 17840 | O58: KPO | P58: KPO | Q58: KPO | R58: KPO
C59: 1
C60: 2
A61: Nacht (vast) | E61: 22 - 00 | F61: 00 - 02 | G61: 02 - 04 | H61: 04 - 06 | J61: 22 - 00 | K61: 00 - 02 | L61: 02 - 04 | M61: 04 - 06 | O61: 22 - 00 | P61: 00 - 02 | Q61: 02 - 04 | R61: 04 - 06 | T61: 22 - 00 | U61: 00 - 02 | V61: 02 - 04 | W61: 04 - 06 | Y61: 22 - 00 | Z61: 00 - 02 | AA61: 02 - 04 | AB61: 04 - 06
A62: Bezetting E
A63: 497 | C63: M
A64: 895 | C64: M
A65: 1023 | C65: E
A66: 4893 | C66: E
A67: Overige | E67: 0730 - 0930 | F67: 0930 - 1130 | G67: 1130 - 1330 | H67: 1330 - 1530 | J67: 0730 - 0930 | K67: 0930 - 1130 | L67: 1130 - 1330 | M67: 1330 - 1530 | O67: 0730 - 0930 | P67: 0930 - 1130 | Q67: 1130 - 1330 | R67: 1330 - 1530 | T67: 0730 - 0930 | U67: 0930 - 1130 | V67: 1130 - 1330 | W67: 1330 - 1530 | Y67: 0730 - 0930 | Z67: 0930 - 1130 | AA67: 1130 - 1330 | AB67: 1330 - 1530
A68: Bezetting E | E68: 10 | F68: 10 | G68: 10 | H68: 10 | J68: 10 | K68: 10 | L68: 10 | M68: 10 | O68: 10 | P68: 10 | Q68: 10 | R68: 10 | T68: 10 | U68: 10 | V68: 10 | W68: 10 | Y68: 10 | Z68: 10 | AA68: 10 | AB68: 10
A69: 1115 | C69: S
A70: 2076 | C70: S | E70: Z | F70: Z | G70: Z | H70: Z | J70: Z | K70: Z | L70: Z | M70: Z | O70: Z | P70: Z | Q70: Z | R70: Z | T70: Z | U70: Z | V70: Z | W70: Z | Y70: Z | Z70: Z | AA70: Z | AB70: Z
A71: 1279 | C71: TT
A72: 1658 | C72: TT
A73: 1734 | C73: TT
A74: 296 | C74: GM

Sheet WEEK 7
A1: PLANNING KPO/GPO -AFDELING 53481
A2: 2018 | Y2: Sneldienst
A3: WEEK | B3: 7 | Y3: lakstraat
A4: TOTAAL PLANUREN | C4: =F4+H4 -> 800 | E4: Uren Mech | F4: =SUM(E39:H39)+SUM(J39:M39)+SUM(O39:R39)+SUM(T39:W39)+SUM(Y39:AB39)+SUM(E16:H16)+SUM(J16:M16)+SUM(O16:R16)+SUM(T16:W16)+SUM(Y16:AB16) -> 640 | G4: Uren Elec | H4: =SUM(E51:H51)+SUM(J51:M51)+SUM(O51:R51)+SUM(T51:W51)+SUM(Y51:AB51)+SUM(E27:H27)+SUM(J27:M27)+SUM(O27:R27)+SUM(T27:W27)+SUM(Y27:AB27) -> 160
J5: MELDING | L5: WERKORDER | Y5: Sneldienst
E6: GPO 18335 WO 13221553 | Y6: lakstraat
E8: =COUNTBLANK(E17:E26) -> 4 | F8: =COUNTBLANK(F17:F26) -> 3 | G8: 4 | H8: 4 | J8: =COUNTBLANK(J17:J26) -> 7 | K8: 7 | L8: 7 | M8: 7 | O8: =COUNTBLANK(O17:O26) -> 6 | P8: 6 | Q8: 6 | R8: 6 | T8: =COUNTBLANK(T17:T26) -> 7 | U8: 7 | V8: 7 | W8: 7
E9: =COUNTBLANK(E28:E35) -> 4 | F9: =COUNTBLANK(F28:F35) -> 4 | G9: 4 | H9: 4 | J9: =COUNTBLANK(J28:J35) -> 6 | K9: 6 | L9: 6 | M9: 6 | O9: =COUNTBLANK(O28:O35) -> 6 | P9: 6 | Q9: 6 | R9: 6 | T9: =COUNTBLANK(T28:T35) -> 5 | U9: 5 | V9: 5 | W9: 5
E10: =COUNTBLANK(E40:E50) -> 5 | F10: =COUNTBLANK(F40:F50) -> 5 | G10: 5 | H10: 5 | J10: =COUNTBLANK(J40:J50) -> 6 | K10: 6 | L10: 5 | M10: 5 | O10: =COUNTBLANK(O40:O50) -> 6 | P10: 6 | Q10: 6 | R10: 6 | T10: =COUNTBLANK(T40:T50) -> 6 | U10: 6 | V10: 5 | W10: 5
E11: =COUNTBLANK(E52:E59) -> 4 | F11: =COUNTBLANK(F52:F59) -> 4 | G11: 4 | H11: 4 | J11: =COUNTBLANK(J52:J59) -> 4 | K11: 4 | L11: 3 | M11: 3 | O11: 4 | P11: 4 | Q11: 4 | R11: 4 | T11: 4 | U11: 4 | V11: 4 | W11: 4
A14: Reg.nr | B14: Naam | E14: =(DATE($A$2,1,1)-WEEKDAY(DATE($A$2,1,1))-IF(WEEKDAY(DATE($A$2,1,1))<6,5,-2)+$B$3*7) -> 2018-02-12 | J14: =(DATE($A$2,1,1)-WEEKDAY(DATE($A$2,1,1))-IF(WEEKDAY(DATE($A$2,1,1))<6,5,-2)+$B$3*7)+1 -> 2018-02-13 | O14: =(DATE($A$2,1,1)-WEEKDAY(DATE($A$2,1,1))-IF(WEEKDAY(DATE($A$2,1,1))<6,5,-2)+$B$3*7)+2 -> 2018-02-14 | T14: =(DATE($A$2,1,1)-WEEKDAY(DATE($A$2,1,1))-IF(WEEKDAY(DATE($A$2,1,1))<6,5,-2)+$B$3*7)+3 -> 2018-02-15 | Y14: =(DATE($A$2,1,1)-WEEKDAY(DATE($A$2,1,1))-IF(WEEKDAY(DATE($A$2,1,1))<6,5,-2)+$B$3*7)+4 -> 2018-02-16
E15: 06 - 08 | F15: 08 - 10 | G15: 10 - 12 | H15: 12 - 14 | J15: 06 - 08 | K15: 08 - 10 | L15: 10 - 12 | M15: 12 - 14 | O15: 06 - 08 | P15: 08 - 10 | Q15: 10 - 12 | R15: 12 - 14 | T15: 06 - 08 | U15: 08 - 10 | V15: 10 - 12 | W15: 12 - 14 | Y15: 06 - 08 | Z15: 08 - 10 | AA15: 10 - 12 | AB15: 12 - 14
A16: Bezetting M | E16: 18 | F16: 18 | G16: 18 | H16: 18 | J16: 18 | K16: 18 | L16: 18 | M16: 18 | O16: 18 | P16: 18 | Q16: 18 | R16: 18 | T16: 18 | U16: 18 | V16: 18 | W16: 18 | Y16: 18 | Z16: 18 | AA16: 18 | AB16: 18
A17: 1022 | C17: M - AS | E17: WD | F17: WD | G17: WD | H17: WD | J17: WD | K17: WD | L17: WD | M17: WD | O17: WD | P17: WD | Q17: WD | R17: WD | T17: WD | U17: WD | V17: WD | W17: WD | Y17: WD | Z17: WD | AA17: WD | AB17: WD | AC17: Opmerkingen
A18: 1562 | B18: test | C18: M - AS | Y18: TK | Z18: TK | AA18: TK | AB18: TK
A19: 2900 | C19: M - AS | E19: V | F19: V | G19: V | H19: V | J19: KPO | K19: KPO | L19: KPO | M19: KPO
A20: 9758 | C20: M - AS | E20: V | F20: V | G20: V | H20: V | Y20: KPO | Z20: KPO | AA20: KPO | AB20: KPO
A21: 41371 | B21: hello | C21: M - AS | F21: ro | O21: KPO | P21: KPO | Q21: KPO | R21: KPO
A22: 1786 | C22: M - DIFF | T22: KPO | U22: KPO | V22: KPO | W22: KPO
A23: 2932 | C23: M - DIFF | E23: TK | F23: TK | G23: TK | H23: TK | J23: G | K23: P | L23: O | M23: 18335 | O23: G | P23: P | Q23: O | R23: 18335 | T23: G | U23: P | V23: O | W23: 18335 | Y23: G | Z23: P | AA23: O | AB23: 18335
A24: 7425 | B24: koen | C24: M - DIFF | E24: KPO | F24: KPO | G24: KPO | H24: KPO
A25: 7731 | C25: M - DIFF | E25: IN | F25: SPEC | G25: TIE | H25: 17681 | O25: 11580850 | P25: X | Q25: X | R25: X
A26: 41185 | C26: M - DIFF
A27: Bezetting E
A28: 715 | C28: E - AS | Y28: KPO | Z28: KPO | AA28: KPO | AB28: KPO
A29: 2042 | C29: E - AS | E29: G | F29: P | G29: O | H29: 18335 | J29: G | K29: P | L29: O | M29: 18335 | O29: G | P29: P | Q29: O | R29: 18335 | T29: G | U29: P | V29: O | W29: 18335 | Y29: G | Z29: P | AA29: O | AB29: 18335
A30: 6930 | C30: E - AS | O30: KPO | P30: KPO | Q30: KPO | R30: KPO
A31: 9968 | C31: E - AS | J31: KPO | K31: KPO | L31: KPO | M31: KPO
A32: 2118 | C32: E - DIFF | E32: V | F32: V | G32: V | H32: V
A33: 1635 | C33: E - DIFF | E33: KPO | F33: KPO | G33: KPO | H33: KPO | T33: V | U33: V | V33: V | W33: V
A34: 2132 | C34: E - DIFF | E34: IN | F34: SPEC | G34: TIE | H34: 17681 | Y34: V | Z34: V | AA34: V | AB34: V
A35: 41218 | C35: E - DIFF | T35: KPO | U35: KPO | V35: KPO | W35: KPO
C36: 1
C37: 2
E38: 14 - 16 | F38: 16 - 18 | G38: 18-20 | H38: 20 - 22 | J38: 14 - 16 | K38: 16 - 18 | L38: 18 - 20 | M38: 20 - 22 | O38: 14 - 16 | P38: 16 - 18 | Q38: 18-20 | R38: 20 - 22 | T38: 14 - 16 | U38: 16 - 18 | V38: 18 - 20 | W38: 20 - 22 | Y38: 14 - 16 | Z38: 16 - 18 | AA38: 18-20 | AB38: 20 - 22
A39: Bezetting M | E39: 14 | F39: 14 | G39: 14 | H39: 14 | J39: 14 | K39: 14 | L39: 14 | M39: 14 | O39: 14 | P39: 14 | Q39: 14 | R39: 14 | T39: 14 | U39: 14 | V39: 14 | W39: 14 | Y39: 14 | Z39: 14 | AA39: 14 | AB39: 14
A40: 984 | C40: M - AS | AC40: Opmerkingen
A41: 2951 | C41: M - AS | E41: G | F41: P | G41: O | H41: 18335 | J41: G | K41: P | L41: O | M41: 18335 | O41: G | P41: P | Q41: O | R41: 18335 | T41: G | U41: P | V41: O | W41: 18335 | Y41: G | Z41: P | AA41: O | AB41: 18335
A42: 3255 | C42: M - AS
A43: 3861 | C43: M - AS | E43: NACHT | F43: NACHT | G43: NACHT | H43: NACHT | J43: NACHT | K43: NACHT | L43: NACHT | M43: NACHT | O43: NACHT | P43: NACHT | Q43: NACHT | R43: NACHT | T43: NACHT | U43: NACHT | V43: NACHT | W43: NACHT | Y43: N | Z43: NACHT | AA43: NACHT | AB43: NACHT
A44: 7416 | C44: M - AS | J44: KPO | K44: KPO | L44: KPO | M44: KPO
A45: X | C45: M - AS | E45: X | F45: X | G45: X | H45: X | J45: X | K45: X | L45: X | M45: X | O45: X | P45: X | Q45: X | R45: X | T45: X | U45: X | V45: X | W45: X | Y45: X | Z45: X | AA45: X | AB45: X
A46: 3144 | C46: M - DIFF | E46: WN | F46: WN | G46: WN | H46: WN | J46: WN | K46: WN | L46: WN | M46: WN | O46: WN | P46: WN | Q46: WN | R46: WN | T46: WN | U46: WN | V46: WN | W46: WN | Y46: WN | Z46: WN | AA46: WN | AB46: WN
A47: 3407 | C47: M - DIFF | E47: KPO | F47: KPO | G47: KPO | H47: KPO
A48: 3784 | C48: M - DIFF | E48: EDUC | F48: EDUC | G48: EDUC | H48: EDUC
A49: 7856 | C49: M - DIFF | T49: KPO | U49: KPO | V49: KPO | W49: KPO
A50: 9476 | C50: M - DIFF | L50: EDUC | M50: EDUC | O50: KPO | P50: KPO | Q50: KPO | R50: KPO | V50: EDUC | W50: EDUC
A51: Bezetting E | E51: 8 | F51: 8 | G51: 8 | H51: 8 | J51: 8 | K51: 8 | L51: 8 | M51: 8 | O51: 8 | P51: 8 | Q51: 8 | R51: 8 | T51: 8 | U51: 8 | V51: 8 | W51: 8 | Y51: 8 | Z51: 8 | AA51: 8 | AB51: 8
A52: 2645 | C52: E - AS | E52: WD | F52: WD | G52: WD | H52: WD | J52: WD | K52: WD | L52: WD | M52: WD | O52: WD | P52: WD | Q52: WD | R52: WD | T52: WD | U52: WD | V52: WD | W52: WD | Y52: WD | Z52: WD | AA52: WD | AB52: WD
A53: 3056 | C53: E - AS | E53: WN | F53: WN | G53: WN | H53: WN | J53: WN | K53: WN | L53: WN | M53: WN | O53: WN | P53: WN | Q53: WN | R53: WN | T53: WN | U53: WN | V53: WN | W53: WN | Y53: WN | Z53: WN | AA53: WN | AB53: WN
A54: 6860 | C54: E - AS | E54: NACHT | F54: NACHT | G54: NACHT | H54: NACHT | J54: NACHT | K54: NACHT | L54: NACHT | M54: NACHT | O54: NACHT | P54: NACHT | Q54: NACHT | R54: NACHT | T54: NACHT | U54: NACHT | V54: NACHT | W54: NACHT | Y54: NACHT | Z54: NACHT | AA54: NACHT | AB54: NACHT
A55: 8297 | C55: E - AS | J55: KPO | K55: KPO | L55: KPO | M55: KPO
A56: 1765 | C56: E - DIFF | T56: KPO | U56: KPO | V56: KPO | W56: KPO
A57: 2030 | C57: E - DIFF | E57: KPO | F57: KPO | G57: KPO | H57: KPO
A58: 2485 | C58: E - DIFF | L58: EDUC | M58: EDUC
A59: 6273 | C59: E - DIFF | O59: KPO | P59: KPO | Q59: KPO | R59: KPO
C60: 1
C61: 2
A62: Nacht (vast) | E62: 22 - 00 | F62: 00 - 02 | G62: 02 - 04 | H62: 04 - 06 | J62: 22 - 00 | K62: 00 - 02 | L62: 02 - 04 | M62: 04 - 06 | O62: 22 - 00 | P62: 00 - 02 | Q62: 02 - 04 | R62: 04 - 06 | T62: 22 - 00 | U62: 00 - 02 | V62: 02 - 04 | W62: 04 - 06 | Y62: 22 - 00 | Z62: 00 - 02 | AA62: 02 - 04 | AB62: 04 - 06
A63: Bezetting E
A64: 497 | C64: M
A65: 895 | C65: M
A66: 1023 | C66: E | Y66: TK | Z66: TK | AA66: TK | AB66: TK
A67: 4893 | C67: E
A68: Overige | E68: 0730 - 0930 | F68: 0930 - 1130 | G68: 1130 - 1330 | H68: 1330 - 1530 | J68: 0730 - 0930 | K68: 0930 - 1130 | L68: 1130 - 1330 | M68: 1330 - 1530 | O68: 0730 - 0930 | P68: 0930 - 1130 | Q68: 1130 - 1330 | R68: 1330 - 1530 | T68: 0730 - 0930 | U68: 0930 - 1130 | V68: 1130 - 1330 | W68: 1330 - 1530 | Y68: 0730 - 0930 | Z68: 0930 - 1130 | AA68: 1130 - 1330 | AB68: 1330 - 1530
A69: Bezetting E | E69: 10 | F69: 10 | G69: 10 | H69: 10 | J69: 10 | K69: 10 | L69: 10 | M69: 10 | O69: 10 | P69: 10 | Q69: 10 | R69: 10 | T69: 10 | U69: 10 | V69: 10 | W69: 10 | Y69: 10 | Z69: 10 | AA69: 10 | AB69: 10
A70: 1115 | C70: S
A71: 2076 | C71: S | E71: Z | F71: Z | G71: Z | H71: Z | J71: Z | K71: Z | L71: Z | M71: Z | O71: Z | P71: Z | Q71: Z | R71: Z | T71: Z | U71: Z | V71: Z | W71: Z | Y71: Z | Z71: Z | AA71: Z | AB71: Z
A72: 1279 | C72: TT
A73: 1658 | C73: TT
A74: 1734 | C74: TT
A75: 296 | C75: GM
